{"text_format":"1","workbook":"xlsx","n_sheets":18,"sheets":["INSTRUCTIVO EVALUACIÓN","1.2.3. CONCERTACIÓN","Hoja2","lista de selecciones","4. EVALUACIÓN SEMESTRAL (1)","5. EVALUACIÓN SEMESTRAL (2)","3. COMPORTAMENTALES","INFORMACIÓN GENERAL","6. CONSOLIDADO ANUAL","4. CONSOLIDADO EVALUACION PARCI","7. COMPROMISOS MEJORAMIENTO I","INSTRUCTIVO CMI","8. EVALUACIÓN EXTRAORDINARIA FP","EVALUACIÓN EXTRAORDINARIA","9. EVALUACIÓN PERIODO DE PRUEBA","10. EVALUACION EVENTUAL (sem 1)","11. EVALUACION EVENTUAL (sem2)","12.EVALUACION MENOR A UN AÑO"],"not_rendered":{"charts":0,"images":6,"macros":0,"external_links":3,"defined_names":65,"comments":12,"pivot_tables":0},"unopened":[],"bounds":{"document_bytes":16777216,"sheet_cells":100000,"rows_first":2000,"rows_last":500,"rows_between":2000,"halvings":0,"cell_chars":16384,"cell_head_chars":4096},"cells_cut":0,"cells_raw":0,"read":"whole","date_system":"1900"}

{"sheet":"INSTRUCTIVO EVALUACIÓN","index":0,"n_rows":15,"n_cols":13,"rows_kept":15,"cut":false,"hidden":false,"merged":[[14,1,14,7],[14,8,14,11],[12,12,13,12],[13,1,13,7],[13,8,13,11],[6,1,6,7],[6,8,6,11],[7,1,7,7],[7,12,10,12],[8,1,8,7],[10,8,10,11],[11,1,11,7],[11,8,11,11],[12,1,12,7],[12,8,12,11],[7,8,9,11],[9,1,9,7],[10,1,10,7],[0,0,0,2],[0,3,0,11],[2,0,2,7],[2,8,2,11],[4,1,4,7],[4,8,5,11],[1,0,1,12],[4,12,5,12],[5,1,5,7],[3,8,3,11],[3,0,3,7]]}
[null,null,null,"Evaluación del desempeño laboral para Servidores de Carrera Administrativa y Libre Nombramiento y Remoción"]
["Información General "]
["Procedimiento ",null,null,null,null,null,null,null,"Hojas de archivo ",null,null,null,"Fase "]
["Revisión de la planeación Estratégica de la Entidad, Manual de Funciones y competencias laborales, Misión, Visión, Planes de acción.",null,null,null,null,null,null,null,"NO APLICA",null,null,null,"Fase I. Etapa Preparatoria "]
["Paso 1. ","Diligenciar  la información personal y de los empleos de los evaluadores y del evaluado.",null,null,null,null,null,null,"1. CONCERTACIÓN - Compromisos laborales y competencias comportamentales ",null,null,null,"Fase Ii. Concertación De Compromisos Laborales Y Competencias Comportamentales"]
["Paso 2.","Concertar en los primeros 15 días de febrero de cada año  los compromisos laborales y competencias comportamentales "]
["Paso 3. ","Acopiar durante todo el proceso de evaluación las evidencias especificando la ubicación y fecha de aporte.",null,null,null,null,null,null,"1. CONCERTACIÓN - Evidencias",null,null,null,"Fase Iii. Seguimiento Al Desempeño Laboral Y Al Desarrollo De Las Competencias Comportamentales."]
["Paso 4. ","Efectuar la primera evaluación parcial semestral la cual comprende del primero (1º) de febrero hasta el treinta y uno (31) de julio de cada año; la calificación de los compromisos laborales deberá producirse dentro de los quince (15) días hábiles siguientes al vencimiento de dicho período.",null,null,null,null,null,null,"2. EVALUACIÓN SEMESTRAL (1) - Evaluación semestral 1",null,null,null,"Iv Fase. Evaluaciones Parciales En Período Anual U Ordinario"]
["Paso 5. ","Efectuar la calificación de las competencias comportamentales correspondientes al primer semestre. (las fechas proceden igual que lo especificado en el ítem anterior)"]
["Paso 6. ","Notificar la calificación maximo dos días después de efectuada."]
["Paso 7. ","Implementar de ser necesario el plan de mejoramiento de acuerdo al resultado del seguimiento o la evaluación.",null,null,null,null,null,null,"4. COMPROMISO DE MEJORAMIENTO"]
["Paso 8. ","Acopiar durante todo el proceso de evaluación las evidencias especificando la ubicación y fecha de aporte.",null,null,null,null,null,null,"1. CONCERTACIÓN - Evidencias",null,null,null,"Fase Iii. Seguimiento Al Desempeño Laboral Y Al Desarrollo De Las Competencias Comportamentales."]
["Paso 9. ","Para la segunda evaluación parcial semestral comprende el primero (1º) de agosto y el treinta y uno (31) de enero del año siguiente, calificación que deberá producirse a más tardar dentro de los quince (15) días hábiles siguientes al vencimiento de dicho período",null,null,null,null,null,null,"2. EVALUACIÓN SEMESTRAL (2) - Evaluación semestral 2",null,null,null,"Iv Fase. Evaluaciones Parciales En Período Anual U Ordinario"]
["Paso 10. ","Deberá realizar la calificación de las competencias comportamentales correspondientes al primer semestre. (las fechas proceden igual que el ítem anterior)",null,null,null,null,null,null,"2. EVALUACIÓN SEMESTRAL (2) - Evaluación semestral 2"]
["Paso 11. ","Notificar la calificación final, en el caso de presentarse recursos diligenciar la sección V y VI del formato.",null,null,null,null,null,null,"3. CONSOLIDADO ANUAL",null,null,null,"V Fase. Calificación Definitiva"]

{"sheet":"1.2.3. CONCERTACIÓN","index":1,"n_rows":48,"n_cols":32,"rows_kept":48,"cut":false,"hidden":false,"merged":[[47,0,47,31],[48,0,48,31],[44,19,44,31],[45,5,46,10],[45,11,46,13],[45,14,46,18],[46,19,46,28],[46,29,46,31],[44,5,44,10],[44,11,44,13],[44,0,46,4],[44,14,44,18],[45,19,45,28],[45,29,45,31],[0,0,0,31],[40,0,40,8],[41,9,41,14],[32,27,32,31],[33,27,33,31],[34,27,34,31],[31,14,31,16],[32,14,32,16],[30,0,30,1],[31,0,31,1],[31,7,31,13],[30,7,30,13],[30,14,30,16],[30,2,30,6],[36,0,36,31],[38,15,38,24],[32,7,32,13],[33,7,33,13],[34,7,34,13],[30,27,30,31],[31,27,31,31],[31,17,31,26],[32,17,32,26],[33,17,33,26],[2,0,2,31],[3,18,3,30],[1,0,1,31],[3,0,3,7],[3,8,3,16],[4,8,4,10],[4,0,4,5],[4,6,4,7],[4,11,4,12],[4,14,4,19],[4,20,4,22],[4,23,4,27],[4,28,4,31],[7,1,7,4],[6,0,6,31],[7,24,7,30],[7,5,7,12],[33,14,33,16],[34,14,34,16],[30,17,30,26],[34,17,34,26],[8,13,8,14],[9,13,9,14],[7,15,7,23],[19,13,19,14],[20,13,20,14],[7,13,7,14],[21,13,21,14],[22,13,22,14],[23,13,23,14],[8,31,11,31],[12,0,15,0],[12,1,15,4],[12,5,15,12],[12,15,15,23],[12,24,15,30],[12,31,15,31],[5,11,5,13],[5,14,5,16],[29,0,29,31],[5,20,5,31],[28,0,28,30],[33,0,33,1],[34,0,34,1],[32,0,32,1],[35,0,35,1],[35,2,35,31],[31,2,31,6],[32,2,32,6],[33,2,33,6],[34,2,34,6],[5,0,5,7],[5,8,5,10],[5,17,5,19],[13,13,13,14],[10,13,10,14],[11,13,11,14],[24,13,24,14],[25,13,25,14],[26,13,26,14],[27,13,27,14],[43,9,43,31],[42,15,42,24],[39,15,39,24],[42,0,42,8],[40,15,40,24],[40,25,40,31],[37,15,37,24],[39,25,39,31],[38,25,38,31],[38,0,38,8],[42,9,42,14],[37,25,37,31],[38,9,38,14],[37,0,37,8],[42,25,42,31],[40,9,40,14],[37,9,37,14],[39,0,39,8],[39,9,39,14],[41,0,41,8],[41,15,41,24],[41,25,41,31],[43,0,43,8],[16,0,19,0],[16,1,19,4],[16,5,19,12],[16,15,19,23],[16,24,19,30],[16,31,19,31],[18,13,18,14],[8,0,11,0],[8,1,11,4],[8,5,11,12],[8,15,11,23],[8,24,11,30],[16,13,16,14],[17,13,17,14],[14,13,14,14],[15,13,15,14],[12,13,12,14],[20,0,23,0],[20,1,23,4],[20,5,23,12],[20,15,23,23],[20,24,23,30],[20,31,23,31],[24,0,27,0],[24,1,27,4],[24,5,27,12],[24,15,27,23],[24,24,27,30],[24,31,27,31]]}
["Evaluación del desempeño laboral para Servidores de carrera administrativa y libre nombramiento y remoción"]
["Objetivos Institucionales"]
[" 1. Concertación De Compromisos Laborales"]
["1.1 Tipo de Empleo",null,null,null,null,null,null,null,"Carrera Administrativa",null,null,null,null,null,null,null,null,null,"Libre Nombramiento y Remoción (LNR)\n(Seguimiento Cumplimiento de Funciones Empleados)"]
["1.2 Fecha de Concertación",null,null,null,null,null,"Desde",null,null,null,null,"Hasta",null,"2025-12-26","No. Días Concertados en el Año",null,null,null,null,null,{"$f":"IF((N5-I5+1)=1,0,N5-I5+1)","v":46018},null,null,"1.3 Nivel del Empleo"]
["Concertación de Compromisos",null,null,null,null,null,null,null,null,null,null,"Ajuste de Compromiso",null,null,null,null,null,"Justificación del Ajuste"]
["1.4 Componentes De La Evaluación"]
["N.","No. Objetivo Instiucional",null,null,null,"Compromisos Laborales",null,null,null,null,null,null,null,"Requisitos de Calidad",null,"Metas",null,null,null,null,null,null,null,null,"Evidencia Del Cumplimiento Del Compromiso",null,null,null,null,null,null,"Peso"]
[1]
[]
[]
[]
[2]
[]
[]
[]
[3]
[]
[]
[]
[4]
[]
[]
[]
[5]
[]
[]
[]
["Total de los Compromisos Laborales",null,null,null,null,null,null,null,null,null,null,null,null,null,null,null,null,null,null,null,null,null,null,null,null,null,null,null,null,null,null,{"$f":"IF(SUM(AF8:AF28)<>100,\"Numero no puede ser mayor ni menor que 100\",SUM(AF8:AF28))","v":"Numero no puede ser mayor ni menor que 100"}]
["2. Fijación compromisos comportamentales "]
["N° COMPROMISO LABORAL",null,"Nivel Jerarquíco",null,null,null,null,"Competencias Comportamentales",null,null,null,null,null,null,"Tipo de Competencia",null,null,"Conducta Asociada",null,null,null,null,null,null,null,null,null,"Evidencias"]
[1]
[2]
[3]
[4]
[]
["3. Datos Generales"]
[null,null,null,null,null,null,null,null,null,"Empleado a Evaluar",null,null,null,null,null,"Jefe Inmediato (Primer Evaluador)",null,null,null,null,null,null,null,null,null,"Segundo Evaluador (Si lo hay)"]
["Nombre Completo"]
["Numero De Documento Identidad"]
["Cargo (Denominación-Código-Grado)"]
["Dependencia"]
["Firmas"]
["Fecha De Diligenciamiento Del Formato",null,null,null,null,null,null,null,null,"2025-02-21"]
["Renuencia del Evaluado para firmar la fijación de compromisos \n(Si aplica)",null,null,null,null,"Nombre del Testigo",null,null,null,null,null,"Firma del Testigo",null,null,"Fecha",null,null,null,null,"Reclamación u Objeción en Única Instancia Ante la Comisión de Personal (Parágrafo del articulo 22º, del Acuerdo 565 de 2016)"]
[null,null,null,null,null,null,null,null,null,null,null,null,null,null,null,null,null,null,null,"Número de Radicado"]
[null,null,null,null,null,null,null,null,null,null,null,null,null,null,null,null,null,null,null,"Fecha Reclamación (dd/mm/aa)"]
["3.1 Observaciones"]

{"sheet":"Hoja2","index":2,"n_rows":24,"n_cols":4,"rows_kept":24,"cut":false,"hidden":true,"merged":[[18,1,23,1],[12,1,14,1],[15,1,17,1],[10,1,11,1],[1,1,5,1],[6,1,9,1]]}
[]
[null,"ASESOR","Confiabilídad técnica","* Mantiene actualizados sus conocimientos para apoyar la gestión de la entidad\n* Conoce, maneja y sabe aplicar los conocimientos para el logro de resultados\n* Emite conceptos técnicos u orientaciones claros, precisos, pertinentes y ajustados a los lineamientos normativos y organizacionales\n* Genera conocimientos técnicos de interés para la entidad, los cuales son aprehendidos y utilizados en el actuar de la organización"]
[null,null,"Creatividad e innovación","* Apoya la generación de nuevas ideas y conceptos para el mejoramiento de la entidad\n* Prevé situaciones y alternativas de solución que orienten la toma de decisiones de la alta dirección\n* Reconoce y hace viables las oportunidades y las comparte con sus jefes para contribuir al logro de objetivos y metas institucionales\n* Adelanta estudios o investigaciones y los documenta, para contribuir a la dinámica de la entidad y su competitividad"]
[null,null,"Iniciativa","* Prevé situaciones y alternativas de solución que orientan la toma de decisiones de la alta dirección\n* Enfrenta los problemas y propone acciones concretas para solucionarlos\n* Reconoce y hace viables las oportunidades"]
[null,null,"Construcción de relaciones","* Establece y mantiene relaciones cordiales y recíprocas con redes o grupos de personas internas y externas de la organización que faciliten la consecución de los objetivos institucionales\n* Utiliza contactos para conseguir objetivos\n* Comparte información para establecer lazos\n* Interactúa con otros de un modo efectivo y adecuado"]
[null,null,"Conocimiento del entorno","* Se informa permanentemente sobre políticas gubernamentales, problemas y demandas del entorno\n* Comprende el entorno organizacional que enmarca las situaciones objeto de asesoría y lo toma como referente\n* Identifica las fuerzas políticas que afectan la organización y las posibles alianzas y las tiene en cuenta al emitir sus conceptos técnicos\n* Orienta el desarrollo de estrategias que concilien las fuerzas políticas y las alianzas en pro de la organización"]
[null,"PROFESIONAL \n","Aporte técnico profesional","* Aporta soluciones alternativas en lo que refiere a sus saberes específicos\n* Informa su experiencia específica en el proceso de toma de decisiones que involucran aspectos de su especialidad \n* Anticipa problemas previsibles que advierte en su carácter de especialista\n* Asume la interdisciplinariedad aprendiendo puntos de vista diversos y alternativos al propio, para analizar y ponderar soluciones posibles."]
[null,null,"Comunicación efectiva ","* Utiliza canales de comunicación, en su diversa expresión, con claridad, precisión y tono agradable para el receptor\n* Redacta textos, informes, mensajes, cuadros o gráficas con claridad en la expresión para hacer efectiva y sencilla la comprensión \n* Mantiene escucha y lectura atenta a efectos de comprender mejor los mensajes o información recibida\n* Da respuesta a cada comunicación recibida de modo inmediato."]
[null,null,"Gestión de procedimientos","* Ejecuta sus tareas con los criterios de calidad establecidos\n* Revisa procedimientos e instrumentos para mejorar tiempos y resultados y para anticipar soluciones a problemas\n* Desarrolla las actividades de acuerdo con las pautas y protocolos definidos "]
[null,null,"Instrumentación de decisiones","* Discrimina con efectividad entre las decisiones que deben ser elevadas a un superior, socializadas al equipo de trabajo o pertenecen a la esfera individual de trabajo\n* Adopta decisiones sobre ellas con base en información válida y rigurosa\n* Maneja criterios objetivos para analizar la materia a decidir con las personas involucradas\n* Asume los efectos de sus decisiones y también de las adoptadas por el equipo de trabajo al que pertenece"]
[null,"PROFESIONAL CON PERSONAL A CARGO","Dirección y Desarrollo de Personal","* Identifica, ubica y desarrolla el talento humano a su cargo\n* Orienta la identificación de necesidades de formación y capacitación y apoya la ejecución de las acciones propuestas para satisfacerlas\n* Hace uso de las habilidades y recursos del talento humano a su cargo, para alcanzar las metas y los estándares de productividad\n* Establece espacios regulares de retroalimentación y reconocimiento del buen desempeño en pro del mejoramiento continuo de las personas y la organización"]
[null,null,"Toma de decisiones","* Elige con oportunidad, entre muchas alternativas, los proyectos a realizar, estableciendo responsabilidades precisas con base en las prioridades de la entidad\n* Toma en cuenta la opinión técnica de sus colaboradores al analizar las alternativas existentes para tomar una decisión y desarrollarla\n* Decide en situaciones de alta complejidad e incertidumbre teniendo en consideración la consecución de logros y objetivos de la entidad\n* Efectúa los cambios que considera necesarios para solucionar los problemas detectados o atender situaciones particulares y se hace responsable de la decisión tomada"]
[null,"Técnico","Confiabilidad Técnica","* Aplica el conocimiento técnico en el desarrollo de sus responsabilidades\n* Mantiene actualizado su conocimiento técnico para apoyar su gestión\n* Resuelve problemas utilizando conocimientos técnicos de su especialidad, para apoyar el cumplimiento de metas y objetivos institucionales\n* Emite conceptos técnicos, juicios o propuestas claros, precisos, pertinentes y ajustados a los lineamientos normativos y organizacionales"]
[null,null,"Disciplina","* Recibe instrucciones y desarrolla actividades acorde con las mismas\n* Acepta la supervisión constante\n* Revisa de manera permanente los cambio en los procesos"]
[null,null,"Responsabilidad","* Utiliza el tiempo de manera eficiente\n* Maneja adecuadamente los implementos requeridos para la ejecución de su tarea\n* Realiza sus tareas con criterios de productividad, calidad, eficiencia y efectividad\n* Cumple con eficiencia la tarea encomendada"]
[null,"ASISTENCIAL","Manejo de la información ","* Maneja con responsabilidad las informaciones personales e institucionales de que dispone\n* Evade temas que indagan sobre información confidencial\n* Recoge solo información imprescindible para el desarrollo de la tarea\n* Organiza y custodia de forma adecuada la información a su cuidado, teniendo en cuenta las normas legales y de la organización\n* No hace pública la información laboral o de las personas que pueda afectar la organización o las personas\n* Transmite información oportuna y objetiva"]
[null,null,"Relaciones interpersonales","* Escucha con interés y capta las necesidades de los demás\n* Transmite la información de forma fidedigna evitando situaciones que puedan generar deterioro en el ambiente laboral"]
[null,null,"Colaboración","* Toma la iniciativa en el contacto con usuarios para dar avisos, citas o respuestas, utilizando un lenguaje claro para los destinatarios, especialmente con las personas que integran minorías con mayor vulnerabilidad social o con diferencias funcionales\n* Articula sus actuaciones con las de los demás\n* Cumple los compromisos adquiridos\n* Facilita la labor de sus superiores y compañeros de trabajo"]
[null,"COMPETENCIAS COMUNES","Aprendizaje continuo","* Mantiene sus competencias actualizadas en función de los cambios que exige la administración pública en la prestación de un óptimo servicio\n* Gestiona sus propias fuentes de información confiable y/o participa de espacios informativos y de capacitación\n* Comparte sus saberes y habilidades con sus compañeros de trabajo, y aprende de sus colegas habilidades diferenciales, que le permiten nivelar sus conocimientos en flujos informales de inter-aprendizaje"]
[null,null,"Orientación a resultados ","* Asume la responsabilidad por sus resultados\n* Trabaja con base en objetivos claramente establecidos y realistas\n* Diseña y utiliza indicadores para medir y comprobar los resultados obtenidos\n* Adopta medidas para minimizar riesgos\n* Plantea estrategias para alcanzar o superar los resultados esperados\n* Se fija metas y obtiene los resultados institucionales esperados\n* Cumple con oportunidad las funciones de acuerdo con los estándares, objetivos y tiempos establecidos por la entidad\n* Gestiona recursos para mejorar la productividad y toma medidas necesarias para minimizar los riesgos\n* Aporta elementos para la consecución de resultados enmarcando sus productos y /o servicios dentro de las normas que rigen a la entidad\n* Evalúa de forma regular el grado de consecución de los objetivos"]
[null,null,"Orientación al usuario y al ciudadano","* Valora y atiende las necesidades y peticiones de los usuarios y de los ciudadanos de forma oportuna\n* Reconoce la interdependencia entre su trabajo y el de otros\n* Establece mecanismos para conocer las necesidades e inquietudes de los usuarios y ciudadanos\n* Incorpora las necesidades de usuarios y ciudadanos en los proyectos institucionales, teniendo en cuenta la visión de servicio a corto, mediano y largo plazo\n* Aplica los conceptos de no estigmatización y no discriminación y genera espacios y lenguaje incluyente\n* Escucha activamente e informa con veracidad al usuario o ciudadano"]
[null,null,"Compromiso con la organización","* Promueve el cumplimiento de las metas de la\norganización y respeta sus normas\n* Antepone las necesidades de la organización a sus propias necesidades\n* Apoya a la organización en situaciones difíciles\n*  Demuestra sentido de pertenencia en todas sus actuaciones\n* Toma la iniciativa de colaborar con sus compañeros y con otras áreas cuando se requiere, sin descuidar sus tareas"]
[null,null,"Trabajo en equipo","* Cumple los compromisos que adquiere con el equipo\n* Respeta la diversidad de criterios y opiniones de los miembros del equipo\n* Asume su responsabilidad como miembro de un equipo de trabajo y se enfoca en contribuir con el compromiso y la motivación de sus miembros\n* Planifica las propias acciones teniendo en cuenta su repercusión en la consecución de los objetivos grupales\n* Establece una comunicación directa con los miembros del equipo que permite compartir información e ideas en condiciones de respeto y cordialidad\n* Integra a los nuevos miembros y facilita su proceso de reconocimiento y apropiación de las actividades a cargo del equipo"]
[null,null,"Adaptación al cambio","* Acepta y se adapta fácilmente a las nuevas situaciones\n* Responde al cambio con flexibilidad\n* Apoya a la entidad en nuevas decisiones y coopera activamente en la implementación de nuevos objetivos, formas de trabajo y procedimientos\n* Promueve al grupo para que se adapten a las nuevas condiciones"]

{"sheet":"lista de selecciones","index":3,"n_rows":200,"n_cols":24,"rows_kept":200,"cut":false,"hidden":true,"merged":[[27,8,29,8],[24,0,33,0],[34,0,39,0],[40,0,44,0],[45,0,50,0],[23,8,26,8],[30,8,33,8],[19,7,33,7],[34,8,37,8],[38,8,41,8],[21,0,23,0],[59,8,60,8],[61,8,64,8],[53,7,64,7],[42,8,45,8],[46,8,48,8],[132,0,132,1],[49,8,52,8],[34,7,41,7],[0,7,18,7],[0,0,1,0],[0,1,0,4],[19,0,19,1],[0,8,3,8],[4,8,7,8],[8,8,10,8],[11,8,14,8],[15,8,18,8],[19,8,22,8],[51,0,54,0],[42,7,52,7],[53,8,58,8]]}
["Competencias Comunes ","Competencias por nivel jerarquico",null,null,null,null,"Niveles ","ASESOR","Confiabilídad_técnica","Mantiene actualizados sus conocimientos para apoyar la gestión de la entidad"]
[null,"Asesor","Profesional ","Profesional_con_Personal_a_Cargo","Técnico ","Asistencial","Asesor ",null,null,"Conoce, maneja y sabe aplicar los conocimientos para el logro de resultados"]
["Aprendizaje continuo","Confiabilídad técnica","Aporte técnico profesional","Dirección y Desarrollo de Personal","Confiabilidad Técnica","Manejo de la información ","Profesional ",null,null,"Emite conceptos técnicos u orientaciones claros, precisos, pertinentes y ajustados a los lineamientos normativos y organizacionales"]
["Orientación a resultados ","Creatividad e innovación","Comunicación efectiva","Toma de decisiones","Disciplina","Relaciones interpersonales","Profesional_con_personal_a_cargo",null,null,"Genera conocimientos técnicos de interés para la entidad, los cuales son aprehendidos y utilizados en el actuar de la organización"]
["Orientación al usuario y al ciudadano","Iniciativa","Gestión de procedimientos","Aprendizaje continuo","Responsabilidad","Colaboración","Técnico ",null,"Creatividad_e_innovación","Apoya la generación de nuevas ideas y conceptos para el mejoramiento de la entidad"]
["Compromiso con la organización","Construcción de relaciones","Instrumentación de decisiones","Orientación a resultados ","Aprendizaje continuo","Aprendizaje continuo","Asistencial",null,null,"Prevé situaciones y alternativas de solución que orienten la toma de decisiones de la alta dirección"]
["Trabajo en equipo","Conocimiento del entorno","Aprendizaje continuo","Orientación al usuario y al ciudadano","Orientación a resultados ","Orientación a resultados ",null,null,null,"Reconoce y hace viables las oportunidades y las comparte con sus jefes para contribuir al logro de objetivos y metas institucionales"]
["Adaptación al cambio","Aprendizaje continuo","Orientación a resultados ","Compromiso con la organización","Orientación al usuario y al ciudadano","Orientación al usuario y al ciudadano","Orientación a resultados",null,null,"Adelanta estudios o investigaciones y los documenta, para contribuir a la dinámica de la entidad y su competitividad"]
[null,"Orientación a resultados ","Orientación al usuario y al ciudadano","Trabajo en equipo","Compromiso con la organización","Compromiso con la organización","Orientación al usuario y al ciudadano",null,"Iniciativa","Prevé situaciones y alternativas de solución que orientan la toma de decisiones de la alta dirección"]
[null,"Orientación al usuario y al ciudadano","Compromiso con la organización","Adaptación al cambio","Trabajo en equipo","Trabajo en equipo",null,null,null,"Enfrenta los problemas y propone acciones concretas para solucionarlos"]
[null,"Compromiso con la organización","Trabajo en equipo",null,"Adaptación al cambio","Adaptación al cambio",null,null,null,"Reconoce y hace viables las oportunidades"]
[null,"Trabajo en equipo","Adaptación al cambio",null,null,null,"Transparencia",null,"Construcción_de_relaciones","Establece y mantiene relaciones cordiales y recíprocas con redes o grupos de personas internas y externas de la organización que faciliten la consecución de los objetivos institucionales"]
[null,"Adaptación al cambio",null,null,null,null,"Compromiso con la organización",null,null,"Utiliza contactos para conseguir objetivos"]
[null,null,null,null,null,null,null,null,null,"Comparte información para establecer lazos"]
[null,null,null,null,null,null,null,null,null,"Interactúa con otros de un modo efectivo y adecuado"]
[null,null,null,null,null,null,null,null,"Conocimiento_del_entorno","Se informa permanentemente sobre políticas gubernamentales, problemas y demandas del entorno"]
[null,null,null,null,null,null,null,null,null,"Comprende el entorno organizacional que enmarca las situaciones objeto de asesoría y lo toma como referente"]
[null,null,null,null,null,null,null,null,null,"Identifica las fuerzas políticas que afectan la organización y las posibles alianzas y las tiene en cuenta al emitir sus conceptos técnicos"]
[null,null,null,null,null,null,null,null,null,"Orienta el desarrollo de estrategias que concilien las fuerzas políticas y las alianzas en pro de la organización"]
["Competencias comunes ",null,null,null,null,null,null,"PROFESIONAL \n","Aporte_técnico_profesional","Aporta soluciones alternativas en lo que refiere a sus saberes específicos"]
["COMPETENCIAS","CONDUCTAS ASOCIADAS",null,null,null,null,null,null,null,"Informa su experiencia específica en el proceso de toma de decisiones que involucran aspectos de su especialidad "]
["Aprendizaje continuo","Mantiene sus competencias actualizadas en función de los cambios que exige la administración pública en la prestación de un óptimo servicio",null,null,null,null,null,null,null,"Anticipa problemas previsibles que advierte en su carácter de especialista"]
[null,"Gestiona sus propias fuentes de información confiable y/o participa de espacios informativos y de capacitación",null,null,null,null,null,null,null,"Asume la interdisciplinariedad aprendiendo puntos de vista diversos y alternativos al propio, para analizar y ponderar soluciones posibles."]
[null,"Comparte sus saberes y habilidades con sus compañeros de trabajo, y aprende de sus colegas habilidades diferenciales, que le permiten nivelar sus conocimientos en flujos informales de inter-aprendizaje",null,null,null,null,null,null,"Comunicación_efectiva ","Utiliza canales de comunicación, en su diversa expresión, con claridad, precisión y tono agradable para el receptor"]
["Orientación a resultados ","Asume la responsabilidad por sus resultados",null,null,null,null,null,null,null,"Redacta textos, informes, mensajes, cuadros o gráficas con claridad en la expresión para hacer efectiva y sencilla la comprensión "]
[null,"Trabaja con base en objetivos claramente establecidos y realistas",null,null,null,null,null,null,null,"Mantiene escucha y lectura atenta a efectos de comprender mejor los mensajes o información recibida"]
[null,"Diseña y utiliza indicadores para medir y comprobar los resultados obtenidos",null,null,null,null,null,null,null,"Da respuesta a cada comunicación recibida de modo inmediato."]
[null,"Adopta medidas para minimizar riesgos",null,null,null,null,null,null,"Gestión_de_procedimientos","Ejecuta sus tareas con los criterios de calidad establecidos"]
[null,"Plantea estrategias para alcanzar o superar los resultados esperados",null,null,null,null,null,null,null,"Revisa procedimientos e instrumentos para mejorar tiempos y resultados y para anticipar soluciones a problemas"]
[null,"Se fija metas y obtiene los resultados institucionales esperados",null,null,null,null,null,null,null,"Desarrolla las actividades de acuerdo con las pautas y protocolos definidos "]
[null,"Cumple con oportunidad las funciones de acuerdo con los estándares, objetivos y tiempos establecidos por la entidad",null,null,null,null,null,null,"Instrumentación_de_decisiones","Discrimina con efectividad entre las decisiones que deben ser elevadas a un superior, socializadas al equipo de trabajo o pertenecen a la esfera individual de trabajo"]
[null,"Gestiona recursos para mejorar la productividad y toma medidas necesarias para minimizar los riesgos",null,null,null,null,null,null,null,"Adopta decisiones sobre ellas con base en información válida y rigurosa"]
[null,"Aporta elementos para la consecución de resultados enmarcando sus productos y /o servicios dentro de las normas que rigen a la entidad",null,null,null,null,null,null,null,"Maneja criterios objetivos para analizar la materia a decidir con las personas involucradas"]
[null,"Evalúa de forma regular el grado de consecución de los objetivos",null,null,null,null,null,null,null,"Asume los efectos de sus decisiones y también de las adoptadas por el equipo de trabajo al que pertenece"]
["Orientación al usuario y al ciudadano","Valora y atiende las necesidades y peticiones de los usuarios y de los ciudadanos de forma oportuna",null,null,null,null,null,"PROFESIONAL CON PERSONAL A CARGO","Dirección_y_Desarrollo_de_Personal","Identifica, ubica y desarrolla el talento humano a su cargo"]
[null,"Reconoce la interdependencia entre su trabajo y el de otros",null,null,null,null,null,null,null,"Orienta la identificación de necesidades de formación y capacitación y apoya la ejecución de las acciones propuestas para satisfacerlas"]
[null,"Establece mecanismos para conocer las necesidades e inquietudes de los usuarios y ciudadanos",null,null,null,null,null,null,null,"Hace uso de las habilidades y recursos del talento humano a su cargo, para alcanzar las metas y los estándares de productividad"]
[null,"Incorpora las necesidades de usuarios y ciudadanos en los proyectos institucionales, teniendo en cuenta la visión de servicio a corto, mediano y largo plazo",null,null,null,null,null,null,null,"Establece espacios regulares de retroalimentación y reconocimiento del buen desempeño en pro del mejoramiento continuo de las personas y la organización"]
[null,"Aplica los conceptos de no estigmatización y no discriminación y genera espacios y lenguaje incluyente",null,null,null,null,null,null,"Toma_de_decisiones","Elige con oportunidad, entre muchas alternativas, los proyectos a realizar, estableciendo responsabilidades precisas con base en las prioridades de la entidad"]
[null,"Escucha activamente e informa con veracidad al usuario o ciudadano",null,null,null,null,null,null,null,"Toma en cuenta la opinión técnica de sus colaboradores al analizar las alternativas existentes para tomar una decisión y desarrollarla"]
["Compromiso con la organización","Promueve el cumplimiento de las metas de la\norganización y respeta sus normas",null,null,null,null,null,null,null,"Decide en situaciones de alta complejidad e incertidumbre teniendo en consideración la consecución de logros y objetivos de la entidad"]
[null,"Antepone las necesidades de la organización a sus propias necesidades",null,null,null,null,null,null,null,"Efectúa los cambios que considera necesarios para solucionar los problemas detectados o atender situaciones particulares y se hace responsable de la decisión tomada"]
[null,"Apoya a la organización en situaciones difíciles",null,null,null,null,null,"Técnico","Confiabilidad_Técnica","Aplica el conocimiento técnico en el desarrollo de sus responsabilidades"]
[null,"Demuestra sentido de pertenencia en todas sus actuaciones",null,null,null,null,null,null,null,"Mantiene actualizado su conocimiento técnico para apoyar su gestión"]
[null,"Toma la iniciativa de colaborar con sus compañeros y con otras áreas cuando se requiere, sin descuidar sus tareas",null,null,null,null,null,null,null,"Resuelve problemas utilizando conocimientos técnicos de su especialidad, para apoyar el cumplimiento de metas y objetivos institucionales"]
["Trabajo en equipo","Cumple los compromisos que adquiere con el equipo",null,null,null,null,null,null,null,"Emite conceptos técnicos, juicios o propuestas claros, precisos, pertinentes y ajustados a los lineamientos normativos y organizacionales"]
[null,"Respeta la diversidad de criterios y opiniones de los miembros del equipo",null,null,null,null,null,null,"Disciplina","Recibe instrucciones y desarrolla actividades acorde con las mismas"]
[null,"Asume su responsabilidad como miembro de un equipo de trabajo y se enfoca en contribuir con el compromiso y la motivación de sus miembros",null,null,null,null,null,null,null,"Acepta la supervisión constante"]
[null,"Planifica las propias acciones teniendo en cuenta su repercusión en la consecución de los objetivos grupales",null,null,null,null,null,null,null,"Revisa de manera permanente los cambio en los procesos"]
[null,"Establece una comunicación directa con los miembros del equipo que permite compartir información e ideas en condiciones de respeto y cordialidad",null,null,null,null,null,null,"Responsabilidad","Utiliza el tiempo de manera eficiente"]
[null,"Integra a los nuevos miembros y facilita su proceso de reconocimiento y apropiación de las actividades a cargo del equipo",null,null,null,null,null,null,null,"Maneja adecuadamente los implementos requeridos para la ejecución de su tarea"]
["Adaptación al cambio","Acepta y se adapta fácilmente a las nuevas situaciones",null,null,null,null,null,null,null,"Realiza sus tareas con criterios de productividad, calidad, eficiencia y efectividad"]
[null,"Responde al cambio con flexibilidad",null,null,null,null,null,null,null,"Cumple con eficiencia la tarea encomendada"]
[null,"Apoya a la entidad en nuevas decisiones y coopera activamente en la implementación de nuevos objetivos, formas de trabajo y procedimientos",null,null,null,null,null,"ASISTENCIAL","Manejo_de_la_información ","Maneja con responsabilidad las informaciones personales e institucionales de que dispone"]
[null,"Promueve al grupo para que se adapten a las nuevas condiciones",null,null,null,null,null,null,null,"Evade temas que indagan sobre información confidencial"]
[null,null,null,null,null,null,null,null,null,"Recoge solo información imprescindible para el desarrollo de la tarea"]
[null,null,null,null,null,null,null,null,null,"Organiza y custodia de forma adecuada la información a su cuidado, teniendo en cuenta las normas legales y de la organización"]
[null,null,null,null,null,null,null,null,null,"No hace pública la información laboral o de las personas que pueda afectar la organización o las personas"]
[null,null,null,null,null,null,null,null,null,"Transmite información oportuna y objetiva"]
[null,null,null,null,null,null,null,null,"Relaciones_interpersonales","Escucha con interés y capta las necesidades de los demás"]
[null,null,null,null,null,null,null,null,null,"Transmite la información de forma fidedigna evitando situaciones que puedan generar deterioro en el ambiente laboral"]
[null,null,null,null,null,null,null,null,"Colaboración","Toma la iniciativa en el contacto con usuarios para dar avisos, citas o respuestas, utilizando un lenguaje claro para los destinatarios, especialmente con las personas que integran minorías con mayor vulnerabilidad social o con diferencias funcionales"]
[null,null,null,null,null,null,null,null,null,"Articula sus actuaciones con las de los demás"]
[null,null,null,null,null,null,null,null,null,"Cumple los compromisos adquiridos"]
[null,null,null,null,null,null,null,null,null,"Facilita la labor de sus superiores y compañeros de trabajo"]
[]
[]
[]
[]
[]
[]
[]
[]
[]
[]
[]
[]
[]
[]
[]
[]
[]
[]
[]
[]
[null,"Anual u ordinario"]
[null,"Periodo de Prueba y Extraordinaria"]
[]
[]
[]
[]
[]
[]
[]
[]
[]
[]
[]
[]
[]
[]
[]
[]
[]
[]
[]
[]
[]
[]
[]
[]
[]
[]
[]
[]
[]
[]
["EVALUACIONES DEFINITIVAS","ANUAL_U_ORDINARIA","EVALUACIONES_PARCIALES_EVENTUALES"]
["ANUAL_U_ORDINARIA ","SEMESTRE 1","CAMBIO DE EVALUADOR"]
["PRIMERA_EVALUACION_PARCIAL_SEMESTRAL"]
["SEGUNDA_EVALUACION_PARCIAL_SEMESTRAL"]
["EVALUACIONES_PARCIALES_EVENTUALES",null,"CAMBIO DEFINITIVO DEL EMPLEO"]
["PERIODO DE PRUEBA","SEMESTRE 2","SEPARACIÓN TEMPORAL DE LAS FUNCIONES POR MÁS DE 30 DÍAS"]
["EXTRAORDINARIA",null,"LAPSO COMPRENDIDO ENTRE LA ÚLTIMA EVALUACIÓN Y EL FINAL DE LA EVALUACIÓN PARCIAL CORRESPONDIENTE"]
[null,null,"SUSPENSIÓN Y CALIFICACIÓN POR ACOSO LABORAL"]
[null,null,"INTERRUPCIÓN PERIODO DE PRUEBA POR MÁS DE 20 DÍAS"]
[]
[]
[]
[]
[]
["NIVELES DE DESARROLLO","DESCRIPCIÓN CUALITATIVA","Resultados cuantitativos"]
[null,null,"Periodo"]
[null,null,"Anual u ordinario","Periodo de Prueba y Extraordinaria","Bajo"]
["BAJO","El nivel de desarrollo de la competencia no se presenta con un impacto positivo que permita la obtención de las metas y logros esperados.",4,6,1]
["ACEPTABLE","El nivel de desarrollo de la competencia se presenta de manera intermitente, con un mediano impacto en la obtención de metas y logros esperados.",6,9,1.5]
["ALTO","El nivel de desarrollo de la competencia se presenta de manera permanente e impacta significativamente de manera positiva la obtención de metas y logros esperados.",8,12,2]
["MUY ALTO","El nivel de desarrollo de la competencia se presenta de manera permanente, impactando significativamente la obtención de metas y logros esperados y agrega valor a los procesos generando un alto nivel de confianza.",10,15,2.5]
[null,null,null,null,3]
[null,null,null,null,3.5]
[null,null,null,null,4]
[]
[]
[]
[]
[]
[]
[]
[]
[]
[]
[]
["1. Cambios en los planes, programas o proyectos como base para la concertación"]
["2. Separación del cargo mayor a treinta (30) días calendario que afecte el compromiso concertado"]
["3. Traslado o encargo del empleado",null,null,null,null,null,null,null,null,null,null,null,"Periodo"]
[null,null,null,null,null,null,null,null,null,null,null,null,"anual_u_ordinario"]
[null,null,null,null,null,null,null,null,null,null,null,null,"periodo_de_prueba_y_extraordinaria"]
[]
["Escala de Calificación ",null,null,null,null,null,null,null,null,null,null,null,"anual_u_ordinario","periodo_de_prueba_y_extraordinaria"]
["Sobresaliente ","> 90 y <= 100",null,null,null,null,null,null,null,null,null,null,"alto_anual_u_ordinario","alto_ppye"]
["Satisfactorio",">69 y < 80",null,null,null,null,null,null,null,null,null,null,"muy_alto_anual_u_ordinario","muy_alto_ppye"]
["No satisfactorio","<=69"]
[]
["No puede superar 100 puntos",null,null,null,null,null,null,null,null,null,null,null,"bajo_anual_u_ordinario","aceptable_anual_u_ordinario","alto_anual_u_ordinario","muy_alto_anual_u_ordinario","bajo_ppye","aceptable_ppye","alto_ppye","muy_alto_ppye"]
[null,null,null,null,null,null,null,null,null,null,null,null,1.0009999999999999,4.5004,6.5,8.5079999999999991,1,6.5,9.5,12.5]
[null,null,null,null,null,null,null,null,null,null,null,null,1.5001,5.0049999999999999,7,9.0009999999999994,1.5,7,10,13]
[null,null,null,null,null,null,null,null,null,null,null,null,2.0019999999999998,5.5004999999999997,7.5,9.5005000000000006,2,7.5,10.5,13.5]
[null,null,null,null,null,null,null,null,null,null,null,null,2.5,6.0060000000000002,8,10.000999999999999,2.5,8,11,14]
[null,null,null,null,null,null,null,null,null,null,null,null,3,null,null,null,3,8.5,11.5,14.5]
[null,null,null,null,null,null,null,null,null,null,null,null,3.5,null,null,null,3.5,9,12,15]
[null,null,null,null,null,null,null,null,null,null,null,null,4.0039999999999996,null,null,null,4]
[null,null,null,null,null,null,null,null,null,null,null,null,null,null,null,null,4.5]
[null,null,null,null,null,null,null,null,null,null,null,null,null,null,null,null,5]
["OBJETIVOS INSTITUCIONALES",null,null,null,null,null,null,null,null,null,null,null,null,null,null,null,5.5]
["Enaltecer al Servidor Público y su labor.",null,null,null,null,null,null,null,null,null,null,null,null,null,null,null,6]
["Consolidar una gestión pública moderna, eficiente, transparente, focalizada y participativa al servicio de las ciudadanías."]
["Proveer servicios con criterios de legalidad y enfoque diferencial que acerquen la ciudadanía al Estado."]
["Consolidar a Función Pública como un Departamento eficiente, técnico e innovador."]
[]
[null,null,null,null,null,null,null,null,"nivel_frecuencia",null,null,null,null,null,null,null,null,null,null,null,null,null,"periodo_de_prueba_y_extraordinaria"]
[null,null,null,null,null,null,null,null,"Siempre","Cumple totalmente con la competencia comportamental de manera constante y suficiente.",10,null,null,null,null,null,null,null,null,null,null,null,"bajo_anual_u_ordinario","El nivel de desarrollo de la competencia no se presenta con un impacto positivo que permita la obtención de metas y logros esperados "]
[null,null,null,null,null,null,null,null,"Frecuentemente","Cumple recurrentemente con la competencia comportamental.",7,null,null,null,null,null,null,null,null,null,null,null,"aceptable_anual_u_ordinario","El nivel de desarrollo de la competencia se presenta de manera intermitente con un mediano impacto en la obtención de metas y logros esperados "]
[null,null,null,null,null,null,null,null,"Ocasionalmente","Cumple parcialmente con la competencia comportamental, sin embargo no demuestra suficiencia frente a la conducta asociada. ",5,null,null,null,null,null,null,null,null,null,null,null,"alto_anual_u_ordinario","El nivel de desarrollo de la competencia se presenta de manera permanente e impacta significativamente de manera positiva la obtención de metas y logros esperados "]
[null,null,null,null,null,null,null,null,"Nunca","No cumple con la competencia comportamental ",1,null,null,null,null,null,null,null,null,null,null,null,"muy_alto_anual_u_ordinario","El nivel de desarrollo de la competencia se presenta de manera permanente, impactando significativamente la obtención de metas y logros esperados y agrega valor a los procesos generando un alto nivel de confianza "]
[]
[]
[null,null,null,null,null,null,null,null,"nivel_frecuencia"]
[null,null,null,null,null,null,null,null,"Siempre","Cumple totalmente con la competencia comportamental de manera constante y suficiente.",10]
[null,null,null,null,null,null,null,null,"Frecuentemente","Cumple recurrentemente con la competencia comportamental.",7]
[null,null,null,null,null,null,null,null,"Ocasionalmente","Cumple parcialmente con la competencia comportamental, sin embargo no demuestra suficiencia frente a la conducta asociada. ",5]
[null,null,null,null,null,null,null,null,"Nunca","No cumple con la competencia comportamental ",1]
[]
[]
["ACUERDOS DE NIVEL DE SERVICIO "]
["CLARIDAD ",null,"CLARIDAD \n(Variable/atributo/característica de requisito determinado por el cliente)"]
["CONFIABILIDAD",null,"CONFIABILIDAD\n(Variable/atributo/característica de requisito determinado para el producto/ servicio/ resultado)"]
["CUMPLIMIENTO ",null,"CUMPLIMIENTO \n(Variable/atributo/característica de requisito determinado por la legislación vigente)"]
["OPORTUNIDAD",null,"OPORTUNIDAD\n(Variable/atributo/característica de requisito determinado por FP)"]
[]
[null,null,"CLARIDAD: (Variable/atributo/característica de requisito determinado por el cliente)\nCONFIABILIDAD: (Variable/atributo/característica de requisito determinado para el producto/ servicio/ resultado)\nCUMPLIMIENTO (Variable/atributo/característica de requisito determinado por la legislación vigente)\nOPORTUNIDAD (Variable/atributo/característica de requisito determinado por FP)"]

{"sheet":"4. EVALUACIÓN SEMESTRAL (1)","index":4,"n_rows":47,"n_cols":38,"rows_kept":47,"cut":false,"hidden":false,"merged":[[35,0,35,34],[30,18,30,25],[30,1,30,9],[31,1,31,9],[32,1,32,9],[33,1,33,9],[34,1,34,9],[32,32,32,34],[33,32,33,34],[34,32,34,34],[30,32,30,34],[30,26,30,31],[31,26,31,31],[32,26,32,31],[33,26,33,31],[31,32,31,34],[45,0,45,11],[46,0,46,37],[47,0,47,37],[29,26,29,37],[33,18,33,25],[34,18,34,25],[45,32,45,37],[43,0,43,11],[43,12,43,20],[43,21,43,31],[43,32,43,37],[33,10,33,17],[34,10,34,17],[34,26,34,31],[42,32,42,37],[45,12,45,20],[45,21,45,31],[42,21,42,31],[42,12,42,20],[30,10,30,17],[36,14,36,16],[36,17,36,27],[32,35,32,37],[33,35,33,37],[44,0,44,11],[44,12,44,20],[44,21,44,31],[36,28,36,30],[5,0,5,37],[3,0,3,8],[3,9,3,10],[3,11,3,13],[6,27,6,34],[40,21,40,31],[40,32,40,37],[28,0,28,34],[39,0,39,11],[27,0,27,13],[27,27,27,34],[37,0,37,13],[44,32,44,37],[41,0,41,11],[41,12,41,20],[31,18,31,25],[32,18,32,25],[42,0,42,11],[34,35,34,37],[35,35,35,37],[41,21,41,31],[41,32,41,37],[39,12,39,37],[38,0,38,37],[37,14,37,16],[37,17,37,27],[37,28,37,30],[1,0,1,37],[2,22,2,23],[2,24,2,36],[2,0,2,10],[3,14,3,15],[4,0,4,8],[3,16,3,19],[3,20,3,25],[3,26,3,28],[3,29,3,33],[2,11,2,21],[4,9,4,37],[3,34,3,37],[27,37,28,37],[31,10,31,17],[40,0,40,11],[40,12,40,20],[36,0,36,13],[27,35,28,35],[6,14,6,22],[27,14,27,22],[6,23,6,26],[7,23,7,26],[11,23,11,26],[12,23,12,26],[13,23,13,26],[26,23,26,26],[27,23,27,26],[8,23,8,26],[7,14,10,22],[11,14,14,22],[15,14,18,22],[19,14,22,22],[23,14,26,22],[7,27,10,34],[11,27,14,34],[15,27,18,34],[19,27,22,34],[32,10,32,17],[30,35,30,37],[31,35,31,37],[24,23,24,26],[25,23,25,26],[23,27,26,34],[9,23,9,26],[10,23,10,26],[7,35,10,35],[7,36,10,36],[7,37,10,37],[11,35,14,35],[11,36,14,36],[11,37,14,37],[15,35,18,35],[15,36,18,36],[15,37,18,37],[19,35,22,35],[19,36,22,36],[19,37,22,37],[23,35,26,35],[23,36,26,36],[23,37,26,37],[14,23,14,26],[15,23,15,26],[16,23,16,26],[0,0,0,37],[37,31,37,34],[37,35,37,37],[36,31,36,34],[36,35,36,37],[6,1,6,13],[7,1,10,13],[11,1,14,13],[15,1,18,13],[19,1,22,13],[23,1,26,13],[29,0,29,25],[7,0,10,0],[11,0,14,0],[15,0,18,0],[19,0,22,0],[23,0,26,0],[17,23,17,26],[18,23,18,26],[19,23,19,26],[20,23,20,26],[21,23,21,26],[22,23,22,26],[23,23,23,26]]}
["Evaluación del Desempeño Laboral para Servidores de Carrera Administrativa y Libre Nombramiento y Remoción"]
[" 4. Evaluación Parcial Semestral "]
["4.1 Tipo de empleo ",null,null,null,null,null,null,null,null,null,null,"CARRERA ADMINISTRATIVA",null,null,null,null,null,null,null,null,null,null,{"$f":"+'1.2.3. CONCERTACIÓN'!R4","v":0},null,"LIBRE NOMBRAMIENTO Y REMOCIÓN (LNR)\n(Seguimiento cumplimiento de funciones empleados)",null,null,null,null,null,null,null,null,null,null,null,null,{"$f":"+'1.2.3. CONCERTACIÓN'!AF4","v":0}]
["4.2 Fecha de evaluación ",null,null,null,null,null,null,null,null,"DESDE",null,{"$f":"+'1.2.3. CONCERTACIÓN'!I5","v":"00:00:00"},null,null,"HASTA",null,"2025-07-31",null,null,null,"No. DÍAS EVALUADOS EN EL AÑO",null,null,null,null,null,{"$f":"IF((Q4-L4+1)=1,0,Q4-L4+1)","v":"2025-08-01"},null,null,"4.3 Nivel del empleo ",null,null,null,null,{"$f":"+'1.2.3. CONCERTACIÓN'!AC5","v":0}]
["4.4 Casos de evaluación ",null,null,null,null,null,null,null,null,"PRIMERA_EVALUACION_PARCIAL_SEMESTRAL"]
["4.5 Portafolio de evidencias compromisos laborales "]
["N°","COMPROMISO LABORAL",null,null,null,null,null,null,null,null,null,null,null,null,"EVIDENCIA DEL CUMPLIMIENTO DEL COMPROMISO",null,null,null,null,null,null,null,null,"REQUISITOS DE CALIDAD",null,null,null,"COMENTARIOS - RUTA DE EVIDENCIA",null,null,null,null,null,null,null,"PESO","LOGRO %","PUNTAJE"]
[{"$f":"+'1.2.3. CONCERTACIÓN'!A9","v":1},{"$f":"+'1.2.3. CONCERTACIÓN'!F9","v":0},null,null,null,null,null,null,null,null,null,null,null,null,{"$f":"+'1.2.3. CONCERTACIÓN'!Y9","v":0},null,null,null,null,null,null,null,null,{"$f":"+'1.2.3. CONCERTACIÓN'!N9","v":0},null,null,null,null,null,null,null,null,null,null,null,{"$f":"+'1.2.3. CONCERTACIÓN'!AF9","v":0},null,{"$f":"(AJ8*AK8)","v":0}]
[null,null,null,null,null,null,null,null,null,null,null,null,null,null,null,null,null,null,null,null,null,null,null,{"$f":"+'1.2.3. CONCERTACIÓN'!N10","v":0}]
[null,null,null,null,null,null,null,null,null,null,null,null,null,null,null,null,null,null,null,null,null,null,null,{"$f":"+'1.2.3. CONCERTACIÓN'!N11","v":0}]
[null,null,null,null,null,null,null,null,null,null,null,null,null,null,null,null,null,null,null,null,null,null,null,{"$f":"+'1.2.3. CONCERTACIÓN'!N12","v":0}]
[{"$f":"+'1.2.3. CONCERTACIÓN'!A13","v":2},{"$f":"+'1.2.3. CONCERTACIÓN'!F13","v":0},null,null,null,null,null,null,null,null,null,null,null,null,{"$f":"+'1.2.3. CONCERTACIÓN'!Y13","v":0},null,null,null,null,null,null,null,null,{"$f":"+'1.2.3. CONCERTACIÓN'!N13","v":0},null,null,null,null,null,null,null,null,null,null,null,{"$f":"+'1.2.3. CONCERTACIÓN'!AF13","v":0},null,{"$f":"(AJ12*AK12)","v":0}]
[null,null,null,null,null,null,null,null,null,null,null,null,null,null,{"$f":"+'1.2.3. CONCERTACIÓN'!Y20","v":0},null,null,null,null,null,null,null,null,{"$f":"+'1.2.3. CONCERTACIÓN'!N14","v":0}]
[null,null,null,null,null,null,null,null,null,null,null,null,null,null,{"$f":"+'1.2.3. CONCERTACIÓN'!Y21","v":0},null,null,null,null,null,null,null,null,{"$f":"+'1.2.3. CONCERTACIÓN'!N15","v":0}]
[null,null,null,null,null,null,null,null,null,null,null,null,null,null,null,null,null,null,null,null,null,null,null,{"$f":"+'1.2.3. CONCERTACIÓN'!N16","v":0}]
[{"$f":"+'1.2.3. CONCERTACIÓN'!A17","v":3},{"$f":"+'1.2.3. CONCERTACIÓN'!F17","v":0},null,null,null,null,null,null,null,null,null,null,null,null,{"$f":"+'1.2.3. CONCERTACIÓN'!Y17","v":0},null,null,null,null,null,null,null,null,{"$f":"+'1.2.3. CONCERTACIÓN'!N17","v":0},null,null,null,null,null,null,null,null,null,null,null,{"$f":"+'1.2.3. CONCERTACIÓN'!AF17","v":0},null,{"$f":"(AJ16*AK16)","v":0}]
[null,null,null,null,null,null,null,null,null,null,null,null,null,null,null,null,null,null,null,null,null,null,null,{"$f":"+'1.2.3. CONCERTACIÓN'!N18","v":0}]
[null,null,null,null,null,null,null,null,null,null,null,null,null,null,null,null,null,null,null,null,null,null,null,{"$f":"+'1.2.3. CONCERTACIÓN'!N19","v":0}]
[null,null,null,null,null,null,null,null,null,null,null,null,null,null,null,null,null,null,null,null,null,null,null,{"$f":"+'1.2.3. CONCERTACIÓN'!N20","v":0}]
[{"$f":"+'1.2.3. CONCERTACIÓN'!A21","v":4},{"$f":"+'1.2.3. CONCERTACIÓN'!F21","v":0},null,null,null,null,null,null,null,null,null,null,null,null,{"$f":"+'1.2.3. CONCERTACIÓN'!Y21","v":0},null,null,null,null,null,null,null,null,{"$f":"+'1.2.3. CONCERTACIÓN'!N21","v":0},null,null,null,null,null,null,null,null,null,null,null,{"$f":"+'1.2.3. CONCERTACIÓN'!AF21","v":0},null,{"$f":"(AJ20*AK20)","v":0}]
[null,null,null,null,null,null,null,null,null,null,null,null,null,null,null,null,null,null,null,null,null,null,null,{"$f":"+'1.2.3. CONCERTACIÓN'!N22","v":0}]
[null,null,null,null,null,null,null,null,null,null,null,null,null,null,null,null,null,null,null,null,null,null,null,{"$f":"+'1.2.3. CONCERTACIÓN'!N23","v":0}]
[null,null,null,null,null,null,null,null,null,null,null,null,null,null,null,null,null,null,null,null,null,null,null,{"$f":"+'1.2.3. CONCERTACIÓN'!N24","v":0}]
[{"$f":"+'1.2.3. CONCERTACIÓN'!A25","v":5},{"$f":"+'1.2.3. CONCERTACIÓN'!F25","v":0},null,null,null,null,null,null,null,null,null,null,null,null,{"$f":"+'1.2.3. CONCERTACIÓN'!Y25","v":0},null,null,null,null,null,null,null,null,{"$f":"+'1.2.3. CONCERTACIÓN'!N25","v":0},null,null,null,null,null,null,null,null,null,null,null,{"$f":"+'1.2.3. CONCERTACIÓN'!AF25","v":0},null,{"$f":"(AJ24*AK24)","v":0}]
[null,null,null,null,null,null,null,null,null,null,null,null,null,null,null,null,null,null,null,null,null,null,null,{"$f":"+'1.2.3. CONCERTACIÓN'!N26","v":0}]
[null,null,null,null,null,null,null,null,null,null,null,null,null,null,null,null,null,null,null,null,null,null,null,{"$f":"+'1.2.3. CONCERTACIÓN'!N27","v":0}]
[null,null,null,null,null,null,null,null,null,null,null,null,null,null,{"$f":"+'1.2.3. CONCERTACIÓN'!#REF!","v":{"$error":"#REF!"}},null,null,null,null,null,null,null,null,{"$f":"+'1.2.3. CONCERTACIÓN'!N28","v":0}]
[null,null,null,null,null,null,null,null,null,null,null,null,null,null,null,null,null,null,null,null,null,null,null,null,null,null,null,null,null,null,null,null,null,null,null,{"$f":"IF(SUM(AJ7:AJ26)<>100,\"Numero no puede ser mayor ni menor que 100\",SUM(AJ7:AJ26))","v":"Numero no puede ser mayor ni menor que 100"},null,{"$f":"+SUM(AL8:AL26)","v":0}]
["TOTAL COMPROMISOS LABORALES"]
["4.6 Compromisos comportamentales fijados",null,null,null,null,null,null,null,null,null,null,null,null,null,null,null,null,null,null,null,null,null,null,null,null,null,"4.7 Seguimiento compromisos comportamentales"]
["N° ","NIVEL JERARQUICO",null,null,null,null,null,null,null,null,"COMPETENCIA COMPORTAMENTAL",null,null,null,null,null,null,null,"CONDUCTA ASOCIADA",null,null,null,null,null,null,null,"NIVELES DE FRECUENCIA",null,null,null,null,null,"DESCRIPCIÓN ",null,null,"RESULTADO CUANTITATIVO"]
[{"$f":"+'1.2.3. CONCERTACIÓN'!A32","v":1},{"$f":"+'1.2.3. CONCERTACIÓN'!C32","v":0},null,null,null,null,null,null,null,null,{"$f":"+'1.2.3. CONCERTACIÓN'!H32","v":0},null,null,null,null,null,null,null,null,null,null,null,null,null,null,null,null,null,null,null,null,null,null,null,null,{"$f":"IF(AA32='lista de selecciones'!$I$181,'lista de selecciones'!$K$181,IF(AA32='lista de selecciones'!$I$182,'lista de selecciones'!$K$182,IF(AA32='lista de selecciones'!$I$183,'lista de selecciones'!$K$183,IF(AA32='lista de selecciones'!$I$184,'lista de selecciones'!$K$184,0))))","v":0}]
[{"$f":"+'1.2.3. CONCERTACIÓN'!A33","v":2},{"$f":"B32","v":0},null,null,null,null,null,null,null,null,{"$f":"+'1.2.3. CONCERTACIÓN'!H33","v":0},null,null,null,null,null,null,null,null,null,null,null,null,null,null,null,null,null,null,null,null,null,null,null,null,{"$f":"IF(AA33='lista de selecciones'!$I$181,'lista de selecciones'!$K$181,IF(AA33='lista de selecciones'!$I$182,'lista de selecciones'!$K$182,IF(AA33='lista de selecciones'!$I$183,'lista de selecciones'!$K$183,IF(AA33='lista de selecciones'!$I$184,'lista de selecciones'!$K$184,0))))","v":0}]
[{"$f":"+'1.2.3. CONCERTACIÓN'!A34","v":3},{"$f":"B32","v":0},null,null,null,null,null,null,null,null,{"$f":"+'1.2.3. CONCERTACIÓN'!H34","v":0},null,null,null,null,null,null,null,null,null,null,null,null,null,null,null,null,null,null,null,null,null,null,null,null,{"$f":"IF(AA34='lista de selecciones'!$I$181,'lista de selecciones'!$K$181,IF(AA34='lista de selecciones'!$I$182,'lista de selecciones'!$K$182,IF(AA34='lista de selecciones'!$I$183,'lista de selecciones'!$K$183,IF(AA34='lista de selecciones'!$I$184,'lista de selecciones'!$K$184,0))))","v":0}]
[{"$f":"+'1.2.3. CONCERTACIÓN'!A35","v":4},{"$f":"B33","v":0},null,null,null,null,null,null,null,null,{"$f":"+'1.2.3. CONCERTACIÓN'!H35","v":0},null,null,null,null,null,null,null,null,null,null,null,null,null,null,null,null,null,null,null,null,null,null,null,null,{"$f":"IF(AA35='lista de selecciones'!$I$181,'lista de selecciones'!$K$181,IF(AA35='lista de selecciones'!$I$182,'lista de selecciones'!$K$182,IF(AA35='lista de selecciones'!$I$183,'lista de selecciones'!$K$183,IF(AA35='lista de selecciones'!$I$184,'lista de selecciones'!$K$184,0))))","v":0}]
["TOTAL COMPROMISOS COMPORTAMENTALES ",null,null,null,null,null,null,null,null,null,null,null,null,null,null,null,null,null,null,null,null,null,null,null,null,null,null,null,null,null,null,null,null,null,null,{"$f":"SUM(AJ32:AL35)/4","v":0}]
["EVALUACIONES EVENTUALES PARA COMPROMISOS LABORALES (SI LAS HAY)",null,null,null,null,null,null,null,null,null,null,null,null,null,{"$f":"+'10. EVALUACION EVENTUAL (sem 1)'!M16","v":0},null,null,"EVALUACIONES EVENTUALES PARA COMPROMISOS COMPORTAMENTALES (SI LAS HAY)",null,null,null,null,null,null,null,null,null,null,{"$f":"+'10. EVALUACION EVENTUAL (sem 1)'!M30","v":0},null,null,"Total de evaluación eventual ",null,null,null,{"$f":"+O37+AC37","v":0}]
["CALIFICACIÓN EVALUACIÓN COMPROMISOS LABORALES PRIMER SEMESTRE (Sobre 80%) ",null,null,null,null,null,null,null,null,null,null,null,null,null,{"$f":"AL28*80%","v":0},null,null,"CALIFICACIÓN TOTAL COMPETENCIAS COMPORTAMENTALES PRIMER SEMESTRE (Sobre 20%) ",null,null,null,null,null,null,null,null,null,null,{"$f":"+(AJ36*20%)*10","v":0},null,null,"TOTAL DE LA CALIFICACIÓN SEMESTRE 1",null,null,null,{"$f":"IF(AJ37>1,((AVERAGE(O37,AC37))+(AVERAGE(O38,AC38))),(O38+AC38))","v":0}]
["4.8 Datos generales "]
["FECHA DE DILIGENCIAMIENTO",null,null,null,null,null,null,null,null,null,null,null,"2025-08-25"]
[null,null,null,null,null,null,null,null,null,null,null,null,"EMPLEADO A EVALUAR",null,null,null,null,null,null,null,null,"JEFE INMEDIATO (PRIMER EVALUADOR)",null,null,null,null,null,null,null,null,null,null,"SEGUNDO EVALUADOR \n"]
["NOMBRE COMPLETO",null,null,null,null,null,null,null,null,null,null,null,{"$f":"+'1.2.3. CONCERTACIÓN'!J39","v":0},null,null,null,null,null,null,null,null,{"$f":"'1.2.3. CONCERTACIÓN'!P39","v":0},null,null,null,null,null,null,null,null,null,null,{"$f":"++'1.2.3. CONCERTACIÓN'!Z39","v":0}]
["NUMERO DE DOCUMENTO IDENTIDAD",null,null,null,null,null,null,null,null,null,null,null,{"$f":"'1.2.3. CONCERTACIÓN'!J40","v":0},null,null,null,null,null,null,null,null,{"$f":"'1.2.3. CONCERTACIÓN'!P40","v":0},null,null,null,null,null,null,null,null,null,null,{"$f":"'1.2.3. CONCERTACIÓN'!Z40","v":0}]
["CARGO (DENOMINACIÓN-CÓDIGO-GRADO)",null,null,null,null,null,null,null,null,null,null,null,{"$f":"'1.2.3. CONCERTACIÓN'!J41","v":0},null,null,null,null,null,null,null,null,{"$f":"'1.2.3. CONCERTACIÓN'!P41","v":0},null,null,null,null,null,null,null,null,null,null,{"$f":"'1.2.3. CONCERTACIÓN'!Z41","v":0}]
["DEPENDENCIA",null,null,null,null,null,null,null,null,null,null,null,{"$f":"'1.2.3. CONCERTACIÓN'!J42","v":0},null,null,null,null,null,null,null,null,{"$f":"'1.2.3. CONCERTACIÓN'!P42","v":0},null,null,null,null,null,null,null,null,null,null,{"$f":"'1.2.3. CONCERTACIÓN'!Z42","v":0}]
["FIRMAS"]
["4.9 Observaciones "]

{"sheet":"5. EVALUACIÓN SEMESTRAL (2)","index":5,"n_rows":51,"n_cols":49,"rows_kept":51,"cut":false,"hidden":false,"merged":[[50,0,50,48],[51,0,54,48],[33,0,33,31],[33,32,33,48],[34,10,34,19],[34,20,34,31],[48,0,48,11],[34,32,34,40],[34,41,34,44],[34,45,34,48],[35,10,35,19],[35,20,35,31],[35,32,35,40],[35,41,35,44],[35,45,35,48],[48,41,48,48],[37,10,37,19],[37,20,37,31],[37,32,37,40],[37,41,37,44],[37,45,37,48],[39,45,39,48],[42,0,42,48],[38,10,38,19],[48,25,48,40],[38,20,38,31],[38,32,38,40],[38,41,38,44],[38,45,38,48],[39,0,39,44],[40,19,40,34],[41,19,41,34],[41,35,41,39],[40,0,40,13],[40,14,40,18],[40,35,40,39],[41,0,41,13],[41,14,41,18],[41,40,41,44],[41,45,41,48],[40,40,40,44],[40,45,40,48],[0,0,4,48],[49,0,49,11],[49,12,49,24],[49,25,49,40],[49,41,49,48],[43,0,43,11],[43,12,43,48],[45,0,45,11],[45,12,45,24],[45,25,45,40],[45,41,45,48],[46,0,46,11],[46,12,46,24],[46,25,46,40],[46,41,46,48],[47,0,47,11],[47,12,47,24],[47,25,47,40],[47,41,47,48],[44,0,44,11],[44,12,44,24],[44,25,44,40],[44,41,44,48],[48,12,48,24],[5,0,5,48],[6,0,6,11],[6,12,6,27],[9,0,9,48],[6,28,6,29],[6,30,6,47],[10,46,10,47],[7,32,7,36],[7,37,7,43],[7,44,7,48],[8,0,8,8],[7,0,7,8],[8,9,8,48],[10,13,10,28],[7,9,7,10],[7,11,7,13],[7,14,7,17],[7,18,7,22],[7,23,7,31],[10,34,10,44],[10,29,10,33],[36,20,36,31],[36,32,36,40],[36,41,36,44],[36,45,36,48],[31,48,32,48],[31,45,32,45],[32,0,32,44],[32,46,32,47],[31,34,31,44],[31,46,31,47],[31,0,31,12],[31,13,31,28],[31,29,31,33],[34,1,34,9],[35,1,35,9],[36,1,36,9],[27,45,30,45],[15,46,18,47],[19,46,22,47],[23,46,26,47],[27,46,30,47],[23,13,26,28],[15,29,15,33],[16,29,16,33],[27,48,30,48],[19,13,22,28],[27,13,30,28],[29,29,29,33],[30,29,30,33],[27,29,27,33],[28,29,28,33],[25,29,25,33],[26,29,26,33],[23,29,23,33],[24,29,24,33],[21,29,21,33],[22,29,22,33],[27,34,30,44],[15,45,18,45],[19,45,22,45],[11,48,14,48],[15,13,18,28],[15,34,18,44],[19,34,22,44],[23,34,26,44],[15,48,18,48],[19,48,22,48],[23,48,26,48],[19,29,19,33],[20,29,20,33],[17,29,17,33],[18,29,18,33],[23,45,26,45],[11,29,11,33],[12,29,12,33],[13,29,13,33],[14,29,14,33],[11,13,14,28],[11,34,14,44],[11,45,14,45],[11,46,14,47],[37,1,37,9],[38,1,38,9],[10,1,10,12],[11,1,14,12],[15,1,18,12],[19,1,22,12],[23,1,26,12],[27,1,30,12],[11,0,14,0],[15,0,18,0],[19,0,22,0],[23,0,26,0],[27,0,30,0],[36,10,36,19]]}
["Evaluación del desempeño laboral para Servidores de carrera administrativa y libre nombramiento y remoción"]
[]
[]
[]
[]
["5. Evaluación Parcial Semestral (2) "]
["5.1 Tipo de empleo",null,null,null,null,null,null,null,null,null,null,null,"CARRERA ADMINISTRATIVA",null,null,null,null,null,null,null,null,null,null,null,null,null,null,null,{"$f":"+'1.2.3. CONCERTACIÓN'!R4","v":0},null,"LIBRE NOMBRAMIENTO Y REMOCIÓN (LNR)\n(Seguimiento cumplimiento de funciones empleados)",null,null,null,null,null,null,null,null,null,null,null,null,null,null,null,null,null,{"$f":"+'1.2.3. CONCERTACIÓN'!AF4","v":0}]
["5.2 Fecha de evaluación ",null,null,null,null,null,null,null,null,"DESDE",null,null,null,null,"HASTA",null,null,null,"2026-01-31",null,null,null,null,"No. DÍAS EVALUADOS EN EL AÑO",null,null,null,null,null,null,null,null,{"$f":"IF((S8-L8+1)=1,0,S8-L8+1)","v":46054},null,null,null,null,"5.3 Nivel del empleo ",null,null,null,null,null,null,{"$f":"+'1.2.3. CONCERTACIÓN'!AC5","v":0}]
["5.4 Casos de evaluación",null,null,null,null,null,null,null,null,"SEGUNDA_EVALUACION_PARCIAL_SEMESTRAL"]
["5.5 Portafolio de evidencias compromisos laborales "]
["N°","Compromiso laboral ",null,null,null,null,null,null,null,null,null,null,null,"Evidencia del cumplimiento del compromiso",null,null,null,null,null,null,null,null,null,null,null,null,null,null,null,"Requisitos de calidad ",null,null,null,null,"Comentarios - ruta de evidencia ",null,null,null,null,null,null,null,null,null,null,"Peso ","Logro %",null,"Puntaje "]
[{"$f":"+'1.2.3. CONCERTACIÓN'!A9","v":1},{"$f":"'1.2.3. CONCERTACIÓN'!F9","v":0},null,null,null,null,null,null,null,null,null,null,null,{"$f":"+'1.2.3. CONCERTACIÓN'!Y9","v":0},null,null,null,null,null,null,null,null,null,null,null,null,null,null,null,{"$f":"+'1.2.3. CONCERTACIÓN'!N9","v":0},null,null,null,null,null,null,null,null,null,null,null,null,null,null,null,{"$f":"'1.2.3. CONCERTACIÓN'!AF9","v":0},null,null,{"$f":"(AT12*AU12)","v":0}]
[null,null,null,null,null,null,null,null,null,null,null,null,null,null,null,null,null,null,null,null,null,null,null,null,null,null,null,null,null,{"$f":"+'1.2.3. CONCERTACIÓN'!N10","v":0}]
[null,null,null,null,null,null,null,null,null,null,null,null,null,null,null,null,null,null,null,null,null,null,null,null,null,null,null,null,null,{"$f":"+'1.2.3. CONCERTACIÓN'!N11","v":0}]
[null,null,null,null,null,null,null,null,null,null,null,null,null,null,null,null,null,null,null,null,null,null,null,null,null,null,null,null,null,{"$f":"+'1.2.3. CONCERTACIÓN'!N12","v":0}]
[{"$f":"+'1.2.3. CONCERTACIÓN'!A13","v":2},{"$f":"'1.2.3. CONCERTACIÓN'!F13","v":0},null,null,null,null,null,null,null,null,null,null,null,{"$f":"+'1.2.3. CONCERTACIÓN'!Y13","v":0},null,null,null,null,null,null,null,null,null,null,null,null,null,null,null,{"$f":"+'1.2.3. CONCERTACIÓN'!N13","v":0},null,null,null,null,null,null,null,null,null,null,null,null,null,null,null,{"$f":"'1.2.3. CONCERTACIÓN'!AF13","v":0},null,null,{"$f":"(AT16*AU16)","v":0}]
[null,null,null,null,null,null,null,null,null,null,null,null,null,null,null,null,null,null,null,null,null,null,null,null,null,null,null,null,null,{"$f":"+'1.2.3. CONCERTACIÓN'!N14","v":0}]
[null,null,null,null,null,null,null,null,null,null,null,null,null,null,null,null,null,null,null,null,null,null,null,null,null,null,null,null,null,{"$f":"+'1.2.3. CONCERTACIÓN'!N15","v":0}]
[null,null,null,null,null,null,null,null,null,null,null,null,null,null,null,null,null,null,null,null,null,null,null,null,null,null,null,null,null,{"$f":"+'1.2.3. CONCERTACIÓN'!N16","v":0}]
[{"$f":"+'1.2.3. CONCERTACIÓN'!A17","v":3},{"$f":"'1.2.3. CONCERTACIÓN'!F17","v":0},null,null,null,null,null,null,null,null,null,null,null,{"$f":"+'1.2.3. CONCERTACIÓN'!Y17","v":0},null,null,null,null,null,null,null,null,null,null,null,null,null,null,null,{"$f":"+'1.2.3. CONCERTACIÓN'!N17","v":0},null,null,null,null,null,null,null,null,null,null,null,null,null,null,null,{"$f":"'1.2.3. CONCERTACIÓN'!AF17","v":0},null,null,{"$f":"(AT20*AU20)","v":0}]
[null,null,null,null,null,null,null,null,null,null,null,null,null,null,null,null,null,null,null,null,null,null,null,null,null,null,null,null,null,{"$f":"+'1.2.3. CONCERTACIÓN'!N18","v":0}]
[null,null,null,null,null,null,null,null,null,null,null,null,null,null,null,null,null,null,null,null,null,null,null,null,null,null,null,null,null,{"$f":"+'1.2.3. CONCERTACIÓN'!N19","v":0}]
[null,null,null,null,null,null,null,null,null,null,null,null,null,null,null,null,null,null,null,null,null,null,null,null,null,null,null,null,null,{"$f":"+'1.2.3. CONCERTACIÓN'!N20","v":0}]
[{"$f":"+'1.2.3. CONCERTACIÓN'!A21","v":4},{"$f":"'1.2.3. CONCERTACIÓN'!F21","v":0},null,null,null,null,null,null,null,null,null,null,null,{"$f":"+'1.2.3. CONCERTACIÓN'!Y21","v":0},null,null,null,null,null,null,null,null,null,null,null,null,null,null,null,{"$f":"+'1.2.3. CONCERTACIÓN'!N21","v":0},null,null,null,null,null,null,null,null,null,null,null,null,null,null,null,{"$f":"'1.2.3. CONCERTACIÓN'!AF21","v":0},null,null,{"$f":"(AT24*AU24)","v":0}]
[null,null,null,null,null,null,null,null,null,null,null,null,null,null,null,null,null,null,null,null,null,null,null,null,null,null,null,null,null,{"$f":"+'1.2.3. CONCERTACIÓN'!N22","v":0}]
[null,null,null,null,null,null,null,null,null,null,null,null,null,null,null,null,null,null,null,null,null,null,null,null,null,null,null,null,null,{"$f":"+'1.2.3. CONCERTACIÓN'!N23","v":0}]
[null,null,null,null,null,null,null,null,null,null,null,null,null,null,null,null,null,null,null,null,null,null,null,null,null,null,null,null,null,{"$f":"+'1.2.3. CONCERTACIÓN'!N24","v":0}]
[{"$f":"+'1.2.3. CONCERTACIÓN'!A25","v":5},{"$f":"'1.2.3. CONCERTACIÓN'!F25","v":0},null,null,null,null,null,null,null,null,null,null,null,{"$f":"+'1.2.3. CONCERTACIÓN'!Y25","v":0},null,null,null,null,null,null,null,null,null,null,null,null,null,null,null,{"$f":"+'1.2.3. CONCERTACIÓN'!N25","v":0},null,null,null,null,null,null,null,null,null,null,null,null,null,null,null,{"$f":"'1.2.3. CONCERTACIÓN'!AF25","v":0},null,null,{"$f":"(AT28*AU28)","v":0}]
[null,null,null,null,null,null,null,null,null,null,null,null,null,null,null,null,null,null,null,null,null,null,null,null,null,null,null,null,null,{"$f":"+'1.2.3. CONCERTACIÓN'!N26","v":0}]
[null,null,null,null,null,null,null,null,null,null,null,null,null,null,null,null,null,null,null,null,null,null,null,null,null,null,null,null,null,{"$f":"+'1.2.3. CONCERTACIÓN'!N27","v":0}]
[null,null,null,null,null,null,null,null,null,null,null,null,null,null,null,null,null,null,null,null,null,null,null,null,null,null,null,null,null,{"$f":"+'1.2.3. CONCERTACIÓN'!N28","v":0}]
[null,null,null,null,null,null,null,null,null,null,null,null,null,null,null,null,null,null,null,null,null,null,null,null,null,null,null,null,null,null,null,null,null,null,null,null,null,null,null,null,null,null,null,null,null,{"$f":"IF(SUM(AT11:AT31)<>100,\"Numero no puede ser mayor ni menor que 100\",SUM(AT11:AT31))","v":"Numero no puede ser mayor ni menor que 100"},null,null,{"$f":"SUM(AW12:AW31)","v":0}]
["TOTAL COMPROMISOS LABORALES "]
["5.6 Compromisos comportales fijados ",null,null,null,null,null,null,null,null,null,null,null,null,null,null,null,null,null,null,null,null,null,null,null,null,null,null,null,null,null,null,null,"5.7. Seguimiento compromisos comportamentales "]
["N° ","Nivel jerárquico ",null,null,null,null,null,null,null,null,"Competencias comportamentales ",null,null,null,null,null,null,null,null,null,"Conducta asociada ",null,null,null,null,null,null,null,null,null,null,null,"Niveles de frecuencia ",null,null,null,null,null,null,null,null,"Descripción ",null,null,null,"Resultado cuantitativo "]
[{"$f":"+'1.2.3. CONCERTACIÓN'!A32","v":1},{"$f":"+'1.2.3. CONCERTACIÓN'!C32","v":0},null,null,null,null,null,null,null,null,{"$f":"+'1.2.3. CONCERTACIÓN'!H32","v":0},null,null,null,null,null,null,null,null,null,{"$f":"+'1.2.3. CONCERTACIÓN'!R32","v":0},null,null,null,null,null,null,null,null,null,null,null,"Siempre",null,null,null,null,null,null,null,null,{"$f":"IF(AG36='lista de selecciones'!I181,'lista de selecciones'!J181,IF(AG36='lista de selecciones'!I182,'lista de selecciones'!J182,IF(AG36='lista de selecciones'!I183,'lista de selecciones'!J183,IF(AG36='lista de selecciones'!I184,'lista de selecciones'!J184,0))))","v":"Cumple totalmente con la competencia comportamental de manera constante y suficiente."},null,null,null,{"$f":"IF(AG36='lista de selecciones'!$I$181,'lista de selecciones'!$K$181,IF(AG36='lista de selecciones'!$I$182,'lista de selecciones'!$K$182,IF(AG36='lista de selecciones'!$I$183,'lista de selecciones'!$K$183,IF(AG36='lista de selecciones'!$I$184,'lista de selecciones'!$K$184,0))))","v":10}]
[{"$f":"+'1.2.3. CONCERTACIÓN'!A33","v":2},{"$f":"B36","v":0},null,null,null,null,null,null,null,null,{"$f":"+'1.2.3. CONCERTACIÓN'!H33","v":0},null,null,null,null,null,null,null,null,null,{"$f":"+'1.2.3. CONCERTACIÓN'!R33","v":0},null,null,null,null,null,null,null,null,null,null,null,"Siempre",null,null,null,null,null,null,null,null,{"$f":"IF(AG37='lista de selecciones'!I181,'lista de selecciones'!J181,IF(AG37='lista de selecciones'!I182,'lista de selecciones'!J182,IF(AG37='lista de selecciones'!I183,'lista de selecciones'!J183,IF(AG37='lista de selecciones'!I184,'lista de selecciones'!J184,0))))","v":"Cumple totalmente con la competencia comportamental de manera constante y suficiente."},null,null,null,{"$f":"IF(AG37='lista de selecciones'!$I$181,'lista de selecciones'!$K$181,IF(AG37='lista de selecciones'!$I$182,'lista de selecciones'!$K$182,IF(AG37='lista de selecciones'!$I$183,'lista de selecciones'!$K$183,IF(AG37='lista de selecciones'!$I$184,'lista de selecciones'!$K$184,0))))","v":10}]
[{"$f":"+'1.2.3. CONCERTACIÓN'!A34","v":3},{"$f":"B36","v":0},null,null,null,null,null,null,null,null,{"$f":"+'1.2.3. CONCERTACIÓN'!H34","v":0},null,null,null,null,null,null,null,null,null,{"$f":"+'1.2.3. CONCERTACIÓN'!R34","v":0},null,null,null,null,null,null,null,null,null,null,null,"Siempre",null,null,null,null,null,null,null,null,{"$f":"IF(AG38='lista de selecciones'!I181,'lista de selecciones'!J181,IF(AG38='lista de selecciones'!I183,'lista de selecciones'!J183,IF(AG38='lista de selecciones'!I184,'lista de selecciones'!J184,IF(AG38='lista de selecciones'!I185,'lista de selecciones'!J185,0))))","v":"Cumple totalmente con la competencia comportamental de manera constante y suficiente."},null,null,null,{"$f":"IF(AG38='lista de selecciones'!$I$181,'lista de selecciones'!$K$181,IF(AG38='lista de selecciones'!$I$182,'lista de selecciones'!$K$182,IF(AG38='lista de selecciones'!$I$183,'lista de selecciones'!$K$183,IF(AG38='lista de selecciones'!$I$184,'lista de selecciones'!$K$184,0))))","v":10}]
[{"$f":"+'1.2.3. CONCERTACIÓN'!A35","v":4},{"$f":"B37","v":0},null,null,null,null,null,null,null,null,{"$f":"+'1.2.3. CONCERTACIÓN'!H35","v":0},null,null,null,null,null,null,null,null,null,{"$f":"+'1.2.3. CONCERTACIÓN'!R35","v":0},null,null,null,null,null,null,null,null,null,null,null,"Siempre",null,null,null,null,null,null,null,null,{"$f":"IF(AG39='lista de selecciones'!I181,'lista de selecciones'!J181,IF(AG39='lista de selecciones'!I182,'lista de selecciones'!J182,IF(AG39='lista de selecciones'!I183,'lista de selecciones'!J183,IF(AG39='lista de selecciones'!I184,'lista de selecciones'!J184,0))))","v":"Cumple totalmente con la competencia comportamental de manera constante y suficiente."},null,null,null,{"$f":"IF(AG39='lista de selecciones'!$I$181,'lista de selecciones'!$K$181,IF(AG39='lista de selecciones'!$I$182,'lista de selecciones'!$K$182,IF(AG39='lista de selecciones'!$I$183,'lista de selecciones'!$K$183,IF(AG39='lista de selecciones'!$I$184,'lista de selecciones'!$K$184,0))))","v":10}]
["TOTAL COMPROMISOS COMPORTAMENTALES ",null,null,null,null,null,null,null,null,null,null,null,null,null,null,null,null,null,null,null,null,null,null,null,null,null,null,null,null,null,null,null,null,null,null,null,null,null,null,null,null,null,null,null,null,{"$f":"SUM(AT36:AW39)/4","v":10}]
["EVALUACIONES EVENTUALES PARA COMPROMISOS LABORALES",null,null,null,null,null,null,null,null,null,null,null,null,null,{"$f":"+'11. EVALUACION EVENTUAL (sem2)'!M23","v":0},null,null,null,null,"EVALUACIONES EVENTUALES PARA COMPROMISOS COMPORTAMENTALES ",null,null,null,null,null,null,null,null,null,null,null,null,null,null,null,{"$f":"+'11. EVALUACION EVENTUAL (sem2)'!M39","v":0},null,null,null,null,"Total de evaluación eventual ",null,null,null,null,{"$f":"+O41+AJ41","v":0}]
["CALIFICACIÓN EVALUACIÓN COMPROMISOS LABORALES SEGUNDO SEMESTRE (Sobre 80%) ",null,null,null,null,null,null,null,null,null,null,null,null,null,{"$f":"+AW32*80%","v":0},null,null,null,null,"CALIFICACIÓN TOTAL COMPETENCIAS COMPORTAMENTALES SEGUNDO SEMESTRE (Sobre 20%) ",null,null,null,null,null,null,null,null,null,null,null,null,null,null,null,{"$f":"+(AT40*20%)*10","v":20},null,null,null,null,"5. 8 TOTAL DE LA CALIFICACIÓN SEMESTRE 2",null,null,null,null,{"$f":"IF(AT41>1,((AVERAGE(O41,AJ41))+(AVERAGE(O42,AJ42))),(AVERAGE(O42+AJ42)))","v":20}]
["5.9 Datos generales "]
["FECHA DE DILIGENCIAMIENTO",null,null,null,null,null,null,null,null,null,null,null,"2025-01-27"]
[null,null,null,null,null,null,null,null,null,null,null,null,"EMPLEADO A EVALUAR",null,null,null,null,null,null,null,null,null,null,null,null,"JEFE INMEDIATO (PRIMER EVALUADOR)",null,null,null,null,null,null,null,null,null,null,null,null,null,null,null,"SEGUNDO EVALUADOR \n"]
["NOMBRE COMPLETO",null,null,null,null,null,null,null,null,null,null,null,{"$f":"+'1.2.3. CONCERTACIÓN'!J39","v":0},null,null,null,null,null,null,null,null,null,null,null,null,{"$f":"'1.2.3. CONCERTACIÓN'!P39","v":0},null,null,null,null,null,null,null,null,null,null,null,null,null,null,null,{"$f":"'1.2.3. CONCERTACIÓN'!Z39","v":0}]
["NUMERO DE DOCUMENTO IDENTIDAD",null,null,null,null,null,null,null,null,null,null,null,{"$f":"'1.2.3. CONCERTACIÓN'!J40","v":0},null,null,null,null,null,null,null,null,null,null,null,null,{"$f":"'1.2.3. CONCERTACIÓN'!P40","v":0},null,null,null,null,null,null,null,null,null,null,null,null,null,null,null,{"$f":"'1.2.3. CONCERTACIÓN'!Z40","v":0}]
["CARGO (DENOMINACIÓN-CÓDIGO-GRADO)",null,null,null,null,null,null,null,null,null,null,null,{"$f":"'1.2.3. CONCERTACIÓN'!J41","v":0},null,null,null,null,null,null,null,null,null,null,null,null,{"$f":"'1.2.3. CONCERTACIÓN'!P41","v":0},null,null,null,null,null,null,null,null,null,null,null,null,null,null,null,{"$f":"'1.2.3. CONCERTACIÓN'!Z41","v":0}]
["DEPENDENCIA",null,null,null,null,null,null,null,null,null,null,null,{"$f":"'1.2.3. CONCERTACIÓN'!J42","v":0},null,null,null,null,null,null,null,null,null,null,null,null,{"$f":"'1.2.3. CONCERTACIÓN'!P42","v":0},null,null,null,null,null,null,null,null,null,null,null,null,null,null,null,{"$f":"'1.2.3. CONCERTACIÓN'!Z42","v":0}]
["FIRMAS"]
["5.10 Observaciones "]

{"sheet":"3. COMPORTAMENTALES","index":6,"n_rows":20,"n_cols":11,"rows_kept":20,"cut":false,"hidden":true,"merged":[[0,0,4,1],[0,2,4,8],[5,0,5,8],[14,0,14,8],[7,3,7,5],[13,3,13,4],[13,6,13,7],[6,0,6,2],[6,3,6,8],[7,1,8,1],[7,2,8,2],[7,0,8,0],[7,6,7,8],[19,0,19,8],[20,0,23,8],[18,0,18,1],[18,3,18,5],[15,3,15,5],[16,3,16,5],[17,3,17,5],[18,6,18,8],[17,0,17,1],[15,0,16,1],[15,6,15,8],[16,6,16,8],[17,6,17,8]]}
[null,null,"EVALUACIÓN DEL DESEMPEÑO PARA SERVIDORES DE CARRERA ADMINISTRATIVA, LIBRE NOMBRAMIENTO Y REMOCIÓN "]
[]
[]
[]
[]
[" 3. COMPROMISOS COMPORTAMENTALES"]
["3.1 COMPROMISOS COMPORTAMENTALES FIJADOS",null,null,"3.2 SEGUIMIENTO COMPROMISOS COMPORTAMENTALES"]
["Nivel Jerarquico","Competencia","Conducta Asociada","I SEMESTRE",null,null,"II SEMESTRE"]
[null,null,null,"Periodo","Niveles de Desarrollo","Resultado Cuantitativo","Periodo","Niveles de Desarrollo","Resultado Cuantitativo"]
[{"$f":"'1.2.3. CONCERTACIÓN'!AC5","v":0},{"$f":"+'1.2.3. CONCERTACIÓN'!H32","v":0},{"$f":"+'1.2.3. CONCERTACIÓN'!R32","v":0},null,null,null,null,null,null,null,"DEFINICION DE A COMPETENCIA - ASOCIA TODAS LAS CONDUCTAS "]
[{"$f":"A10","v":0},{"$f":"+'1.2.3. CONCERTACIÓN'!H33","v":0},{"$f":"+'1.2.3. CONCERTACIÓN'!R33","v":0}]
[{"$f":"A10","v":0},{"$f":"+'1.2.3. CONCERTACIÓN'!H34","v":0},{"$f":"+'1.2.3. CONCERTACIÓN'!R34","v":0}]
[{"$f":"A11","v":0},{"$f":"+'1.2.3. CONCERTACIÓN'!H35","v":0},{"$f":"+'1.2.3. CONCERTACIÓN'!R35","v":0}]
[null,null,null,"Total ",null,{"$f":"SUM(F10:F13)/4","v":0},"Total ",null,{"$f":"SUM(I10:I13)/4","v":0}]
["3.3 DATOS GENERALES"]
["NOMBRE COMPLETO",null,"EMPLEADO A EVALUAR","JEFE INMEDIATO (PRIMER EVALUADOR)",null,null,"SEGUNDO EVALUADOR \n(Si lo hay)"]
[null,null,{"$f":"'1.2.3. CONCERTACIÓN'!J39","v":0},{"$f":"'1.2.3. CONCERTACIÓN'!P39","v":0},null,null,{"$f":"'1.2.3. CONCERTACIÓN'!R39","v":0}]
["DEPENDENCIA",null,{"$f":"'1.2.3. CONCERTACIÓN'!J42","v":0},{"$f":"'1.2.3. CONCERTACIÓN'!P42","v":0},null,null,{"$f":"'1.2.3. CONCERTACIÓN'!R42","v":0}]
["FIRMAS"]
["3.4 OBSERVACIONES"]

{"sheet":"INFORMACIÓN GENERAL","index":7,"n_rows":76,"n_cols":23,"rows_kept":76,"cut":false,"hidden":true,"merged":[[44,0,44,22],[45,0,45,22],[4,0,4,11],[40,1,40,8],[41,1,41,9],[41,14,41,22],[42,1,42,9],[43,1,43,9],[43,14,43,22],[35,0,35,22],[33,0,33,2],[33,3,33,10],[33,11,33,17],[33,18,33,22],[34,0,34,2],[34,3,34,10],[34,11,34,17],[34,18,34,22],[36,0,37,22],[30,0,30,2],[30,3,30,10],[30,11,30,17],[30,18,30,22],[31,0,31,2],[31,3,31,10],[31,11,31,17],[31,18,31,22],[38,0,38,7],[38,9,38,10],[38,11,38,12],[38,13,38,17],[38,21,38,22],[25,5,26,7],[25,8,26,11],[25,12,26,17],[25,18,26,22],[27,0,27,22],[28,0,28,2],[28,3,28,22],[29,0,29,2],[29,3,29,10],[29,11,29,17],[29,18,29,22],[72,1,72,4],[72,5,72,6],[72,7,72,8],[72,11,72,14],[21,17,21,18],[21,19,21,21],[19,19,19,21],[20,0,20,1],[20,2,20,4],[20,5,20,9],[20,10,20,12],[20,13,20,14],[20,15,20,16],[20,17,20,18],[21,0,21,1],[21,2,21,4],[21,5,21,9],[21,10,21,12],[21,13,21,14],[21,15,21,16],[22,0,22,9],[22,10,22,14],[22,15,22,16],[22,17,22,21],[73,0,73,4],[73,5,73,6],[73,7,73,8],[73,9,75,10],[73,11,73,14],[74,0,74,4],[74,5,74,6],[74,7,74,8],[74,11,75,18],[75,0,75,4],[75,5,75,8],[73,15,73,18],[65,0,66,10],[65,11,66,13],[65,14,66,14],[65,15,66,17],[65,18,66,18],[67,0,67,8],[67,9,72,10],[67,11,67,18],[68,0,68,4],[68,5,68,6],[68,7,68,8],[68,11,69,14],[68,15,69,18],[69,1,69,4],[69,5,69,6],[69,7,69,8],[70,1,70,4],[70,5,70,6],[70,7,70,8],[70,11,71,18],[71,1,71,4],[71,5,71,6],[71,7,71,8],[72,15,72,18],[61,0,61,8],[61,9,61,10],[61,11,61,13],[61,15,61,17],[62,0,62,10],[62,11,62,13],[62,15,62,17],[63,0,64,10],[63,11,63,18],[64,11,64,14],[64,15,64,18],[59,0,60,3],[59,4,60,8],[59,9,60,10],[59,11,60,12],[59,13,60,14],[59,15,60,16],[59,17,60,18],[57,0,58,3],[57,4,58,8],[57,9,58,10],[57,11,58,12],[57,13,58,14],[57,15,58,16],[53,17,54,18],[55,0,56,3],[55,4,56,8],[55,9,56,10],[55,11,56,12],[55,13,56,14],[57,17,58,18],[51,0,52,3],[51,4,52,8],[51,9,52,10],[51,11,52,12],[51,13,52,14],[51,15,52,16],[51,17,52,18],[55,15,56,16],[55,17,56,18],[53,0,54,3],[53,4,54,8],[53,9,54,10],[53,11,54,12],[53,13,54,14],[53,15,54,16],[47,0,50,3],[47,4,50,8],[47,9,50,10],[47,11,48,18],[49,11,49,14],[49,15,49,18],[50,11,50,12],[50,13,50,14],[50,15,50,16],[50,17,50,18],[0,7,0,18],[1,0,1,2],[1,3,1,8],[1,9,1,10],[1,11,1,20],[2,11,2,13],[2,15,3,20],[1,21,1,22],[46,0,46,18],[20,19,20,21],[32,0,32,2],[32,3,32,10],[32,11,32,17],[32,18,32,22],[23,0,24,2],[23,3,23,7],[23,8,23,10],[23,11,24,11],[23,12,24,13],[23,14,24,20],[23,21,24,22],[24,3,24,7],[24,8,24,10],[25,0,26,4],[2,21,3,22],[3,1,3,2],[3,3,3,4],[3,5,3,6],[3,7,3,8],[3,9,3,10],[3,11,3,13],[7,0,7,4],[7,5,7,11],[2,0,3,0],[2,1,2,2],[2,3,2,4],[2,5,2,6],[2,7,2,8],[2,9,2,10],[8,0,8,4],[8,5,8,11],[9,0,9,4],[9,5,9,11],[4,12,4,14],[4,15,4,16],[5,0,5,4],[5,5,5,11],[6,0,6,4],[6,5,6,11],[13,12,14,13],[13,14,14,20],[14,3,14,7],[14,8,14,10],[13,21,14,22],[15,0,15,9],[15,14,15,22],[10,0,10,4],[10,5,10,11],[11,0,11,4],[11,5,11,11],[13,0,14,2],[13,3,13,7],[13,8,13,10],[13,11,14,11],[16,0,17,1],[16,2,17,4],[16,5,17,9],[16,10,16,16],[16,17,16,22],[17,10,17,12],[17,13,17,14],[17,15,17,16],[17,17,17,18],[17,19,17,21],[18,17,18,18],[18,19,18,21],[19,0,19,1],[19,2,19,4],[19,5,19,9],[19,10,19,12],[19,13,19,14],[19,15,19,16],[19,17,19,18],[18,0,18,1],[18,2,18,4],[18,5,18,9],[18,10,18,12],[18,13,18,14],[18,15,18,16]]}
[null,null,null,null,null,null,null,"EVALUACIÓN DEL DESEMPEÑO PARA SERVIDORES DE CARRERA ADMINISTRATIVA, LIBRE NOMBRAMIENTO Y REMOCIÓN "]
["2.1 TIPO DE EMPLEO",null,null,"CARRERA ADMINISTRATIVA",null,null,null,null,null,{"$f":"'1.2.3. CONCERTACIÓN'!#REF!","v":{"$error":"#REF!"}},null,"LIBRE NOMBRAMIENTO Y REMOCIÓN (LNR)\n(Seguimiento cumplimiento de funciones empleados)",null,null,null,null,null,null,null,null,null,{"$f":"'1.2.3. CONCERTACIÓN'!#REF!","v":{"$error":"#REF!"}}]
["2.2 FECHA DE EVALUACIÓN ","Previa a la Extraordinaria (Si hubo)",null,"DESDE",null,null,null,"HASTA ",null,null,null,"No. DÍAS EVALUADOS ",null,null,{"$f":"IF((J3-F3+1)=1,0,J3-F3+1)","v":0},"2.3 NIVEL DEL EMPLEO",null,null,null,null,null,{"$f":"'1.2.3. CONCERTACIÓN'!#REF!","v":{"$error":"#REF!"}}]
[null,"Evaluación último Período",null,"DESDE",null,null,null,"HASTA ",null,null,null,"No. DÍAS EVALUADOS ",null,null,{"$f":"IF((J4-F4+1)=1,0,J4-F4+1)","v":0}]
["EVALUACION DE COMPROMISOS LABORALES",null,null,null,null,null,null,null,null,null,null,null," EVALUACIÓN REALIZADA PRIMER PARCIAL SEMESTRAL",null,null,"EVALUACIÓN REALIZADA SEGUNDA PARCIAL SEMESTRAL"]
["COMPROMISO LABORAL",null,null,null,null,"EVIDENCIA DEL CUMPLIMIENTO DEL COMPROMISO",null,null,null,null,null,null,"PESO","CALIFICACION DEL COMPROMISO","CALIFICACIÓN DEL COMPROMISO (Con peso porcentual)","CALIFICACION DEL COMPROMISO","CALIFICACIÓN DEL COMPROMISO (Con peso porcentual)"]
[{"$f":"'1.2.3. CONCERTACIÓN'!F4","v":0},null,null,null,null,{"$f":"+'1.2.3. CONCERTACIÓN'!Y4","v":0},null,null,null,null,null,null,20,20,{"$f":"+(M7/N7)*100","v":100},5,{"$f":"+M7*P7","v":100}]
[{"$f":"'1.2.3. CONCERTACIÓN'!F5","v":0},null,null,null,null,{"$f":"+'1.2.3. CONCERTACIÓN'!Y5","v":0},null,null,null,null,null,null,20,20,{"$f":"+M8*N8","v":400},null,0]
[{"$f":"'1.2.3. CONCERTACIÓN'!F6","v":0},null,null,null,null,{"$f":"+'1.2.3. CONCERTACIÓN'!Y6","v":0},null,null,null,null,null,null,20,20,{"$f":"+M9*N9","v":400},null,0]
[{"$f":"'1.2.3. CONCERTACIÓN'!F7","v":0},null,null,null,null,{"$f":"+'1.2.3. CONCERTACIÓN'!Y7","v":0},null,null,null,null,null,null,20,20,{"$f":"+M10*N10","v":400},null,0]
[{"$f":"'1.2.3. CONCERTACIÓN'!F8","v":"Compromisos Laborales"},null,null,null,null,{"$f":"+'1.2.3. CONCERTACIÓN'!Y8","v":"Evidencia Del Cumplimiento Del Compromiso"},null,null,null,null,null,null,20,20,{"$f":"+M11*N11","v":400},null,0]
[{"$f":"'1.2.3. CONCERTACIÓN'!F9","v":0},null,null,null,null,{"$f":"+'1.2.3. CONCERTACIÓN'!Y9","v":0},null,null,null,null,null,null,{"$f":"+'1.2.3. CONCERTACIÓN'!$AF$9","v":0},null,{"$f":"+M12*N12","v":0},null,0]
[" TOTAL",null,null,null,null,null,null,null,null,null,null,null,{"$f":"IF(SUM(M7:M12)>100,\"NUMERO ESPERADO NO PUEDE SER MAYOR QUE 100\",SUM(M7:M12))","v":100},null,{"$f":"IF(SUM(O7:O12)>100,\"NUMERO ESPERADO NO PUEDE SER MAYOR QUE 100\",SUM(O7:O12))","v":"NUMERO ESPERADO NO PUEDE SER MAYOR QUE 100"},{"$f":"IF(SUM(P7:P12)>100,\"NUMERO ESPERADO NO PUEDE SER MAYOR QUE 100\",SUM(P7:P12))","v":5},{"$f":"IF(SUM(Q7:Q12)>100,\"NUMERO ESPERADO NO PUEDE SER MAYOR QUE 100\",SUM(Q7:Q12))","v":100}]
["% Participación Días Laborados para la Evaluación Extraordinaria",null,null,"Previa a la Extraordinaria (Si hubo)",null,null,null,null,{"$f":"IFERROR(+P3/(#REF!+$O$14),0)","v":0},null,null,"Sobre 100%",{"$f":"(O13*I14+#REF!*I15)","v":{"$error":"#VALUE!"}},null,"CALIFICACIÓN EVALUACIÒN PRIMER SEMESTRE (Sobre 100) ",null,null,null,null,null,null,{"$f":"+M14*80%","v":{"$error":"#VALUE!"}}]
[null,null,null,"Evaluación último Período",null,null,null,null,{"$f":"IFERROR(+Q4/(#REF!+$O$14),0)","v":0}]
["3.1 COMPROMISOS COMPORTAMENTALES FIJADOS"]
["N°",null,"Competencias comportamentales",null,null,"Conducta Asociada",null,null,null,null,"Eva. Previa a la EXTR.\n(Si hubo)",null,null,null,null,null,null,"Eva. Último período."]
[null,null,null,null,null,null,null,null,null,null,"Niveles de Desarrollo",null,null,"Descripción Cualitativa",null,"Resultado Cuantitativo",null,"Niveles de Desarrollo",null,"Descripción Cualitativa",null,null,"Resultado Cuantitativo"]
[{"$f":"+'1.2.3. CONCERTACIÓN'!C21","v":0},null,{"$f":"+'1.2.3. CONCERTACIÓN'!L21","v":0},null,null,{"$f":"+'1.2.3. CONCERTACIÓN'!V21","v":0},null,null,null,null,"bajo_ppye",null,null,{"$f":"IF('9. EVALUACIÓN PERIODO DE PRUEBA'!K30='lista de selecciones'!I183,'lista de selecciones'!J183,IF('9. EVALUACIÓN PERIODO DE PRUEBA'!K30='lista de selecciones'!I184,'lista de selecciones'!J184,IF('9. EVALUACIÓN PERIODO DE PRUEBA'!K30='lista de selecciones'!I185,'lista de selecciones'!J185,IF('9. EVALUACIÓN PERIODO DE PRUEBA'!K30='lista de selecciones'!I186,'lista de selecciones'!J186,0))))","v":0},null,6,null,"bajo_ppye",null,{"$f":"IF(R19='lista de selecciones'!I183,'lista de selecciones'!J183,IF(R19='lista de selecciones'!I184,'lista de selecciones'!J184,IF(R19='lista de selecciones'!I185,'lista de selecciones'!J185,IF(R19='lista de selecciones'!I186,'lista de selecciones'!J186,0))))","v":0},null,null,5.5]
[{"$f":"A19","v":0},null,{"$f":"+'1.2.3. CONCERTACIÓN'!#REF!","v":{"$error":"#REF!"}},null,null,{"$f":"+'1.2.3. CONCERTACIÓN'!#REF!","v":{"$error":"#REF!"}},null,null,null,null,"alto_ppye",null,null,{"$f":"IF('9. EVALUACIÓN PERIODO DE PRUEBA'!K31='lista de selecciones'!I184,'lista de selecciones'!J184,IF('9. EVALUACIÓN PERIODO DE PRUEBA'!K31='lista de selecciones'!I185,'lista de selecciones'!J185,IF('9. EVALUACIÓN PERIODO DE PRUEBA'!K31='lista de selecciones'!I186,'lista de selecciones'!J186,IF('9. EVALUACIÓN PERIODO DE PRUEBA'!K31='lista de selecciones'!I187,'lista de selecciones'!J187,0))))","v":0},null,null,null,"aceptable_ppye",null,{"$f":"IF(R20='lista de selecciones'!I184,'lista de selecciones'!J184,IF(R20='lista de selecciones'!I185,'lista de selecciones'!J185,IF(R20='lista de selecciones'!I186,'lista de selecciones'!J186,IF(R20='lista de selecciones'!I187,'lista de selecciones'!J187,0))))","v":0},null,null,8]
[{"$f":"A19","v":0},null,{"$f":"+'1.2.3. CONCERTACIÓN'!L29","v":0},null,null,{"$f":"+'1.2.3. CONCERTACIÓN'!V29","v":0},null,null,null,null,"alto_ppye",null,null,{"$f":"IF('9. EVALUACIÓN PERIODO DE PRUEBA'!K32='lista de selecciones'!I185,'lista de selecciones'!J185,IF('9. EVALUACIÓN PERIODO DE PRUEBA'!K32='lista de selecciones'!I186,'lista de selecciones'!J186,IF('9. EVALUACIÓN PERIODO DE PRUEBA'!K32='lista de selecciones'!I187,'lista de selecciones'!J187,IF('9. EVALUACIÓN PERIODO DE PRUEBA'!K32='lista de selecciones'!I188,'lista de selecciones'!J188,0))))","v":0},null,12,null,"muy_alto_ppye",null,{"$f":"IF(R21='lista de selecciones'!I185,'lista de selecciones'!J185,IF(R21='lista de selecciones'!I186,'lista de selecciones'!J186,IF(R21='lista de selecciones'!I187,'lista de selecciones'!J187,IF(R21='lista de selecciones'!I188,'lista de selecciones'!J188,0))))","v":0},null,null,15]
[{"$f":"A20","v":0},null,{"$f":"+'1.2.3. CONCERTACIÓN'!L30","v":0},null,null,{"$f":"+'1.2.3. CONCERTACIÓN'!V30","v":0},null,null,null,null,"muy_alto_ppye",null,null,{"$f":"IF('9. EVALUACIÓN PERIODO DE PRUEBA'!K33='lista de selecciones'!I186,'lista de selecciones'!J186,IF('9. EVALUACIÓN PERIODO DE PRUEBA'!K33='lista de selecciones'!I187,'lista de selecciones'!J187,IF('9. EVALUACIÓN PERIODO DE PRUEBA'!K33='lista de selecciones'!I188,'lista de selecciones'!J188,IF('9. EVALUACIÓN PERIODO DE PRUEBA'!K33='lista de selecciones'!I189,'lista de selecciones'!J189,0))))","v":0},null,null,null,"muy_alto_ppye",null,{"$f":"IF(R22='lista de selecciones'!I183,'lista de selecciones'!J183,IF('9. EVALUACIÓN PERIODO DE PRUEBA'!R33='lista de selecciones'!I184,'lista de selecciones'!J184,IF('9. EVALUACIÓN PERIODO DE PRUEBA'!R33='lista de selecciones'!I185,'lista de selecciones'!J185,IF('9. EVALUACIÓN PERIODO DE PRUEBA'!R33='lista de selecciones'!I186,'lista de selecciones'!J186,0))))","v":0},null,null,15]
[null,null,null,null,null,null,null,null,null,null,"Total ",null,null,null,null,{"$f":"SUM(P19:W22)/4","v":15.375},null,"Total ",null,null,null,null,{"$f":"SUM(W19:W22)/4","v":10.875}]
["% Participación Días Laborados para la Evaluación Extraordinaria",null,null,"Previa a la Extraordinaria (Si hubo)",null,null,null,null,{"$f":"IFERROR(+#REF!/(#REF!+$O$14),0)","v":0},null,null,"Sobre 100%",{"$f":"(P23*I24+W23*I25)","v":0},null,null,null,null,null,null,null,null,{"$f":"+M14*20%","v":{"$error":"#VALUE!"}}]
[null,null,null,"Evaluación último Período",null,null,null,null,{"$f":"IFERROR(+O14/(#REF!+$O$14),0)","v":0}]
["RESULTADOS CONSOLIDADOS EVALUACIÓN EXTRAORDINARIA",null,null,null,null,"Resultados ",null,null,{"$f":"SUM(V14,V24)","v":{"$error":"#VALUE!"}},null,null,null,"NIVEL DE CALIFICACIÓN",null,null,null,null,null,{"$f":"IF(I26<=69,'lista de selecciones'!A153,IF(I26<80,'lista de selecciones'!A152,IF(I26<95,'lista de selecciones'!A151,IF(I26>=95,'lista de selecciones'!A150))))","v":{"$error":"#VALUE!"}}]
[]
["NOTIFICACIÓN"]
["LUGAR Y FECHA DE DILIGENCIAMIENTO"]
[null,null,null,"EMPLEADO A EVALUAR",null,null,null,null,null,null,null,"JEFE INMEDIATO (PRIMER EVALUADOR)",null,null,null,null,null,null,"SEGUNDO EVALUADOR \n"]
["NOMBRE COMPLETO",null,null,{"$f":"'1.2.3. CONCERTACIÓN'!J29","v":0},null,null,null,null,null,null,null,{"$f":"+'1.2.3. CONCERTACIÓN'!P34","v":0},null,null,null,null,null,null,{"$f":"'1.2.3. CONCERTACIÓN'!Z29","v":0}]
["NUMERO DE DOCUMENTO IDENTIDAD",null,null,{"$f":"'1.2.3. CONCERTACIÓN'!J30","v":0},null,null,null,null,null,null,null,{"$f":"+'1.2.3. CONCERTACIÓN'!P35","v":0},null,null,null,null,null,null,{"$f":"'1.2.3. CONCERTACIÓN'!Z30","v":0}]
["CARGO (DENOMINACIÓN-CÓDIGO-GRADO)",null,null,{"$f":"'1.2.3. CONCERTACIÓN'!J31","v":0},null,null,null,null,null,null,null,{"$f":"+'1.2.3. CONCERTACIÓN'!P36","v":0},null,null,null,null,null,null,{"$f":"'1.2.3. CONCERTACIÓN'!Z31","v":0}]
["DEPENDENCIA",null,null,{"$f":"'1.2.3. CONCERTACIÓN'!J32","v":0},null,null,null,null,null,null,null,{"$f":"+'1.2.3. CONCERTACIÓN'!P37","v":0},null,null,null,null,null,null,{"$f":"'1.2.3. CONCERTACIÓN'!Z32","v":0}]
["FIRMAS"]
["5.2 NOTIFICACIÓN"]
["Contra esta calificación procede el recurso de reposición y en subsidio el de apelación interpuestos ante el evaluador dentro de los cinco (5) dias hábiles siguientes a la fecha de notificación. Los recursos deben presentarse por escrito, personalmente o mediante apoderado y exponiendo los motivos de inconformidad."]
[]
["Interpuso recurso de Reposición",null,null,null,null,null,null,null,null,"FECHA",null,null,null,"Interpuso recurso de Apelación",null,null,null,null,null,null,"FECHA"]
[]
[]
[null,"FIRMA DEL EVALUADO",null,null,null,null,null,null,null,null,null,null,null,null,"FIRMA DEL EVALUADO"]
[]
[null,"FIRMA DEL NOTIFICADOR",null,null,null,null,null,null,null,null,null,null,null,null,"FIRMA DEL NOTIFICADOR"]
["5.3 OBSERVACIONES"]
[]
["IV. COMPROMISOS LABORALES"]
["Metas de la Dependencia a las cuales contribuye el empleo",null,null,null,"Compromisos Laborales.",null,null,null,null,"Peso porcentual del compromiso",null,"Porcentaje de Cumplimiento. "]
[]
[null,null,null,null,null,null,null,null,null,null,null,"PRIMERA PARCIAL SEMESTRAL",null,null,null,"SEGUNDA PARCIAL SEMESTRAL"]
[null,null,null,null,null,null,null,null,null,null,null,"CALIFICACIÓN DEL COMPROMISO",null,"CALIFICACIÓN DEL COMPROMISO (Con peso porcentual)",null,"CALIFICACIÓN DEL COMPROMISO",null,"CALIFICACIÓN DEL COMPROMISO (Con peso porcentual)"]
[{"$f":"'[2]F2. COMP. LAB Y COM COMPOR'!A35","v":0},null,null,null,{"$f":"'[2]F2. COMP. LAB Y COM COMPOR'!H35","v":0},null,null,null,null,{"$f":"'[2]F2. COMP. LAB Y COM COMPOR'!Q35","v":0},null,null,null,{"$f":"$J52*L52","v":0},null,null,null,{"$f":"$J52*P52","v":0}]
[]
[{"$f":"'[2]F2. COMP. LAB Y COM COMPOR'!A37","v":0},null,null,null,{"$f":"'[2]F2. COMP. LAB Y COM COMPOR'!$H$38","v":0},null,null,null,null,{"$f":"'[2]F2. COMP. LAB Y COM COMPOR'!Q37","v":0},null,null,null,{"$f":"J54*L54","v":0},null,null,null,{"$f":"$J54*P54","v":0}]
[]
[{"$f":"'[2]F2. COMP. LAB Y COM COMPOR'!A39","v":0},null,null,null,{"$f":"'[2]F2. COMP. LAB Y COM COMPOR'!$H$40","v":0},null,null,null,null,{"$f":"'[2]F2. COMP. LAB Y COM COMPOR'!Q39","v":0},null,null,null,{"$f":"J56*L56","v":0},null,null,null,{"$f":"$J56*P56","v":0}]
[]
[{"$f":"'[2]F2. COMP. LAB Y COM COMPOR'!A41","v":0},null,null,null,{"$f":"'[2]F2. COMP. LAB Y COM COMPOR'!$H$42","v":0},null,null,null,null,{"$f":"'[2]F2. COMP. LAB Y COM COMPOR'!Q41","v":0},null,null,null,{"$f":"J58*L58","v":0},null,null,null,{"$f":"$J58*P58","v":0}]
[]
[{"$f":"'[2]F2. COMP. LAB Y COM COMPOR'!A43","v":0},null,null,null,{"$f":"'[2]F2. COMP. LAB Y COM COMPOR'!$H$44","v":0},null,null,null,null,{"$f":"'[2]F2. COMP. LAB Y COM COMPOR'!Q43","v":0},null,null,null,{"$f":"J60*L60","v":0},null,null,null,{"$f":"$J60*P60","v":0}]
[]
[" TOTALES",null,null,null,null,null,null,null,null,{"$f":"SUM(J52:K61)","v":0},null,"Resultado total ",null,null,{"$f":"IF(O63>0,\"\",SUMIF(N52:O61,\"<100\",N52:O61))","v":0},"Resultado total ",null,null,{"$f":"IF(S63>0,\"\",SUMIF(R52:S61,\"<100\",R52:S61))","v":0}]
["Totales Parciales Semestrales con Eventuales",null,null,null,null,null,null,null,null,null,null,"Resultado Eventuales I Sem",null,null,{"$f":"+'[2]F8. EVA. EVENTUAL (Semestre 1)'!K44","v":0},"Resultado Eventuales II Sem",null,null,{"$f":"+'[2]F8. EVA. EVENTUAL (Semestre 2)'!K44","v":0}]
["Calificaciones parciales semestrales compromisos laborales ",null,null,null,null,null,null,null,null,null,null,"Calificación total"]
[null,null,null,null,null,null,null,null,null,null,null,{"$f":"O62*40","v":0},null,null,null,{"$f":"S62*40","v":0}]
["CALIFICACIÒN TOTAL DE LOS COMPROMISOS LABORALES",null,null,null,null,null,null,null,null,null,null,"Sobre el 100%",null,null,{"$f":"(IF(O62=\"\",O63,O62)+IF(S62=\"\",S63,S62))/2","v":0},"Sobre el peso porcentual del 80%",null,null,{"$f":"+O66*80%","v":0}]
[]
["V. COMPETENCIAS COMPORTAMENTALES",null,null,null,null,null,null,null,null,"F5. EVA. ÁREAS O DEPENDENCIAS.'!A1",null,"VI. EVALUACIÓN DE GESTIÓN POR ÁREAS O DEPENDENCIAS"]
["COMPETENCIAS COMPORTAMENTALES",null,null,null,null,"1° parcial semestral",null,"2° parcial semestral",null,null,null,"CALIFICACIÓN DE LA EVALUACIÓN DE GESTIÓN POR ÁREAS O  DEPENDENCIAS."]
["1.  ",{"$f":"'[2]F2. COMP. LAB Y COM COMPOR'!B49","v":"COMPETENCIA"},null,null,null,{"$f":"'[2]F4. CALF. COM. COMPORT.'!N31","v":"BAJO"}]
["2. ",{"$f":"'[2]F2. COMP. LAB Y COM COMPOR'!B51","v":0},null,null,null,{"$f":"'[2]F4. CALF. COM. COMPORT.'!N33","v":0},null,null,null,null,null,"VI. EVALUACIÓN DE GESTIÓN POR ÁREAS O DEPENDENCIAS"]
["3. ",{"$f":"'[2]F2. COMP. LAB Y COM COMPOR'!B53","v":0},null,null,null,{"$f":"'[2]F4. CALF. COM. COMPORT.'!N35","v":0}]
["4. ",{"$f":"'[2]F2. COMP. LAB Y COM COMPOR'!B55","v":0},null,null,null,{"$f":"'[2]F4. CALF. COM. COMPORT.'!N37","v":0},null,null,null,null,null,"CALIFICACIÓN",null,null,null,"NIVEL DE CALIFICACIÓN"]
["Totales Parciales Semestrales",null,null,null,null,{"$f":"'[2]F4. CALF. COM. COMPORT.'!N40","v":0},null,{"$f":"'[2]F4. CALF. COM. COMPORT.'!O40","v":0},null,null,null,{"$f":"(+#REF!+S$67+P$70)","v":{"$error":"#REF!"}},null,null,null,{"$f":"IF(AND(OR(SUM(N52:O61)>0,O63>1)=TRUE,OR(SUM(R52:S61)>0,S63>1)=TRUE)=TRUE,IFERROR(VLOOKUP(L74,[2]Hoja4!AA2:AB989,2),0),\"NO APLICA CALIFICACION\")","v":"NO APLICA CALIFICACION"}]
["Totales Parciales Semestrales con Eventuales",null,null,null,null,{"$f":"+'[2]F8. EVA. EVENTUAL (Semestre 1)'!M58","v":0.16666666666666666},null,{"$f":"+'[2]F8. EVA. EVENTUAL (Semestre 2)'!M58","v":0},null,null,null,"F2. COMP. LAB Y COM COMPOR'!A1"]
["CALIFICACIÓN DE LAS COMPETENCIAS COMPORTAMENTALES",null,null,null,null,{"$f":"(IF(F75=0,F74,F75)+IF(H75=0,H74,H75))/2","v":8.3333333333333329E-2}]

{"sheet":"6. CONSOLIDADO ANUAL","index":8,"n_rows":34,"n_cols":13,"rows_kept":34,"cut":false,"hidden":false,"merged":[[19,11,19,13],[20,6,20,10],[17,2,17,13],[20,2,20,5],[32,0,32,4],[27,12,27,13],[27,0,27,1],[21,0,21,1],[22,0,22,1],[21,2,21,5],[22,2,22,5],[22,11,22,13],[21,6,21,10],[22,6,22,10],[33,0,33,13],[9,8,9,9],[18,2,18,5],[19,2,19,5],[16,0,16,13],[13,0,13,1],[13,2,13,4],[13,5,13,7],[13,8,13,9],[11,0,11,4],[11,5,11,9],[11,10,12,11],[11,12,12,13],[21,11,21,13],[20,11,20,13],[14,5,15,9],[34,0,34,13],[23,0,23,1],[23,6,23,10],[23,11,23,13],[24,0,24,13],[25,0,26,13],[29,0,29,4],[30,0,30,4],[23,2,23,5],[27,6,27,9],[27,4,27,5],[32,9,32,12],[29,9,29,12],[31,9,31,12],[31,0,31,4],[30,9,30,12],[12,2,12,4],[12,5,12,7],[10,0,10,13],[20,0,20,1],[17,0,17,1],[14,10,14,13],[15,10,15,13],[13,10,13,11],[13,12,13,13],[19,6,19,10],[12,0,12,1],[18,11,18,13],[18,0,19,1],[18,6,18,10],[12,8,12,9],[14,0,15,4],[0,0,3,13],[9,10,9,11],[5,4,5,5],[7,5,7,9],[8,5,8,7],[9,2,9,4],[9,5,9,7],[7,10,8,11],[6,0,6,13],[9,0,9,1],[9,12,9,13],[5,12,5,13],[7,12,8,13],[4,0,4,13],[7,0,7,4],[8,0,8,1],[8,2,8,4],[8,8,8,9],[5,0,5,2],[5,7,5,8],[5,9,5,11]]}
["Evaluación del desempeño laboral para servidores de \ncarrera administrativa y libre nombramiento y remoción"]
[]
[]
[]
["6. Consolidado evaluación anual definitiva "]
["PERIODO EVALUADO",null,null,"DESDE",null,null,"HASTA",null,null,"No. DÍAS EVALUADOS EN EL AÑO",null,null,{"$f":"IF((H6-E6+1)=1,0,H6-E6+1)","v":0}]
["6.1 Evaluaciones de compromisos laborales  "]
["PRIMER SEMESTRE",null,null,null,null,"SEGUNDO SEMESTRE",null,null,null,null,"CONSOLIDADO ANUAL SOBRE 100%",null,"CONSOLIDADO SOBRE EL PESO PORCENTUAL DE 80%"]
["PUNTAJE OBTENIDO",null,"No. DÍAS",null,null,"PUNTAJE OBTENIDO",null,null,"No. DÍAS"]
[null,null,null,null,null,null,null,null,null,null,{"$f":"((A10*C10)+(F10*I10))/M6","v":{"$error":"#DIV/0!"}},null,{"$f":"+K10*80%","v":{"$error":"#DIV/0!"}}]
["6.2 Evaluaciones de compromisos comportamentales "]
["PRIMER SEMESTRE",null,null,null,null,"SEGUNDO SEMESTRE",null,null,null,null,"CONSOLIDADO ANUAL SOBRE 100%",null,"CONSOLIDADO SOBRE EL PESO PORCENTUAL DE 20%"]
["PUNTAJE OBTENIDO",null,"No. DÍAS",null,null,"PUNTAJE OBTENIDO",null,null,"No. DÍAS"]
[null,null,null,null,null,null,null,null,184,null,{"$f":"((A14*C14)+(F14*I14))/M6","v":{"$error":"#DIV/0!"}},null,{"$f":"+(K14*20%)*10","v":{"$error":"#DIV/0!"}}]
["6.3. CALIFICACIÓN DEFINITIVA ",null,null,null,null,{"$f":"+$M$14+$M$10","v":{"$error":"#DIV/0!"}},null,null,null,null,"NIVEL"]
[null,null,null,null,null,null,null,null,null,null,{"$f":"IF(F15<=69,'lista de selecciones'!A162,IF(F15<90,'lista de selecciones'!A161,IF(F15>=90,'lista de selecciones'!A160)))","v":{"$error":"#DIV/0!"}}]
["6.4.  Notificación "]
["Ciudad - Fecha de Diligenciamiento del Formato"]
["NOMBRE COMPLETO",null,"EMPLEADO A EVALUAR",null,null,null,"JEFE INMEDIATO (PRIMER EVALUADOR)",null,null,null,null,"SEGUNDO EVALUADOR "]
[]
["NUMERO DE DOCUMENTO IDENTIDAD"]
["CARGO (DENOMINACIÓN-CÓDIGO-GRADO)"]
["DEPENDENCIA"]
["Firmas"]
["6.5. Recursos"]
["Contra esta calificación procede el recurso de reposición y en subsidio el de apelación interpuestos ante el evaluador dentro de los cinco (5) días hábiles siguientes a la fecha de notificación. Los recursos deben presentarse por escrito, personalmente o mediante apoderado y exponiendo los motivos de inconformidad."]
[]
["Interpuso recurso de Reposición",null,null,"FECHA",null,null,"Interpuso recurso de Apelación",null,null,null,null,"FECHA"]
[]
[]
["NOMBRE DEL EVALUADO",null,null,null,null,null,null,null,null,"FIRMA DEL EVALUADO"]
[]
["NOMBRE DEL NOTIFICADOR",null,null,null,null,null,null,null,null,"FIRMA DEL NOTIFICADOR"]
["6.6. Observaciones "]

{"sheet":"4. CONSOLIDADO EVALUACION PARCI","index":9,"n_rows":45,"n_cols":16,"rows_kept":45,"cut":false,"hidden":true,"merged":[[40,5,40,9],[5,0,5,12],[6,0,6,12],[29,0,30,1],[29,2,30,6],[29,7,29,8],[29,11,30,12],[30,7,30,8],[31,0,31,4],[31,5,31,6],[20,5,20,6],[20,7,20,8],[20,9,20,10],[21,0,21,4],[21,5,21,6],[21,7,21,8],[21,9,21,10],[15,9,15,10],[16,0,16,4],[16,5,16,6],[16,7,16,8],[16,9,16,10],[12,11,13,12],[14,0,14,4],[0,4,4,12],[27,0,27,4],[27,5,27,6],[27,7,27,8],[27,9,27,10],[28,0,28,4],[28,5,28,6],[28,7,28,8],[28,9,28,10],[22,3,22,6],[17,0,18,1],[17,2,18,6],[17,7,17,8],[17,11,18,12],[18,7,18,8],[19,0,19,4],[19,5,19,6],[19,7,19,8],[19,9,19,10],[19,11,21,12],[26,7,26,8],[26,9,26,10],[26,11,28,12],[20,0,20,4],[44,0,44,12],[45,0,47,12],[43,0,43,1],[40,0,41,1],[23,0,23,12],[24,0,25,1],[24,2,25,6],[24,7,24,8],[24,11,25,12],[25,7,25,8],[43,2,43,4],[43,5,43,9],[43,10,43,12],[42,0,42,1],[42,2,42,4],[42,5,42,9],[42,10,42,12],[41,2,41,4],[40,2,40,4],[40,10,40,12],[41,5,41,9],[41,10,41,12],[26,0,26,4],[26,5,26,6],[11,0,11,4],[12,2,13,6],[12,7,12,8],[13,7,13,8],[34,7,34,8],[34,11,35,12],[35,7,35,8],[14,5,14,6],[14,7,14,8],[14,9,14,10],[14,11,16,12],[15,0,15,4],[15,5,15,6],[15,7,15,8],[12,0,13,1],[11,5,11,6],[11,7,11,8],[11,9,11,10],[7,0,8,1],[31,7,31,8],[31,9,31,10],[31,11,33,12],[32,0,32,4],[32,5,32,6],[32,7,32,8],[32,9,32,10],[33,0,33,4],[33,5,33,6],[9,7,9,8],[9,9,9,10],[7,2,8,6],[7,7,7,8],[8,7,8,8],[10,5,10,6],[10,7,10,8],[7,11,8,12],[9,11,11,12],[9,0,9,4],[10,9,10,10],[22,9,22,10],[9,5,9,6],[10,0,10,4],[39,3,39,6],[39,7,39,8],[39,9,39,10],[39,11,39,12],[38,5,38,6],[38,7,38,8],[38,9,38,10],[22,11,22,12],[22,7,22,8],[36,0,36,4],[36,5,36,6],[36,7,36,8],[36,9,36,10],[36,11,38,12],[37,0,37,4],[37,5,37,6],[37,7,37,8],[37,9,37,10],[38,0,38,4],[33,7,33,8],[33,9,33,10],[34,0,35,1],[34,2,35,6]]}
[null,null,null,null,"EVALUACIÓN DEL DESEMPEÑO PARA SERVIDORES DE CARRERA ADMINISTRATIVA, LIBRE NOMBRAMIENTO Y REMOCIÓN "]
[null,null,null,null,null,null,null,null,null,null,null,null,null,null,null,"SI(C8=\"ANUAL_U_ORDINARIA\";F10*80%;SI(C8=\"PERIODO_DE_PRUEBA\";F10*85%;SI(F10=EXTRAORDINARIA;F10*85%)))"]
[null,null,null,null,null,null,null,null,null,null,null,null,null,null,null,"SI(C8=\"ANUAL_U_ORDINARIA\";F10*80%;SI(C8=\"PERIODO DE PRUEBA\";F10*85%;SI(C8=\"EXTRAORDINARIA\";F10*85%)))"]
[null,null,null,null,null,null,null,null,null,null,null,null,null,null,null,"SI($C$8=\"PERIODO DE PRUEBA\";F11*15%;SI($C$8=\"EXTRAORDINARIA\";F11*15%;F11*10%))"]
[]
["4. CONSOLIDADO EVALUACIÓN"]
["4.1 EVALUACIÓN PRIMER SEMESTRE "]
["CASOS DE EVALUACIÓN ",null,{"$f":"+'4. EVALUACIÓN SEMESTRAL (1)'!J5","v":"PRIMERA_EVALUACION_PARCIAL_SEMESTRAL"},null,null,null,null,"DESDE",null,"HASTA","No. DÍAS EVALUADOS","PUNTAJE PONDERADO DEL PRIMER SEMESTRE"]
[null,null,null,null,null,null,null,null,null,null,{"$f":"IF((J9-H9+1)=1,0,J9-H9+1)","v":0}]
["Compromisos laborales ",null,null,null,null,null,null,{"$f":"IF($C$8=\"PERIODO DE PRUEBA\",F10*85%,IF($C$8=\"EXTRAORDINARIA\",F10*85%,F10*80%))","v":0},null,{"$f":"+H10","v":0},null,{"$f":"+J10+J11+J12","v":0}]
["Competencias Comportamentales ",null,null,null,null,null,null,{"$f":"IF($C$8=\"PERIODO DE PRUEBA\",F11*15%,IF($C$8=\"EXTRAORDINARIA\",F11*15%,F11*10%))","v":0},null,{"$f":"+H11","v":0}]
["Evaluación de Gestión por áreas o dependencias ",null,null,null,null,null,null,{"$f":"IF($C$8=\"PERIODO DE PRUEBA\",F12*0%,IF($C$8=\"EXTRAORDINARIA\",F12*0%,F12*10%))","v":0},null,{"$f":"+H12","v":0}]
["CASOS DE EVALUACIÓN ",null,null,null,null,null,null,"DESDE",null,"HASTA","No. DÍAS EVALUADOS","PUNTAJE PONDERADO DEL PRIMER SEMESTRE"]
[null,null,null,null,null,null,null,null,null,null,{"$f":"IF((J14-I14+1)=1,0,J14-I14+1)","v":0}]
["Compromisos laborales ",null,null,null,null,null,null,{"$f":"IF($C$8=\"PERIODO DE PRUEBA\",F15*85%,IF($C$8=\"EXTRAORDINARIA\",F15*85%,F15*80%))","v":0},null,{"$f":"+H15","v":0},null,{"$f":"+J15+J16+J17","v":0}]
["Competencias Comportamentales ",null,null,null,null,null,null,{"$f":"IF($C$8=\"PERIODO DE PRUEBA\",F16*15%,IF($C$8=\"EXTRAORDINARIA\",F16*15%,F16*10%))","v":0},null,{"$f":"+H16","v":0}]
["Evaluación de Gestión por áreas o dependencias ",null,null,null,null,null,null,{"$f":"IF($C$8=\"PERIODO DE PRUEBA\",F17*0%,IF($C$8=\"EXTRAORDINARIA\",F17*0%,F17*10%))","v":0},null,{"$f":"+H17","v":0}]
["CASOS DE EVALUACIÓN ",null,null,null,null,null,null,"DESDE",null,"HASTA","No. DÍAS EVALUADOS","PUNTAJE PONDERADO DEL PRIMER SEMESTRE"]
[null,null,null,null,null,null,null,null,null,null,{"$f":"IF((J19-I19+1)=1,0,J19-I19+1)","v":0}]
["Compromisos laborales ",null,null,null,null,null,null,{"$f":"IF($C$8=\"PERIODO DE PRUEBA\",F20*85%,IF($C$8=\"EXTRAORDINARIA\",F20*85%,F20*80%))","v":0},null,{"$f":"+H20","v":0},null,{"$f":"+J20+J21+J22","v":0}]
["Competencias Comportamentales ",null,null,null,null,null,null,{"$f":"IF($C$8=\"PERIODO DE PRUEBA\",F21*15%,IF($C$8=\"EXTRAORDINARIA\",F21*15%,F21*10%))","v":0},null,{"$f":"+H21","v":0}]
["Evaluación de Gestión por áreas o dependencias ",null,null,null,null,null,null,{"$f":"IF($C$8=\"PERIODO DE PRUEBA\",F22*0%,IF($C$8=\"EXTRAORDINARIA\",F22*0%,F22*10%))","v":0},null,{"$f":"+H22","v":0}]
[null,null,null,"Total días evaluados del primer semestre",null,null,null,{"$f":"+K9+K14+K19","v":0},null," PUNTAJE PONDERADO DEL PRIMER SEMESTRE",null,{"$f":"((L10*K9)+(L15*K14)+(L20*K19))/H23","v":{"$error":"#DIV/0!"}}]
["5.2 EVALUACIÓN SEGUNDO SEMESTRE "]
["CASOS DE EVALUACIÓN ",null,null,null,null,null,null,"DESDE",null,"HASTA","No. DÍAS EVALUADOS","PUNTAJE PONDERADO DEL PRIMER SEMESTRE"]
[null,null,null,null,null,null,null,null,null,null,{"$f":"IF((J26-H26+1)=1,0,J26-H26+1)","v":0}]
["Compromisos laborales ",null,null,null,null,null,null,{"$f":"IF($C$8=\"PERIODO DE PRUEBA\",F27*85%,IF($C$8=\"EXTRAORDINARIA\",F27*85%,F27*80%))","v":0},null,{"$f":"+H27","v":0},null,{"$f":"+J27+J28+J29","v":0}]
["Competencias Comportamentales ",null,null,null,null,null,null,{"$f":"IF($C$8=\"PERIODO DE PRUEBA\",F28*15%,IF($C$8=\"EXTRAORDINARIA\",F28*15%,F28*10%))","v":0},null,{"$f":"+H28","v":0}]
["Evaluación de Gestión por áreas o dependencias ",null,null,null,null,null,null,{"$f":"IF($C$8=\"PERIODO DE PRUEBA\",F29*0%,IF($C$8=\"EXTRAORDINARIA\",F29*0%,F29*10%))","v":0},null,{"$f":"+H29","v":0}]
["CASOS DE EVALUACIÓN ",null,null,null,null,null,null,"DESDE",null,"HASTA","No. DÍAS EVALUADOS","PUNTAJE PONDERADO DEL PRIMER SEMESTRE"]
[null,null,null,null,null,null,null,null,null,null,{"$f":"IF((J31-I31+1)=1,0,J31-I31+1)","v":0}]
["Compromisos laborales ",null,null,null,null,null,null,{"$f":"IF($C$8=\"PERIODO DE PRUEBA\",F32*85%,IF($C$8=\"EXTRAORDINARIA\",F32*85%,F32*80%))","v":0},null,{"$f":"+H32","v":0},null,{"$f":"+J32+J33+J34","v":0}]
["Competencias Comportamentales ",null,null,null,null,null,null,{"$f":"IF($C$8=\"PERIODO DE PRUEBA\",F33*15%,IF($C$8=\"EXTRAORDINARIA\",F33*15%,F33*10%))","v":0},null,{"$f":"+H33","v":0}]
["Evaluación de Gestión por áreas o dependencias ",null,null,null,null,null,null,{"$f":"IF($C$8=\"PERIODO DE PRUEBA\",F34*0%,IF($C$8=\"EXTRAORDINARIA\",F34*0%,F34*10%))","v":0},null,{"$f":"+H34","v":0}]
["CASOS DE EVALUACIÓN ",null,null,null,null,null,null,"DESDE",null,"HASTA","No. DÍAS EVALUADOS","PUNTAJE PONDERADO DEL PRIMER SEMESTRE"]
[null,null,null,null,null,null,null,null,null,null,{"$f":"IF((J36-I36+1)=1,0,J36-I36+1)","v":0}]
["Compromisos laborales ",null,null,null,null,null,null,{"$f":"IF($C$8=\"PERIODO DE PRUEBA\",F37*85%,IF($C$8=\"EXTRAORDINARIA\",F37*85%,F37*80%))","v":0},null,{"$f":"+H37","v":0},null,{"$f":"+J37+J38+J39","v":0}]
["Competencias Comportamentales ",null,null,null,null,null,null,{"$f":"IF($C$8=\"PERIODO DE PRUEBA\",F38*15%,IF($C$8=\"EXTRAORDINARIA\",F38*15%,F38*10%))","v":0},null,{"$f":"+H38","v":0}]
["Evaluación de Gestión por áreas o dependencias ",null,null,null,null,null,null,{"$f":"IF($C$8=\"PERIODO DE PRUEBA\",F39*0%,IF($C$8=\"EXTRAORDINARIA\",F39*0%,F39*10%))","v":0},null,{"$f":"+H39","v":0}]
[null,null,null,"Total días evaluados del primer semestre",null,null,null,{"$f":"+K26+K31+K36","v":0},null," PUNTAJE PONDERADO DEL PRIMER SEMESTRE",null,{"$f":"((L27*K26)+(L32*K31)+(L37*K36))/H40","v":{"$error":"#DIV/0!"}}]
["Nombres",null,"EMPLEADO A EVALUAR",null,null,"JEFE INMEDIATO (PRIMER EVALUADOR)",null,null,null,null,"SEGUNDO EVALUADOR "]
[null,null,{"$f":"'4. EVALUACIÓN SEMESTRAL (1)'!M42","v":0},null,null,null,null,null,null,null,{"$f":"'4. EVALUACIÓN SEMESTRAL (1)'!AG42","v":0},null,null,null,null,"TOTAL OBTENIDO DE LOS COMPONENTES DE LA EVALUACIÓN"]
["No. Documento Identidad",null,{"$f":"'4. EVALUACIÓN SEMESTRAL (1)'!M43","v":0},null,null,null,null,null,null,null,{"$f":"'4. EVALUACIÓN SEMESTRAL (1)'!AG43","v":0}]
["Firmas"]
["4.6 OBSERVACIONES"]

{"sheet":"7. COMPROMISOS MEJORAMIENTO I","index":10,"n_rows":44,"n_cols":18,"rows_kept":44,"cut":false,"hidden":false,"merged":[[35,17,36,17],[41,0,41,10],[41,11,41,14],[43,0,45,17],[38,0,38,10],[38,11,38,14],[39,0,39,10],[39,11,39,14],[40,0,40,10],[40,11,40,14],[42,0,42,17],[37,11,37,14],[37,0,37,10],[35,0,36,10],[35,11,36,14],[35,15,35,16],[18,8,18,11],[18,12,18,16],[19,0,19,3],[16,0,16,3],[16,4,16,7],[16,8,16,11],[16,12,16,16],[17,0,17,3],[17,4,17,7],[17,8,17,11],[17,12,17,16],[15,0,15,3],[15,4,15,7],[15,8,15,11],[15,12,15,16],[34,0,34,17],[19,4,19,7],[19,8,19,11],[19,12,19,16],[21,2,21,4],[25,0,25,7],[25,11,25,16],[28,0,28,7],[28,11,28,16],[31,7,33,17],[18,0,18,3],[18,4,18,7],[11,0,11,1],[13,0,13,1],[13,3,13,10],[13,12,13,16],[14,0,14,17],[0,0,2,17],[7,0,7,17],[8,0,8,1],[8,3,8,10],[8,12,8,16],[3,0,3,17],[4,0,4,17],[5,0,5,17],[6,0,6,2],[6,3,6,10],[6,12,6,16]]}
["Evaluación del desempeño laboral para Servidores de \ncarrera administrativa y libre nombramiento y remoción"]
[]
[]
["7. Compromisos de mejoramiento individual (jefe inmediato - servidor) "]
["Estimados servidores: Los planes de mejoramiento deben ser concertados anualmente con seguimiento obligatorio semestral."]
[]
["NOMBRE DE LA DEPENDENCIA: ",null,null,{"$f":"+'1.2.3. CONCERTACIÓN'!J42","v":0},null,null,null,null,null,null,null,"FECHA: "]
[]
["NOMBRE DE SERVIDOR: ",null,null,{"$f":"+'1.2.3. CONCERTACIÓN'!J39","v":0},null,null,null,null,null,null,null,"CARGO:",{"$f":"+'1.2.3. CONCERTACIÓN'!J41","v":0}]
[]
[]
["NATURALEZA DEL CARGO:",null,null,"Carrera administrativa:",null,{"$f":"+'1.2.3. CONCERTACIÓN'!R4","v":0},null,"Libre nombramiento y remoción:",null,{"$f":"+'1.2.3. CONCERTACIÓN'!AF4","v":0}]
[]
["NOMBRE DEL JEFE INMEDIATO:",null,null,{"$f":"+'1.2.3. CONCERTACIÓN'!P39","v":0},null,null,null,null,null,null,null,"CARGO:",{"$f":"+'1.2.3. CONCERTACIÓN'!P41","v":0}]
[]
["Enuncie los aspectos susceptibles de mejorar o de potenciar del funcionario (Se pueden incluir aspectos funcionales, comportamentales o ambos)",null,null,null,"Descripción del hecho a mejorar o potenciar ",null,null,null,"Recursos requeridos",null,null,null,"Fecha de cumplimiento",null,null,null,null,"Observaciones "]
[]
[]
[]
[]
[]
["FECHA DE CONCERTACIÓN: ",null,"dd/mm/aa"]
[]
["ACORDADO POR:"]
[]
[{"$f":"+'1.2.3. CONCERTACIÓN'!J39","v":0},null,null,null,null,null,null,null,null,null,null,{"$f":"+D14","v":0}]
["NOMBRE DEL SERVIDOR",null,null,null,null,null,null,null,null,null,null,"NOMBRE JEFE INMEDIATO"]
[]
[]
["FIRMA DEL SERVIDOR ",null,null,null,null,null,null,null,null,null,null,"FIRMA DEL JEFE INMEDIATO"]
[]
[null,null,null,null,null,null,null,"COMPROMISOS DE MEJORAMIENTO INDIVIDUAL (JEFE INMEDIATO  – SERVIDOR)"]
[]
[]
["7.1. Seguimiento y verificación del cumplimiento de las acciones de mejora (jefe inmediato)"]
["Acciones de Mejora concertadas ",null,null,null,null,null,null,null,null,null,null,"Evidencias – Soportes del cumplimiento de la acción de mejora",null,null,null,"Cumplimiento",null,"Fecha de seguimiento o cierre"]
[null,null,null,null,null,null,null,null,null,null,null,null,null,null,null,"si","no"]
[]
[]
[]
[]
[]
[]
["Observaciones: "]

{"sheet":"INSTRUCTIVO CMI","index":11,"n_rows":1,"n_cols":1,"rows_kept":1,"cut":false,"hidden":false,"merged":[[0,0,46,7]]}
["                \n              \n\n\nInstrucciones Compromisos de Mejoramiento Individual\n\n\nEnuncie los aspectos susceptibles de mejorar o de potenciar del funcionario (Se pueden incluir aspectos funcionales, comportamentales o ambos):  Se eligen los tres aspectos de la evaluación del desempeño o del acuerdo de gestión que hayan obtenido la valoración mas baja, o aquellos que sin ser bajos requieran ser fortalecidos o mejorados. El formato debe implementarse si la calificación es igual o menor de 85 puntos.\n\nDescripción del hecho  o situación a mejorar: Es la explicación del hecho o situación  que afecta el desarrollo de las actividades, los procedimientos, el proceso y/o  conducta o comportamiento, según sea el caso,  para  el logro de los objetivos y/o el clima organizacional de la dependencia.   \n\nRecursos o acciones requeridos para el mejoramiento (competencias asociadas: educación, formación, habilidades, experiencia):    En caso de que se requieran recursos específicos para el  cumplimiento de la acción de mejora, estos se deben especificar. Estos pueden ir relacionados con el plan de capacitación.\n\nFecha de cumplimiento: Plazo límite establecido para el cumplimiento de la acción de mejora. Así mismo de acuerdo con la fecha establecida se debe efectuar el seguimiento respectivo a las acciones.  \n\nObservaciones: Comentarios adicionales que se considere necesario dejar registrados.\n \nFecha de Concertación: Se debe diligenciar la fecha en la cual se esta concertando las acciones de mejora.\n\nSeguimiento y verificación del Cumplimiento a las acciones de  mejora (jefe dependencia) \n\nAcciones de mejoramiento concertadas: Es la narración de la acción concertada a implementar para mejorar la situación o hecho encontrado. Se debe redactar empleando un verbo en infinitivo que  signifique una acción evidenciable de la cual se debe dejar soporte.\n\nEvidencias - Soportes del cumplimiento de la acción de mejora: Se debe relacionar las fuentes de verificación del cumplimiento de la acción de mejora, para la verificación que hará la Oficina Asesora de Control Interno. \n\nCumplimiento: Se debe seleccionar con una X si la acción determinada cumplio o no con lo establecido en el Plan de Mejoramiento.\n\nFecha de seguimiento o cierre: Se debe diligenciar la fecha en la cual se realiza el seguimiento o el cierre de la acción concertada. "]

{"sheet":"8. EVALUACIÓN EXTRAORDINARIA FP","index":12,"n_rows":59,"n_cols":25,"rows_kept":59,"cut":false,"hidden":false,"merged":[[15,24,18,24],[19,22,22,22],[19,23,22,23],[19,24,22,24],[34,5,34,7],[35,5,35,7],[37,5,37,7],[35,8,35,10],[31,8,31,24],[15,21,18,21],[31,0,31,7],[29,6,29,8],[23,23,26,23],[23,24,26,24],[15,23,18,23],[24,10,24,12],[29,0,30,2],[29,23,30,24],[34,8,34,10],[36,8,36,10],[36,17,36,20],[37,17,37,20],[34,11,34,14],[19,4,22,9],[36,0,36,1],[37,0,37,1],[36,2,36,4],[37,2,37,4],[36,5,36,7],[35,17,35,20],[32,8,32,16],[38,8,38,14],[38,17,38,22],[35,2,35,4],[32,5,33,7],[33,11,33,14],[33,15,33,16],[34,2,34,4],[38,0,38,7],[37,21,37,22],[35,0,35,1],[32,17,32,24],[49,17,49,24],[50,17,50,24],[47,17,47,24],[47,9,47,16],[48,9,48,16],[49,9,49,16],[50,9,50,16],[41,0,42,4],[48,0,48,2],[45,0,45,2],[46,0,46,2],[50,0,50,2],[50,3,50,8],[49,0,49,2],[49,3,49,8],[47,0,47,2],[47,3,47,8],[46,17,46,24],[44,0,44,2],[59,0,59,24],[54,13,54,21],[55,13,55,21],[56,13,56,21],[57,13,57,21],[39,0,40,2],[39,3,39,5],[39,6,39,8],[39,9,40,9],[39,10,40,12],[39,13,40,22],[54,1,54,6],[51,0,51,24],[52,0,52,5],[52,9,52,10],[52,11,52,20],[52,22,52,23],[58,0,58,24],[48,3,48,8],[41,6,42,10],[41,11,42,16],[41,17,42,24],[46,9,46,16],[41,5,42,5],[55,1,55,7],[57,1,57,7],[56,1,56,7],[32,0,33,1],[32,2,33,4],[38,23,38,24],[38,15,38,16],[37,15,37,16],[45,17,45,24],[45,9,45,16],[43,0,43,24],[44,3,44,24],[36,23,36,24],[37,23,37,24],[36,11,36,14],[37,11,37,14],[36,21,36,22],[52,7,52,8],[46,3,46,8],[45,3,45,8],[39,23,40,24],[40,3,40,5],[40,6,40,8],[48,17,48,24],[3,23,4,24],[34,17,34,20],[33,23,33,24],[34,23,34,24],[33,17,33,20],[34,15,34,16],[33,21,33,22],[34,21,34,22],[5,23,5,24],[27,24,28,24],[27,23,28,23],[27,21,28,21],[27,20,28,20],[27,22,28,22],[7,13,10,19],[7,20,10,20],[5,20,5,22],[7,23,10,23],[7,24,10,24],[19,21,22,21],[23,21,26,21],[11,22,14,22],[11,23,14,23],[11,24,14,24],[19,20,22,20],[13,10,13,12],[18,10,18,12],[6,0,6,3],[8,10,8,12],[9,10,9,12],[10,10,10,12],[11,10,11,12],[12,10,12,12],[22,10,22,12],[11,0,14,3],[11,4,14,9],[15,0,18,3],[15,4,18,9],[11,13,14,19],[15,13,18,19],[19,13,22,19],[19,0,22,3],[21,10,21,12],[20,10,20,12],[19,10,19,12],[16,10,16,12],[17,10,17,12],[29,3,29,5],[30,3,30,5],[30,6,30,8],[29,13,30,22],[29,9,30,9],[29,10,30,12],[23,22,26,22],[23,0,26,3],[23,4,26,9],[23,13,26,19],[25,10,25,12],[26,10,26,12],[23,20,26,20],[23,10,23,12],[27,0,28,19],[3,17,4,22],[3,1,3,2],[7,22,10,22],[3,5,3,6],[3,3,3,4],[4,7,4,8],[15,22,18,22],[11,20,14,20],[15,20,18,20],[7,0,10,3],[14,10,14,12],[15,10,15,12],[4,1,4,2],[4,3,4,4],[6,4,6,9],[6,10,6,12],[7,10,7,12],[7,21,10,21],[7,4,10,9],[4,5,4,6],[11,21,14,21],[3,0,4,0],[0,0,0,24],[3,14,3,16],[3,11,3,13],[3,9,3,10],[3,7,3,8],[2,0,2,2],[2,3,2,8],[37,8,37,10],[35,15,35,16],[36,15,36,16],[5,0,5,19],[1,0,1,24],[2,9,2,10],[2,11,2,22],[2,23,2,24],[4,9,4,10],[35,23,35,24],[35,11,35,14],[35,21,35,22],[33,8,33,10],[4,14,4,16],[6,13,6,19],[34,0,34,1],[4,11,4,13]]}
["Evaluación del Desempeño Laboral para Servidores de Carrera Administrativa y Libre Nombramiento y Remoción"]
["8. Evaluación extraordinaria "]
["8.1 Tipo de empleo",null,null,"CARRERA ADMINISTRATIVA",null,null,null,null,null,{"$f":"'1.2.3. CONCERTACIÓN'!R4","v":0},null,"LIBRE NOMBRAMIENTO Y REMOCIÓN (LNR)\n(Seguimiento cumplimiento de funciones empleados)",null,null,null,null,null,null,null,null,null,null,null,{"$f":"+'1.2.3. CONCERTACIÓN'!AF4","v":0}]
["8. 2 Fecha de evaluación","Previa a la Extraordinaria (Si hubo)",null,"DESDE",null,null,null,"HASTA",null,null,null,"No. DÍAS EVALUADOS ",null,null,{"$f":"IF((J4-F4+1)=1,0,J4-F4+1)","v":0},null,null,"8.3 NIVEL DEL EMPLEO",null,null,null,null,null,{"$f":"+'1.2.3. CONCERTACIÓN'!AC5","v":0}]
[null,"Evaluación último Período",null,"DESDE",null,null,null,"HASTA",null,null,null,"No. DÍAS EVALUADOS ",null,null,{"$f":"IF((J5-F5+1)=1,0,J5-F5+1)","v":0}]
["8. 4 Evaluación de compromisos laborales ",null,null,null,null,null,null,null,null,null,null,null,null,null,null,null,null,null,null,null,"8.5.  Evaluación realizada previa a la extraordinario",null,null,"8.6. Evaluación último periodo "]
["COMPROMISO LABORAL",null,null,null,"EVIDENCIA DEL CUMPLIMIENTO DEL COMPROMISO",null,null,null,null,null,"REQUISITOS DE CALIDAD",null,null,"COMENTARIOS  - RUTA DE EVIDENCIA",null,null,null,null,null,null,"PESO","LOGRO %","PUNTAJE","LOGRO %","PUNTAJE"]
[{"$f":"'1.2.3. CONCERTACIÓN'!F9","v":0},null,null,null,{"$f":"+'1.2.3. CONCERTACIÓN'!Y9","v":0},null,null,null,null,null,{"$f":"+'1.2.3. CONCERTACIÓN'!N9","v":0},null,null,null,null,null,null,null,null,null,{"$f":"'1.2.3. CONCERTACIÓN'!AF9","v":0},null,{"$f":"(U8*V8)","v":0},null,{"$f":"(U8*X8)","v":0}]
[null,null,null,null,null,null,null,null,null,null,{"$f":"+'1.2.3. CONCERTACIÓN'!N10","v":0}]
[null,null,null,null,null,null,null,null,null,null,{"$f":"+'1.2.3. CONCERTACIÓN'!N11","v":0}]
[null,null,null,null,null,null,null,null,null,null,{"$f":"+'1.2.3. CONCERTACIÓN'!N12","v":0}]
[{"$f":"'1.2.3. CONCERTACIÓN'!F13","v":0},null,null,null,{"$f":"+'1.2.3. CONCERTACIÓN'!Y13","v":0},null,null,null,null,null,{"$f":"+'1.2.3. CONCERTACIÓN'!N13","v":0},null,null,null,null,null,null,null,null,null,{"$f":"'1.2.3. CONCERTACIÓN'!AF13","v":0},null,{"$f":"(U12*V12)","v":0},null,{"$f":"(U12*X12)","v":0}]
[null,null,null,null,null,null,null,null,null,null,{"$f":"+'1.2.3. CONCERTACIÓN'!N14","v":0}]
[null,null,null,null,null,null,null,null,null,null,{"$f":"+'1.2.3. CONCERTACIÓN'!N15","v":0}]
[null,null,null,null,null,null,null,null,null,null,{"$f":"+'1.2.3. CONCERTACIÓN'!N16","v":0}]
[{"$f":"'1.2.3. CONCERTACIÓN'!F17","v":0},null,null,null,{"$f":"+'1.2.3. CONCERTACIÓN'!Y17","v":0},null,null,null,null,null,{"$f":"+'1.2.3. CONCERTACIÓN'!N17","v":0},null,null,null,null,null,null,null,null,null,{"$f":"'1.2.3. CONCERTACIÓN'!AF17","v":0},null,{"$f":"(U16*V16)","v":0},null,{"$f":"(U16*X16)","v":0}]
[null,null,null,null,null,null,null,null,null,null,{"$f":"+'1.2.3. CONCERTACIÓN'!N18","v":0}]
[null,null,null,null,null,null,null,null,null,null,{"$f":"+'1.2.3. CONCERTACIÓN'!N19","v":0}]
[null,null,null,null,null,null,null,null,null,null,{"$f":"+'1.2.3. CONCERTACIÓN'!N20","v":0}]
[{"$f":"'1.2.3. CONCERTACIÓN'!F21","v":0},null,null,null,{"$f":"+'1.2.3. CONCERTACIÓN'!Y21","v":0},null,null,null,null,null,{"$f":"+'1.2.3. CONCERTACIÓN'!N21","v":0},null,null,null,null,null,null,null,null,null,{"$f":"'1.2.3. CONCERTACIÓN'!AF21","v":0},null,{"$f":"(U20*V20)","v":0},null,{"$f":"(U20*X20)","v":0}]
[null,null,null,null,null,null,null,null,null,null,{"$f":"+'1.2.3. CONCERTACIÓN'!N22","v":0}]
[null,null,null,null,null,null,null,null,null,null,{"$f":"+'1.2.3. CONCERTACIÓN'!N23","v":0}]
[null,null,null,null,null,null,null,null,null,null,{"$f":"+'1.2.3. CONCERTACIÓN'!N24","v":0}]
[{"$f":"'1.2.3. CONCERTACIÓN'!F25","v":0},null,null,null,{"$f":"+'1.2.3. CONCERTACIÓN'!Y25","v":0},null,null,null,null,null,{"$f":"+'1.2.3. CONCERTACIÓN'!N25","v":0},null,null,null,null,null,null,null,null,null,{"$f":"'1.2.3. CONCERTACIÓN'!AF25","v":0},null,{"$f":"(U24*V24)","v":0},null,{"$f":"(U24*X24)","v":0}]
[null,null,null,null,null,null,null,null,null,null,{"$f":"+'1.2.3. CONCERTACIÓN'!N26","v":0}]
[null,null,null,null,null,null,null,null,null,null,{"$f":"+'1.2.3. CONCERTACIÓN'!N27","v":0}]
[null,null,null,null,null,null,null,null,null,null,{"$f":"+'1.2.3. CONCERTACIÓN'!N28","v":0}]
[" TOTAL COMPROMISOS LABORALES",null,null,null,null,null,null,null,null,null,null,null,null,null,null,null,null,null,null,null,{"$f":"IF(SUM(U7:U27)>100,\"Numero no puede ser mayor que 100\",SUM(U7:U27))","v":0},null,{"$f":"SUM(W8:W27)","v":0},null,{"$f":"SUM(Y8:Y27)","v":0}]
[]
["% Participación Días Laborados para la Evaluación Extraordinaria",null,null,"Previa a la Extraordinaria (Si hubo)",null,null,{"$f":"IFERROR(+O4/($O$4+$O$5),0)","v":0},null,null,"Sobre 100%",{"$f":"(W28*G30+Y28*G31)","v":0},null,null,"8.7 Califficación evaluación primer semestre (Sobre 80%) ",null,null,null,null,null,null,null,null,null,{"$f":"+K30*80%","v":0}]
[null,null,null,"Evaluación último Período",null,null,{"$f":"IFERROR(+O5/($O$4+$O$5),0)","v":0}]
["8.8 COMPROMISOS COMPORTAMENTALES FIJADOS",null,null,null,null,null,null,null,"8. 9 EVALUACIÓN DE COMPROMISOS COMPORTAMENTALES"]
["NIVEL JERARQUICO",null,"COMPETENCIAS COMPORTAMENTALES",null,null,"CONDUCTA ASOCIADA ",null,null,"EVA. PREVIA A LA EXTR.\n(Si hubo)",null,null,null,null,null,null,null,null,"EVA. ÚLTIMO PERÍODO."]
[null,null,null,null,null,null,null,null,"NIVELES DE FRECUENCIA",null,null,"DESCRIPCIÓN ",null,null,null,"RESULTADOS CUANTITATIVOS",null,"NIVELES DE FRECUENCIA",null,null,null,"Descripción Cualitativa",null,"Resultado Cuantitativo"]
[{"$f":"+'1.2.3. CONCERTACIÓN'!C32","v":0},null,{"$f":"+'1.2.3. CONCERTACIÓN'!H32","v":0},null,null,{"$f":"+'1.2.3. CONCERTACIÓN'!R32","v":0},null,null,null,null,null,{"$f":"IF(I35='lista de selecciones'!$I$188,'lista de selecciones'!$J$188,IF('8. EVALUACIÓN EXTRAORDINARIA FP'!I35='lista de selecciones'!$I$189,'lista de selecciones'!$J$189,IF('8. EVALUACIÓN EXTRAORDINARIA FP'!I35='lista de selecciones'!$I$190,'lista de selecciones'!$J$190,IF('8. EVALUACIÓN EXTRAORDINARIA FP'!I35='lista de selecciones'!$I$191,'lista de selecciones'!$J$191,0))))","v":0},null,null,null,{"$f":"IF(I35='lista de selecciones'!I188,'lista de selecciones'!K188,IF(I35='lista de selecciones'!I189,'lista de selecciones'!K189,IF(I35='lista de selecciones'!I190,'lista de selecciones'!K190,IF(I35='lista de selecciones'!I191,'lista de selecciones'!K191,0))))","v":0},null,null,null,null,null,{"$f":"IF(R35='lista de selecciones'!$I$188,'lista de selecciones'!$J$188,IF(R35='lista de selecciones'!$I$189,'lista de selecciones'!$J$189,IF(R35='lista de selecciones'!$I$190,'lista de selecciones'!$J$190,IF(R35='lista de selecciones'!$I$191,'lista de selecciones'!$J$191,0))))","v":0},null,{"$f":"IF(R35='lista de selecciones'!I188,'lista de selecciones'!K188,IF(R35='lista de selecciones'!I189,'lista de selecciones'!K189,IF(R35='lista de selecciones'!I190,'lista de selecciones'!K190,IF(R35='lista de selecciones'!I191,'lista de selecciones'!K191,0))))","v":0}]
[{"$f":"A35","v":0},null,{"$f":"+'1.2.3. CONCERTACIÓN'!H33","v":0},null,null,{"$f":"+'1.2.3. CONCERTACIÓN'!R33","v":0},null,null,null,null,null,{"$f":"IF(I36='lista de selecciones'!$I$188,'lista de selecciones'!$J$188,IF('8. EVALUACIÓN EXTRAORDINARIA FP'!I36='lista de selecciones'!$I$189,'lista de selecciones'!$J$189,IF('8. EVALUACIÓN EXTRAORDINARIA FP'!I36='lista de selecciones'!$I$190,'lista de selecciones'!$J$190,IF('8. EVALUACIÓN EXTRAORDINARIA FP'!I36='lista de selecciones'!$I$191,'lista de selecciones'!$J$191,0))))","v":0},null,null,null,{"$f":"IF(I36='lista de selecciones'!I188,'lista de selecciones'!K188,IF(I36='lista de selecciones'!I189,'lista de selecciones'!K189,IF(I36='lista de selecciones'!I190,'lista de selecciones'!K190,IF(I36='lista de selecciones'!I191,'lista de selecciones'!K191,0))))","v":0},null,null,null,null,null,{"$f":"IF(R36='lista de selecciones'!$I$188,'lista de selecciones'!$J$188,IF(R36='lista de selecciones'!$I$189,'lista de selecciones'!$J$189,IF(R36='lista de selecciones'!$I$190,'lista de selecciones'!$J$190,IF(R36='lista de selecciones'!$I$191,'lista de selecciones'!$J$191,0))))","v":0},null,{"$f":"IF(R36='lista de selecciones'!I188,'lista de selecciones'!K188,IF(R36='lista de selecciones'!I189,'lista de selecciones'!K189,IF(R36='lista de selecciones'!I190,'lista de selecciones'!K190,IF(R36='lista de selecciones'!I191,'lista de selecciones'!K191,0))))","v":0}]
[{"$f":"A35","v":0},null,{"$f":"+'1.2.3. CONCERTACIÓN'!H34","v":0},null,null,{"$f":"+'1.2.3. CONCERTACIÓN'!R34","v":0},null,null,null,null,null,{"$f":"IF(I37='lista de selecciones'!$I$188,'lista de selecciones'!$J$188,IF('8. EVALUACIÓN EXTRAORDINARIA FP'!I37='lista de selecciones'!$I$189,'lista de selecciones'!$J$189,IF('8. EVALUACIÓN EXTRAORDINARIA FP'!I37='lista de selecciones'!$I$190,'lista de selecciones'!$J$190,IF('8. EVALUACIÓN EXTRAORDINARIA FP'!I37='lista de selecciones'!$I$191,'lista de selecciones'!$J$191,0))))","v":0},null,null,null,{"$f":"IF(I37='lista de selecciones'!I188,'lista de selecciones'!K188,IF(I37='lista de selecciones'!I189,'lista de selecciones'!K189,IF(I37='lista de selecciones'!I190,'lista de selecciones'!K190,IF(I37='lista de selecciones'!I191,'lista de selecciones'!K191,0))))","v":0},null,null,null,null,null,{"$f":"IF(R37='lista de selecciones'!$I$188,'lista de selecciones'!$J$188,IF(R37='lista de selecciones'!$I$189,'lista de selecciones'!$J$189,IF(R37='lista de selecciones'!$I$190,'lista de selecciones'!$J$190,IF(R37='lista de selecciones'!$I$191,'lista de selecciones'!$J$191,0))))","v":0},null,{"$f":"IF(R37='lista de selecciones'!I188,'lista de selecciones'!K188,IF(R37='lista de selecciones'!I189,'lista de selecciones'!K189,IF(R37='lista de selecciones'!I190,'lista de selecciones'!K190,IF(R37='lista de selecciones'!I191,'lista de selecciones'!K191,0))))","v":0}]
[{"$f":"A36","v":0},null,{"$f":"+'1.2.3. CONCERTACIÓN'!H35","v":0},null,null,{"$f":"+'1.2.3. CONCERTACIÓN'!R35","v":0},null,null,null,null,null,{"$f":"IF(I38='lista de selecciones'!$I$188,'lista de selecciones'!$J$188,IF('8. EVALUACIÓN EXTRAORDINARIA FP'!I38='lista de selecciones'!$I$189,'lista de selecciones'!$J$189,IF('8. EVALUACIÓN EXTRAORDINARIA FP'!I38='lista de selecciones'!$I$190,'lista de selecciones'!$J$190,IF('8. EVALUACIÓN EXTRAORDINARIA FP'!I38='lista de selecciones'!$I$191,'lista de selecciones'!$J$191,0))))","v":0},null,null,null,{"$f":"IF(I38='lista de selecciones'!I188,'lista de selecciones'!K188,IF(I38='lista de selecciones'!I189,'lista de selecciones'!K189,IF(I38='lista de selecciones'!I190,'lista de selecciones'!K190,IF(I38='lista de selecciones'!I191,'lista de selecciones'!K191,0))))","v":0},null,null,null,null,null,{"$f":"IF(R38='lista de selecciones'!$I$188,'lista de selecciones'!$J$188,IF(R38='lista de selecciones'!$I$189,'lista de selecciones'!$J$189,IF(R38='lista de selecciones'!$I$190,'lista de selecciones'!$J$190,IF(R38='lista de selecciones'!$I$191,'lista de selecciones'!$J$191,0))))","v":0},null,{"$f":"IF(R38='lista de selecciones'!I188,'lista de selecciones'!K188,IF(R38='lista de selecciones'!I189,'lista de selecciones'!K189,IF(R38='lista de selecciones'!I190,'lista de selecciones'!K190,IF(R38='lista de selecciones'!I191,'lista de selecciones'!K191,0))))","v":0}]
[null,null,null,null,null,null,null,null,"TOTAL COMPROMISOS COMPORTAMENTALES PREVIA A LA EVALUACIÓN EXTRAORDINARIA (Si hubo) ",null,null,null,null,null,null,{"$f":"SUM(P35:Q38)/4","v":0},null,"TOTAL COMPROMISOS COMPORTAMENTALES ULTIMO PERIODO ",null,null,null,null,null,{"$f":"SUM(X35:Y38)/4","v":0}]
["% Participación Días Laborados para la Evaluación Extraordinaria",null,null,"Previa a la Extraordinaria (Si hubo)",null,null,{"$f":"IFERROR(+O4/($O$4+$O$5),0)","v":0},null,null,"Sobre 100%",{"$f":"(P39*G40+X39*G41)","v":0},null,null,"8. 10 CALIFICACIÓN TOTAL COMPETENCIAS COMPORTAMENTALES (Sobre 20%)",null,null,null,null,null,null,null,null,null,{"$f":"+(K40*20%)*10","v":0}]
[null,null,null,"Evaluación último Período",null,null,{"$f":"IFERROR(+O5/($O$4+$O$5),0)","v":0}]
["RESULTADOS CONSOLIDADOS EVALUACIÓN EXTRAORDINARIA",null,null,null,null,"Resultados ",{"$f":"X30+X40","v":0},null,null,null,null,"NIVEL DE CALIFICACIÓN",null,null,null,null,null,{"$f":"IF(G42<=69,'lista de selecciones'!A162,IF(G42<90,'lista de selecciones'!A161,IF(G42>=90,'lista de selecciones'!A160)))","v":"No satisfactorio"}]
[]
["8.11 Notificación "]
["LUGAR Y FECHA DE DILIGENCIAMIENTO"]
[null,null,null,"EMPLEADO A EVALUAR",null,null,null,null,null,"JEFE INMEDIATO (PRIMER EVALUADOR)",null,null,null,null,null,null,null,"SEGUNDO EVALUADOR \n"]
["NOMBRE COMPLETO",null,null,{"$f":"'1.2.3. CONCERTACIÓN'!J39","v":0},null,null,null,null,null,{"$f":"+'1.2.3. CONCERTACIÓN'!P39","v":0},null,null,null,null,null,null,null,{"$f":"'1.2.3. CONCERTACIÓN'!Z39","v":0}]
["NUMERO DE DOCUMENTO IDENTIDAD",null,null,{"$f":"'1.2.3. CONCERTACIÓN'!J40","v":0},null,null,null,null,null,{"$f":"+'1.2.3. CONCERTACIÓN'!P40","v":0},null,null,null,null,null,null,null,{"$f":"'1.2.3. CONCERTACIÓN'!Z40","v":0}]
["CARGO (DENOMINACIÓN-CÓDIGO-GRADO)",null,null,{"$f":"'1.2.3. CONCERTACIÓN'!J41","v":0},null,null,null,null,null,{"$f":"+'1.2.3. CONCERTACIÓN'!P41","v":0},null,null,null,null,null,null,null,{"$f":"'1.2.3. CONCERTACIÓN'!Z41","v":0}]
["DEPENDENCIA",null,null,{"$f":"'1.2.3. CONCERTACIÓN'!J42","v":0},null,null,null,null,null,{"$f":"+'1.2.3. CONCERTACIÓN'!P42","v":0},null,null,null,null,null,null,null,{"$f":"'1.2.3. CONCERTACIÓN'!Z42","v":0}]
["FIRMAS"]
["Contra esta calificación procede el recurso de reposición y en subsidio el de apelación interpuestos ante el evaluador dentro de los cinco (5) días hábiles siguientes a la fecha de notificación. Los recursos deben presentarse por escrito, personalmente o mediante apoderado y exponiendo los motivos de inconformidad."]
["Interpuso recurso de Reposición",null,null,null,null,null,null,"FECHA",null,null,null,"Interpuso recurso de Apelación",null,null,null,null,null,null,null,null,null,null,"FECHA"]
[]
[]
[null,"NOMBRE DEL EVALUADO",null,null,null,null,null,null,null,null,null,null,null,"FIRMA DEL EVALUADO"]
[]
[null,"NOMBRE DEL NOTIFICADOR",null,null,null,null,null,null,null,null,null,null,null,"FIRMA DEL NOTIFICADOR"]
["6.13 OBSERVACIONES"]

{"sheet":"EVALUACIÓN EXTRAORDINARIA","index":13,"n_rows":60,"n_cols":20,"rows_kept":60,"cut":false,"hidden":true,"merged":[[53,0,54,1],[53,9,54,10],[53,11,55,18],[56,0,56,8],[56,9,56,18],[57,0,57,8],[57,9,57,18],[58,0,58,18],[59,0,60,2],[59,3,60,3],[59,4,60,6],[59,7,60,10],[59,11,60,14],[59,15,60,18],[46,0,47,1],[46,9,47,10],[46,11,47,18],[48,0,49,1],[48,9,50,10],[48,11,50,18],[51,0,52,1],[51,9,52,10],[51,11,52,18],[43,0,43,8],[43,9,43,18],[44,0,45,2],[44,3,45,5],[44,6,44,8],[44,9,45,11],[44,12,45,15],[44,16,44,18],[45,6,45,8],[45,16,45,18],[35,0,36,18],[37,0,38,1],[37,2,38,6],[37,7,38,8],[37,9,38,15],[37,16,38,18],[39,0,40,1],[39,16,41,18],[42,0,42,18],[29,7,29,8],[29,9,34,10],[29,11,31,18],[30,0,31,4],[30,5,31,6],[30,7,31,8],[32,0,32,4],[32,5,32,6],[32,7,32,8],[32,11,34,18],[33,0,33,8],[34,0,34,8],[29,1,29,4],[29,5,29,6],[22,13,23,13],[22,14,23,16],[22,17,23,18],[24,0,24,8],[24,9,28,10],[24,11,25,18],[25,0,25,4],[25,5,25,6],[25,7,25,8],[26,1,26,4],[26,11,26,14],[26,15,26,18],[27,1,27,4],[27,5,27,6],[27,7,27,8],[27,11,28,14],[27,15,28,18],[28,1,28,4],[28,5,28,6],[28,7,28,8],[26,5,26,6],[26,7,26,8],[22,0,23,10],[18,11,18,14],[18,15,18,18],[19,11,19,14],[19,15,19,18],[20,0,21,10],[20,11,20,14],[20,15,20,18],[21,11,21,14],[21,15,21,18],[10,15,11,16],[5,15,5,16],[5,17,5,18],[6,4,7,8],[6,9,7,10],[6,11,7,12],[6,13,7,14],[6,15,7,16],[6,17,7,18],[2,4,5,8],[2,9,5,10],[6,0,7,3],[1,0,1,18],[2,0,5,3],[22,11,23,12],[18,0,19,5],[18,6,18,10],[19,6,19,10],[14,4,15,8],[14,9,15,10],[14,0,15,3],[2,11,3,18],[4,11,4,14],[4,15,4,18],[5,11,5,12],[5,13,5,14],[10,17,11,18],[12,4,13,8],[12,9,13,10],[12,11,13,12],[12,13,13,14],[12,15,13,16],[12,17,13,18],[14,11,15,12],[14,13,15,14],[17,16,17,18],[17,12,17,15],[17,9,17,11],[12,0,13,3],[10,0,11,3],[8,0,9,3],[17,0,17,5],[17,6,17,8],[8,4,9,8],[8,9,9,10],[14,15,15,16],[14,17,15,18],[16,0,16,8],[16,9,16,10],[16,11,16,13],[16,15,16,17],[8,11,9,12],[8,13,9,14],[8,15,9,16],[8,17,9,18],[10,4,11,8],[10,9,11,10],[10,11,11,12],[10,13,11,14]]}
[]
["IV. COMPROMISOS LABORALES"]
["Metas de la Dependencia a las cuales contribuye el empleo",null,null,null,"Compromisos Laborales.",null,null,null,null,"Peso porcentual del compromiso",null,"Porcentaje de Cumplimiento. "]
[]
[null,null,null,null,null,null,null,null,null,null,null," EVALUACIÓN REALIZADA PREVIA A LA EXTRAORDINARIA (Si hubo)",null,null,null,"EVALUACIÓN ULTIMO PERÍODO"]
[null,null,null,null,null,null,null,null,null,null,null,"CALIFICACIÓN DEL COMPROMISO",null,"CALIFICACIÓN DEL COMPROMISO (Con peso porcentual)",null,"CALIFICACIÓN DEL COMPROMISO",null,"CALIFICACIÓN DEL COMPROMISO (Con peso porcentual)"]
[{"$f":"'[2]F2. COMP. LAB Y COM COMPOR'!A11","v":"I. IDENTIFICACIÓN DEL EVALUADO"},null,null,null,{"$f":"'[2]F2. COMP. LAB Y COM COMPOR'!H11","v":0},null,null,null,null,1,null,null,null,{"$f":"$J7*L7","v":0},null,100,null,{"$f":"$J7*P7","v":100}]
[]
[{"$f":"'[2]F2. COMP. LAB Y COM COMPOR'!A13","v":"CEDULA DE CIUDADANIA"},null,null,null,{"$f":"'[2]F2. COMP. LAB Y COM COMPOR'!H13","v":0},null,null,null,null,{"$f":"'[2]F2. COMP. LAB Y COM COMPOR'!Q13","v":0},null,null,null,{"$f":"J9*L9","v":0},null,null,null,{"$f":"$J9*P9","v":0}]
[]
[{"$f":"'[2]F2. COMP. LAB Y COM COMPOR'!A15","v":"GRUPO DE GESTIÓN HUMANA "},null,null,null,{"$f":"'[2]F2. COMP. LAB Y COM COMPOR'!H15","v":0},null,null,null,null,{"$f":"'[2]F2. COMP. LAB Y COM COMPOR'!Q15","v":0},null,null,null,{"$f":"J11*L11","v":0},null,null,null,{"$f":"$J11*P11","v":0}]
[]
[{"$f":"'[2]F2. COMP. LAB Y COM COMPOR'!A17","v":"PROFESIONAL"},null,null,null,{"$f":"'[2]F2. COMP. LAB Y COM COMPOR'!H17","v":12},null,null,null,null,{"$f":"'[2]F2. COMP. LAB Y COM COMPOR'!Q17","v":0},null,null,null,{"$f":"J13*L13","v":0},null,null,null,{"$f":"$J13*P13","v":0}]
[]
[{"$f":"'[2]F2. COMP. LAB Y COM COMPOR'!A19","v":"Tipo de documento"},null,null,null,{"$f":"'[2]F2. COMP. LAB Y COM COMPOR'!H19","v":0},null,null,null,null,{"$f":"'[2]F2. COMP. LAB Y COM COMPOR'!Q19","v":0},null,null,null,{"$f":"J15*L15","v":0},null,null,null,{"$f":"$J15*P15","v":0}]
[]
[" PESO TOTAL PONDERADO DE LOS COMPROMISOS LABORALES",null,null,null,null,null,null,null,null,{"$f":"SUM(J7:K16)","v":1},null,"Resultado total ",null,null,{"$f":"SUMIF(N7:O16,\"<101\",N7:O16)","v":0},"Resultado total ",null,null,{"$f":"SUMIF(R7:S16,\"<101\",R7:S16)","v":100}]
["Fecha de evaluación ",null,null,null,null,null,"Desde",null,null,"20/02/2017%",null,null,"Hasta"]
["Días Efectivamente Laborados",null,null,null,null,null,"Total Días Laborados Efectivamente",null,null,null,null,null,null,null,null,20]
[null,null,null,null,null,null,"% Participación Días Laborados para la Evaluación Extraordinaria",null,null,null,null,{"$f":"IFERROR(+L19/($L$19+$P$19),0)","v":0},null,null,null,{"$f":"IFERROR(+P19/($L$19+$P$19),0)","v":1}]
["Calificaciones parciales semestrales compromisos laborales ",null,null,null,null,null,null,null,null,null,null,"1° Calificación",null,null,null,"2° Calificación"]
[null,null,null,null,null,null,null,null,null,null,null,{"$f":"O17*40","v":0},null,null,null,{"$f":"S17*40","v":4000}]
["CALIFICACIÓN TOTAL COMPROMISOS LABORALES",null,null,null,null,null,null,null,null,null,null,"Sobre el 100%",null,{"$f":"(O17*L20+S17*P20)","v":100},"Sobre el peso porcentual del 85%",null,null,{"$f":"+N23*85%","v":85}]
[]
["V. COMPETENCIAS COMPORTAMENTALES",null,null,null,null,null,null,null,null,"F4. CALF. COM. COMPORT.'!A1",null,"VI. RESULTADOS CONSOLIDADOS EVALUCIÒN EXTRAORDINARIA"]
["COMPETENCIAS COMPORTAMENTALES",null,null,null,null,"Eva. Previa a la EXTR.\n(Si hubo)",null,"Eva. Último período."]
["1.  ",{"$f":"'[2]F2. COMP. LAB Y COM COMPOR'!B25","v":0},null,null,null,15,null,15,null,null,null,"CALIFICACIÓN",null,null,null,"NIVEL DE CALIFICACIÓN"]
["2. ",{"$f":"'[2]F2. COMP. LAB Y COM COMPOR'!B27","v":0},null,null,null,15,null,15,null,null,null,{"$f":"SUM(R23,A35)/100","v":1},null,null,null,{"$f":"IFERROR(VLOOKUP(L28,[2]Hoja4!T$2:U$101,2),0)","v":"SOBRESALIENTE"}]
["3. ",{"$f":"'[2]F2. COMP. LAB Y COM COMPOR'!B29","v":0},null,null,null,15,null,15]
["4. ",{"$f":"'[2]F2. COMP. LAB Y COM COMPOR'!B31","v":0},null,null,null,15,null,15,null,"F7. PLAN DE MEJORAMIENTO'!A1",null,"F2. COMP. LAB Y COM COMPOR'!A1"]
["CALIFICACIÓN",null,null,null,null,{"$f":"SUM(F27:G30)/4","v":15},null,{"$f":"SUM(H27:I30)/4","v":15}]
[]
["% Participación Días Laborados de cada Eva. Eventual",null,null,null,null,{"$f":"+L20","v":0},null,{"$f":"+P20","v":1},null,null,null,"F3. EVIDENCIAS'!A1",null,null,null,null,null,null,null,{"$f":"+#REF!*#REF!","v":{"$error":"#REF!"}}]
["CALIFICACIÓN DE LAS COMPETENCIAS COMPORTAMENTALES",null,null,null,null,null,null,null,null,null,null,null,null,null,null,null,null,null,null,{"$f":"+#REF!*#REF!","v":{"$error":"#REF!"}}]
[{"$f":"+F31*F33+H31*H33","v":15}]
["VII. NOTIFICACIÓN"]
[]
["Nombre del Evaluado:",null,null,null,null,null,null,"Nombre del evaluador:",null,null,null,null,null,null,null,null,"RECURSO"]
[]
["Firma"]
[null,null,null,null,null,null,null,"Firma"]
[]
["VIII. DECISIÓN DE RECURSOS"]
["RECURSO DE REPOSICIÓN",null,null,null,null,null,null,null,null,"RECURSO DE APELACIÓN"]
["DECISIÓN",null,null,null,null,null,"FECHA",null,null,"DECISIÓN",null,null,null,null,null,null,"FECHA"]
[]
["Nombre del Evaluado:",null,null,null,null,null,null,null,null,"Nombre del Evaluado:"]
[null,null,null,"______________________________"]
["Firma",null,null,null,null,null,null,null,null,"Firma"]
[]
[]
["Nombre del Notificador:",null,null,null,null,null,null,null,null,"Nombre del Notificador:"]
[null,null,null,"______________________________"]
["Firma",null,null,null,null,null,null,null,null,"Firma"]
[]
[]
["MOTIVACIÓN (Anexar Acto Administrativo):",null,null,null,null,null,null,null,null,"MOTIVACIÓN (Anexar Acto Administrativo):"]
[]
["IX. CALIFICACIÓN DEFINITIVA"]
["CALIFICACIÓN DEFINITIVA EN FIRME",null,null,null,"FIRMA Y NÚMERO DE CÉDULA DEL NOTIFICADO",null,null,null,null,null,null,"FIRMA Y NÚMERO DE CÉDULA DEL NOTIFICADOR"]

{"sheet":"9. EVALUACIÓN PERIODO DE PRUEBA","index":14,"n_rows":61,"n_cols":24,"rows_kept":61,"cut":false,"hidden":false,"merged":[[6,14,6,17],[6,5,6,10],[6,11,6,13],[7,11,7,13],[27,0,28,17],[27,20,28,20],[27,23,28,23],[37,19,37,21],[36,0,36,1],[36,2,36,4],[36,5,36,9],[36,10,36,12],[36,13,36,14],[36,22,36,23],[37,22,37,23],[34,22,34,23],[35,22,35,23],[33,19,33,21],[34,19,34,21],[29,21,30,23],[30,3,30,7],[30,8,30,10],[31,0,31,9],[29,11,30,11],[1,0,1,23],[4,11,4,13],[3,15,4,20],[5,18,5,20],[2,11,2,20],[2,3,2,8],[5,0,5,17],[3,5,3,6],[4,5,4,6],[3,7,3,8],[4,7,4,8],[4,9,4,10],[2,0,2,2],[2,9,2,10],[2,21,2,23],[3,0,4,0],[3,1,3,2],[3,3,3,4],[3,9,3,10],[3,11,3,13],[3,21,4,23],[4,1,4,2],[4,3,4,4],[5,21,5,23],[43,0,43,23],[44,0,44,2],[39,14,40,20],[54,13,54,18],[38,15,38,16],[54,0,54,7],[54,9,54,10],[54,11,54,12],[46,0,46,2],[46,3,46,10],[46,11,46,17],[46,18,46,23],[47,0,47,2],[47,3,47,10],[47,11,47,17],[44,3,44,23],[45,0,45,2],[45,3,45,10],[45,11,45,17],[45,18,45,23],[47,18,47,23],[50,0,50,2],[50,3,50,10],[50,11,50,17],[48,0,48,2],[48,3,48,10],[48,11,48,17],[48,18,48,23],[49,0,49,2],[49,3,49,10],[49,11,49,17],[49,18,49,23],[50,18,50,23],[60,0,60,23],[61,0,61,23],[57,1,57,9],[59,1,59,9],[59,14,59,22],[58,1,58,9],[54,20,54,21],[51,0,51,23],[52,0,53,23],[57,14,57,22],[54,22,54,23],[56,1,56,8],[56,14,56,22],[58,14,58,22],[39,21,40,23],[40,3,40,7],[40,8,40,10],[41,0,42,4],[41,5,42,7],[41,18,42,23],[37,0,37,1],[37,2,37,4],[37,5,37,9],[37,10,37,12],[37,13,37,14],[37,15,37,16],[38,0,38,9],[38,10,38,14],[39,0,40,2],[39,3,39,7],[39,8,39,10],[39,11,40,11],[39,12,40,13],[41,8,42,10],[41,11,42,17],[38,22,38,23],[37,17,37,18],[38,17,38,21],[31,10,31,23],[33,13,33,14],[36,17,36,18],[34,17,34,18],[34,15,34,16],[36,15,36,16],[35,0,35,1],[35,2,35,4],[35,5,35,9],[35,10,35,12],[35,13,35,14],[34,0,34,1],[34,2,34,4],[34,5,34,9],[34,10,34,12],[34,13,34,14],[35,15,35,16],[32,17,32,23],[35,17,35,18],[35,19,35,21],[36,19,36,21],[33,22,33,23],[33,17,33,18],[6,0,6,4],[32,5,33,9],[33,15,33,16],[29,12,30,13],[32,0,33,1],[32,2,33,4],[29,0,30,2],[29,3,29,7],[29,8,29,10],[32,10,32,16],[29,14,30,20],[7,5,10,10],[7,14,10,17],[18,11,18,13],[19,11,19,13],[15,0,18,4],[15,5,18,10],[15,14,18,17],[14,11,14,13],[15,11,15,13],[16,11,16,13],[11,0,14,4],[11,5,14,10],[33,10,33,12],[27,19,28,19],[27,22,28,22],[27,18,28,18],[27,21,28,21],[17,11,17,13],[26,11,26,13],[23,0,26,4],[23,5,26,10],[23,14,26,17],[23,11,23,13],[24,11,24,13],[25,11,25,13],[20,11,20,13],[21,11,21,13],[22,11,22,13],[19,0,22,4],[19,5,22,10],[19,14,22,17],[8,11,8,13],[9,11,9,13],[10,11,10,13],[7,0,10,4],[19,23,22,23],[11,14,14,17],[11,18,14,18],[11,19,14,19],[11,20,14,20],[11,21,14,21],[11,22,14,22],[11,23,14,23],[11,11,11,13],[12,11,12,13],[13,11,13,13],[0,0,0,23],[23,18,26,18],[23,19,26,19],[23,20,26,20],[23,21,26,21],[23,22,26,22],[23,23,26,23],[7,18,10,18],[7,19,10,19],[7,20,10,20],[7,21,10,21],[7,22,10,22],[7,23,10,23],[15,18,18,18],[15,19,18,19],[15,20,18,20],[15,21,18,21],[15,22,18,22],[15,23,18,23],[19,18,22,18],[19,19,22,19],[19,20,22,20],[19,21,22,21],[19,22,22,22]]}
["Evaluación del Desempeño Laboral para Servidores de Carrera Administrativa y Libre Nombramiento y Remoción"]
["9. Evaluación periodo de prueba "]
["9.1 Tipo de empleo ",null,null,"CARRERA ADMINISTRATIVA",null,null,null,null,null,{"$f":"+'1.2.3. CONCERTACIÓN'!R4","v":0},null,"LIBRE NOMBRAMIENTO Y REMOCIÓN (LNR)\n(Seguimiento cumplimiento de funciones empleados)",null,null,null,null,null,null,null,null,null,{"$f":"+'1.2.3. CONCERTACIÓN'!AF4","v":0}]
["9.2 Fecha de evaluación ","Previa a la evaluación\n(Si hubo)",null,"DESDE",null,null,null,"HASTA ",null,null,null,"No. DÍAS EVALUADOS ",null,null,{"$f":"IF((J4-F4+1)=1,0,J4-F4+1)","v":0},"9.3. Nivel del empleo ",null,null,null,null,null,{"$f":"+'1.2.3. CONCERTACIÓN'!AC5","v":0}]
[null,"Evaluación último Período",null,"DESDE",null,null,null,"HASTA ",null,null,null,"No. DÍAS EVALUADOS ",null,null,{"$f":"IF((J5-F5+1)=1,0,J5-F5+1)","v":0}]
["9.4 Evaluación de compromisos laborales ",null,null,null,null,null,null,null,null,null,null,null,null,null,null,null,null,null,"9.5 EVALUACIÓN REALIZADA PREVIAMENTE\n(Si hubo)",null,null,"9.6 EVALUACIÓN ÚLTIMO PERÍODO"]
["COMPROMISO LABORAL",null,null,null,null,"EVIDENCIA DEL CUMPLIMIENTO DEL COMPROMISO",null,null,null,null,null,"REQUISITOS DE CALIDAD",null,null,"COMENTARIOS - RUTA DE EVIDENCIA",null,null,null,"PESO","LOGRO %","PUNTAJE","PESO","LOGRO %","PUNTAJE"]
[{"$f":"'1.2.3. CONCERTACIÓN'!F9","v":0},null,null,null,null,{"$f":"+'1.2.3. CONCERTACIÓN'!Y9","v":0},null,null,null,null,null,{"$f":"+'1.2.3. CONCERTACIÓN'!N9","v":0},null,null,null,null,null,null,{"$f":"'1.2.3. CONCERTACIÓN'!AF9","v":0},null,{"$f":"(S8*T8)","v":0},{"$f":"'1.2.3. CONCERTACIÓN'!AF9","v":0}]
[null,null,null,null,null,null,null,null,null,null,null,{"$f":"+'1.2.3. CONCERTACIÓN'!N10","v":0}]
[null,null,null,null,null,null,null,null,null,null,null,{"$f":"+'1.2.3. CONCERTACIÓN'!N11","v":0}]
[null,null,null,null,null,null,null,null,null,null,null,{"$f":"+'1.2.3. CONCERTACIÓN'!N12","v":0}]
[{"$f":"'1.2.3. CONCERTACIÓN'!F13","v":0},null,null,null,null,{"$f":"+'1.2.3. CONCERTACIÓN'!Y13","v":0},null,null,null,null,null,{"$f":"+'1.2.3. CONCERTACIÓN'!N13","v":0},null,null,null,null,null,null,{"$f":"'1.2.3. CONCERTACIÓN'!AF13","v":0},null,{"$f":"(S12*T12)","v":0},{"$f":"'1.2.3. CONCERTACIÓN'!AF13","v":0}]
[null,null,null,null,null,null,null,null,null,null,null,{"$f":"+'1.2.3. CONCERTACIÓN'!N14","v":0}]
[null,null,null,null,null,null,null,null,null,null,null,{"$f":"+'1.2.3. CONCERTACIÓN'!N15","v":0}]
[null,null,null,null,null,null,null,null,null,null,null,{"$f":"+'1.2.3. CONCERTACIÓN'!N16","v":0}]
[{"$f":"'1.2.3. CONCERTACIÓN'!F17","v":0},null,null,null,null,{"$f":"+'1.2.3. CONCERTACIÓN'!Y17","v":0},null,null,null,null,null,{"$f":"+'1.2.3. CONCERTACIÓN'!N17","v":0},null,null,null,null,null,null,{"$f":"'1.2.3. CONCERTACIÓN'!AF17","v":0},null,{"$f":"(S16*T16)","v":0},{"$f":"'1.2.3. CONCERTACIÓN'!AF17","v":0}]
[null,null,null,null,null,null,null,null,null,null,null,{"$f":"+'1.2.3. CONCERTACIÓN'!N18","v":0}]
[null,null,null,null,null,null,null,null,null,null,null,{"$f":"+'1.2.3. CONCERTACIÓN'!N19","v":0}]
[null,null,null,null,null,null,null,null,null,null,null,{"$f":"+'1.2.3. CONCERTACIÓN'!N20","v":0}]
[{"$f":"'1.2.3. CONCERTACIÓN'!F21","v":0},null,null,null,null,{"$f":"+'1.2.3. CONCERTACIÓN'!Y21","v":0},null,null,null,null,null,{"$f":"+'1.2.3. CONCERTACIÓN'!N21","v":0},null,null,null,null,null,null,{"$f":"'1.2.3. CONCERTACIÓN'!AF21","v":0},null,{"$f":"(S20*T20)","v":0},{"$f":"'1.2.3. CONCERTACIÓN'!AF21","v":0},null,{"$f":"(V20*W20)","v":0}]
[null,null,null,null,null,null,null,null,null,null,null,{"$f":"+'1.2.3. CONCERTACIÓN'!N22","v":0}]
[null,null,null,null,null,null,null,null,null,null,null,{"$f":"+'1.2.3. CONCERTACIÓN'!N23","v":0}]
[null,null,null,null,null,null,null,null,null,null,null,{"$f":"+'1.2.3. CONCERTACIÓN'!N24","v":0}]
[{"$f":"'1.2.3. CONCERTACIÓN'!F25","v":0},null,null,null,null,{"$f":"+'1.2.3. CONCERTACIÓN'!Y25","v":0},null,null,null,null,null,{"$f":"+'1.2.3. CONCERTACIÓN'!N25","v":0},null,null,null,null,null,null,{"$f":"'1.2.3. CONCERTACIÓN'!AF25","v":0},null,{"$f":"(S24*T24)","v":0},{"$f":"'1.2.3. CONCERTACIÓN'!AF25","v":0},null,{"$f":"(V24*W24)","v":0}]
[null,null,null,null,null,null,null,null,null,null,null,{"$f":"+'1.2.3. CONCERTACIÓN'!N26","v":0}]
[null,null,null,null,null,null,null,null,null,null,null,{"$f":"+'1.2.3. CONCERTACIÓN'!N27","v":0}]
[null,null,null,null,null,null,null,null,null,null,null,{"$f":"+'1.2.3. CONCERTACIÓN'!N28","v":0}]
[null,null,null,null,null,null,null,null,null,null,null,null,null,null,null,null,null,null,{"$f":"IF(SUM(S7:S27)>100,\"Numero no puede ser mayor que 100\",SUM(S7:S27))","v":0},null,{"$f":"SUM(U8:U27)","v":0},{"$f":"SUM(V8:V27)","v":0},null,{"$f":"SUM(X8:X27)","v":0}]
[]
["% Participación Días Laborados para la Evaluación en periodo de prueba ",null,null,"Previa a la Evaluación (Si hubo)",null,null,null,null,{"$f":"IFERROR(+O4/($O$4+$O$5),0)","v":0},null,null,"Sobre 100%",{"$f":"(U28*I30+X28*I31)","v":0},null,"9.7 CALIFICACIÓN EVALUACIÒN (Sobre 80%) ",null,null,null,null,null,null,{"$f":"+M30*80%","v":0}]
[null,null,null,"Evaluación último Período",null,null,null,null,{"$f":"IFERROR(+O5/($O$4+$O$5),0)","v":0}]
["9.8 COMPROMISOS COMPORTAMENTALES FIJADOS",null,null,null,null,null,null,null,null,null,"9.9 EVALUACIÓN DE COMPROMISOS COMPORTAMENTALES"]
["NIVEL JERARQUICO",null,"COMPETENCIAS COMPORTAMENTALES",null,null,"CONDUCTA ASOCIADA",null,null,null,null,"EVA. PREVIA \n(Si hubo)",null,null,null,null,null,null,"EVA. ÚLTIMO PERÍODO."]
[null,null,null,null,null,null,null,null,null,null,"NIVELES DE FRECUENCIA",null,null,"DESCRIPCIÓN",null,"RESULTADO CUANTITATIVO",null,"NIVELES DE FRECUENCIA",null,"DESCRIPCIÓN",null,null,"RESULTADOS CUANTITATIVOS"]
[{"$f":"+'1.2.3. CONCERTACIÓN'!C32","v":0},null,{"$f":"+'1.2.3. CONCERTACIÓN'!H32","v":0},null,null,{"$f":"+'1.2.3. CONCERTACIÓN'!R32","v":0},null,null,null,null,"Siempre",null,null,{"$f":"IF('9. EVALUACIÓN PERIODO DE PRUEBA'!K35='lista de selecciones'!I188,'lista de selecciones'!J188,IF('9. EVALUACIÓN PERIODO DE PRUEBA'!K35='lista de selecciones'!I189,'lista de selecciones'!J189,IF('9. EVALUACIÓN PERIODO DE PRUEBA'!K35='lista de selecciones'!I190,'lista de selecciones'!J190,IF('9. EVALUACIÓN PERIODO DE PRUEBA'!K35='lista de selecciones'!I191,'lista de selecciones'!J191,0))))","v":"Cumple totalmente con la competencia comportamental de manera constante y suficiente."},null,{"$f":"IF('9. EVALUACIÓN PERIODO DE PRUEBA'!K35='lista de selecciones'!I188,'lista de selecciones'!K188,IF('9. EVALUACIÓN PERIODO DE PRUEBA'!K35='lista de selecciones'!I189,'lista de selecciones'!K189,IF('9. EVALUACIÓN PERIODO DE PRUEBA'!K35='lista de selecciones'!I190,'lista de selecciones'!K190,IF('9. EVALUACIÓN PERIODO DE PRUEBA'!K35='lista de selecciones'!I191,'lista de selecciones'!K191,0))))","v":10},null,"Siempre",null,{"$f":"IF(R35='lista de selecciones'!I188,'lista de selecciones'!J188,IF(R35='lista de selecciones'!I189,'lista de selecciones'!J189,IF(R35='lista de selecciones'!I190,'lista de selecciones'!J190,IF(R35='lista de selecciones'!I191,'lista de selecciones'!J191,0))))","v":"Cumple totalmente con la competencia comportamental de manera constante y suficiente."},null,null,{"$f":"IF(R35='lista de selecciones'!I188,'lista de selecciones'!K188,IF(R35='lista de selecciones'!I189,'lista de selecciones'!K189,IF(R35='lista de selecciones'!I190,'lista de selecciones'!K190,IF(R35='lista de selecciones'!I191,'lista de selecciones'!K191,0))))","v":10}]
[{"$f":"A35","v":0},null,{"$f":"+'1.2.3. CONCERTACIÓN'!H33","v":0},null,null,{"$f":"+'1.2.3. CONCERTACIÓN'!R33","v":0},null,null,null,null,"Siempre",null,null,{"$f":"IF(K36='lista de selecciones'!I188,'lista de selecciones'!J188,IF(K36='lista de selecciones'!I189,'lista de selecciones'!J189,IF(K36='lista de selecciones'!I190,'lista de selecciones'!J190,IF(K36='lista de selecciones'!I191,'lista de selecciones'!J191,0))))","v":"Cumple totalmente con la competencia comportamental de manera constante y suficiente."},null,{"$f":"IF('9. EVALUACIÓN PERIODO DE PRUEBA'!K36='lista de selecciones'!I188,'lista de selecciones'!K188,IF('9. EVALUACIÓN PERIODO DE PRUEBA'!K36='lista de selecciones'!I189,'lista de selecciones'!K189,IF('9. EVALUACIÓN PERIODO DE PRUEBA'!K36='lista de selecciones'!I190,'lista de selecciones'!K190,IF('9. EVALUACIÓN PERIODO DE PRUEBA'!K36='lista de selecciones'!I191,'lista de selecciones'!K191,0))))","v":10},null,"Siempre",null,{"$f":"IF(R36='lista de selecciones'!I188,'lista de selecciones'!J188,IF(R36='lista de selecciones'!I189,'lista de selecciones'!J189,IF(R36='lista de selecciones'!I190,'lista de selecciones'!J190,IF(R36='lista de selecciones'!I191,'lista de selecciones'!J191,0))))","v":"Cumple totalmente con la competencia comportamental de manera constante y suficiente."},null,null,{"$f":"IF(R36='lista de selecciones'!I188,'lista de selecciones'!K188,IF(R36='lista de selecciones'!I189,'lista de selecciones'!K189,IF(R36='lista de selecciones'!I190,'lista de selecciones'!K190,IF(R36='lista de selecciones'!I191,'lista de selecciones'!K191,0))))","v":10}]
[{"$f":"A35","v":0},null,{"$f":"+'1.2.3. CONCERTACIÓN'!H34","v":0},null,null,{"$f":"+'1.2.3. CONCERTACIÓN'!R34","v":0},null,null,null,null,"Siempre",null,null,{"$f":"IF('9. EVALUACIÓN PERIODO DE PRUEBA'!K37='lista de selecciones'!I188,'lista de selecciones'!J188,IF('9. EVALUACIÓN PERIODO DE PRUEBA'!K37='lista de selecciones'!I189,'lista de selecciones'!J189,IF('9. EVALUACIÓN PERIODO DE PRUEBA'!K37='lista de selecciones'!I190,'lista de selecciones'!J190,IF('9. EVALUACIÓN PERIODO DE PRUEBA'!K37='lista de selecciones'!I191,'lista de selecciones'!J191,0))))","v":"Cumple totalmente con la competencia comportamental de manera constante y suficiente."},null,{"$f":"IF('9. EVALUACIÓN PERIODO DE PRUEBA'!K37='lista de selecciones'!I188,'lista de selecciones'!K188,IF('9. EVALUACIÓN PERIODO DE PRUEBA'!K37='lista de selecciones'!I189,'lista de selecciones'!K189,IF('9. EVALUACIÓN PERIODO DE PRUEBA'!K37='lista de selecciones'!I190,'lista de selecciones'!K190,IF('9. EVALUACIÓN PERIODO DE PRUEBA'!K37='lista de selecciones'!I191,'lista de selecciones'!K191,0))))","v":10},null,"Siempre",null,{"$f":"IF(R37='lista de selecciones'!I188,'lista de selecciones'!J188,IF(R37='lista de selecciones'!I189,'lista de selecciones'!J189,IF(R37='lista de selecciones'!I190,'lista de selecciones'!J190,IF(R37='lista de selecciones'!I191,'lista de selecciones'!J191,0))))","v":"Cumple totalmente con la competencia comportamental de manera constante y suficiente."},null,null,{"$f":"IF(R37='lista de selecciones'!I188,'lista de selecciones'!K188,IF(R37='lista de selecciones'!I189,'lista de selecciones'!K189,IF(R37='lista de selecciones'!I190,'lista de selecciones'!K190,IF(R37='lista de selecciones'!I191,'lista de selecciones'!K191,0))))","v":10}]
[{"$f":"A36","v":0},null,{"$f":"+'1.2.3. CONCERTACIÓN'!H35","v":0},null,null,{"$f":"+'1.2.3. CONCERTACIÓN'!R35","v":0},null,null,null,null,"Siempre",null,null,{"$f":"IF('9. EVALUACIÓN PERIODO DE PRUEBA'!K38='lista de selecciones'!I188,'lista de selecciones'!J188,IF('9. EVALUACIÓN PERIODO DE PRUEBA'!K38='lista de selecciones'!I189,'lista de selecciones'!J189,IF('9. EVALUACIÓN PERIODO DE PRUEBA'!K38='lista de selecciones'!I190,'lista de selecciones'!J190,IF('9. EVALUACIÓN PERIODO DE PRUEBA'!K38='lista de selecciones'!I191,'lista de selecciones'!J191,0))))","v":"Cumple totalmente con la competencia comportamental de manera constante y suficiente."},null,{"$f":"IF('9. EVALUACIÓN PERIODO DE PRUEBA'!K38='lista de selecciones'!I188,'lista de selecciones'!K188,IF('9. EVALUACIÓN PERIODO DE PRUEBA'!K38='lista de selecciones'!I189,'lista de selecciones'!K189,IF('9. EVALUACIÓN PERIODO DE PRUEBA'!K38='lista de selecciones'!I190,'lista de selecciones'!K190,IF('9. EVALUACIÓN PERIODO DE PRUEBA'!K38='lista de selecciones'!I191,'lista de selecciones'!K191,0))))","v":10},null,"Siempre",null,{"$f":"IF(R38='lista de selecciones'!I188,'lista de selecciones'!J188,IF(R38='lista de selecciones'!I189,'lista de selecciones'!J189,IF(R38='lista de selecciones'!I190,'lista de selecciones'!J190,IF(R38='lista de selecciones'!I191,'lista de selecciones'!J191,0))))","v":"Cumple totalmente con la competencia comportamental de manera constante y suficiente."},null,null,{"$f":"IF(R38='lista de selecciones'!I188,'lista de selecciones'!K188,IF(R38='lista de selecciones'!I189,'lista de selecciones'!K189,IF(R38='lista de selecciones'!I190,'lista de selecciones'!K190,IF(R38='lista de selecciones'!I191,'lista de selecciones'!K191,0))))","v":10}]
[null,null,null,null,null,null,null,null,null,null,"TOTAL COMPROMISOS COMPORTAMENTALES PREVIA A LA EVALUACIÓN EXTRAORDINARIA (Si hubo) ",null,null,null,null,{"$f":"SUM(P35:Q38)/4","v":10},null,"TOTAL COMPROMISOS COMPORTAMENTALES ULTIMO PERIODO ",null,null,null,null,{"$f":"SUM(W35:X38)/4","v":10}]
["% Participación Días Laborados para la Evaluación Extraordinaria",null,null,"Previa a la Evaluación (Si hubo)",null,null,null,null,{"$f":"IFERROR(+O4/(O4+O5),0)","v":0},null,null,"Sobre 100%",{"$f":"(P39*I40+W39*I41)","v":0},null,"9.10 CALIFICACIÓN TOTAL COMPETENCIAS COMPORTAMENTALES (sobre 20%)",null,null,null,null,null,null,{"$f":"+(M40*20%)*10","v":0}]
[null,null,null,"Evaluación último Período",null,null,null,null,{"$f":"IFERROR(+O5/($O$4+$O$5),0)","v":0}]
["9.11 RESULTADOS CONSOLIDADOS EVALUACIÓN EN PERIODO DE PRUEBA",null,null,null,null,"Resultados ",null,null,{"$f":"SUM(V30,V40)","v":0},null,null,"9.12 NIVEL DE CALIFICACIÓN",null,null,null,null,null,null,{"$f":"IF(I42<=69,'lista de selecciones'!A162,IF(I42<90,'lista de selecciones'!A161,IF(I42>=90,'lista de selecciones'!A160)))","v":"No satisfactorio"}]
[]
["7.13 NOTIFICACIÓN"]
["LUGAR Y FECHA DE DILIGENCIAMIENTO"]
[null,null,null,"EMPLEADO A EVALUAR",null,null,null,null,null,null,null,"JEFE INMEDIATO (PRIMER EVALUADOR)",null,null,null,null,null,null,"SEGUNDO EVALUADOR \n"]
["NOMBRE COMPLETO",null,null,{"$f":"'1.2.3. CONCERTACIÓN'!J39","v":0},null,null,null,null,null,null,null,{"$f":"+'1.2.3. CONCERTACIÓN'!P39","v":0},null,null,null,null,null,null,{"$f":"+'1.2.3. CONCERTACIÓN'!Z39","v":0}]
["NUMERO DE DOCUMENTO IDENTIDAD",null,null,{"$f":"+'1.2.3. CONCERTACIÓN'!J40","v":0},null,null,null,null,null,null,null,{"$f":"+'1.2.3. CONCERTACIÓN'!P40","v":0},null,null,null,null,null,null,{"$f":"+'1.2.3. CONCERTACIÓN'!Z40","v":0}]
["CARGO (DENOMINACIÓN-CÓDIGO-GRADO)",null,null,{"$f":"+'1.2.3. CONCERTACIÓN'!J41","v":0},null,null,null,null,null,null,null,{"$f":"+'1.2.3. CONCERTACIÓN'!P41","v":0},null,null,null,null,null,null,{"$f":"+'1.2.3. CONCERTACIÓN'!Z41","v":0}]
["DEPENDENCIA",null,null,{"$f":"+'1.2.3. CONCERTACIÓN'!J42","v":0},null,null,null,null,null,null,null,{"$f":"+'1.2.3. CONCERTACIÓN'!P42","v":0},null,null,null,null,null,null,{"$f":"+'1.2.3. CONCERTACIÓN'!Z42","v":0}]
["FIRMAS"]
["9.14 NOTIFICACIÓN"]
["Contra esta calificación procede el recurso de reposición y en subsidio el de apelación interpuestos ante el evaluador dentro de los cinco (5) días hábiles siguientes a la fecha de notificación. Los recursos deben presentarse por escrito, personalmente o mediante apoderado y exponiendo los motivos de inconformidad."]
[]
["Interpuso recurso de Reposición",null,null,null,null,null,null,null,null,"FECHA",null,null,null,"Interpuso recurso de Apelación",null,null,null,null,null,null,"FECHA"]
[]
[]
[null,"NOMBRE DEL EVALUADO",null,null,null,null,null,null,null,null,null,null,null,null,"FIRMA DEL EVALUADO"]
[]
[null,"NOMBRE DEL NOTIFICADOR",null,null,null,null,null,null,null,null,null,null,null,null,"FIRMA DEL NOTIFICADOR"]
["9.15 OBSERVACIONES"]

{"sheet":"10. EVALUACION EVENTUAL (sem 1)","index":15,"n_rows":39,"n_cols":19,"rows_kept":39,"cut":false,"hidden":false,"merged":[[28,0,28,11],[28,12,28,18],[20,0,21,1],[17,6,17,11],[18,6,19,11],[20,6,21,11],[22,6,23,11],[24,6,25,11],[17,2,17,5],[18,2,19,5],[20,2,21,5],[22,2,23,5],[24,2,25,5],[34,10,34,14],[32,10,32,14],[32,15,32,18],[32,3,32,9],[33,3,33,9],[34,3,34,9],[3,7,3,8],[9,4,9,8],[15,0,15,11],[15,12,15,18],[7,4,7,8],[12,6,12,10],[13,6,13,10],[8,10,8,11],[7,10,7,11],[3,16,3,18],[10,10,10,11],[7,0,7,3],[4,9,5,9],[3,5,3,6],[3,14,3,15],[3,0,3,3],[37,0,37,2],[35,0,35,2],[36,0,36,2],[34,0,34,2],[24,0,25,1],[32,0,32,2],[30,0,30,18],[31,0,31,2],[31,3,31,18],[35,3,35,9],[24,18,25,18],[29,0,29,11],[29,12,29,18],[36,3,36,9],[37,3,37,9],[27,0,27,11],[16,0,16,18],[26,0,26,11],[26,18,27,18],[17,0,17,1],[4,10,5,11],[4,12,4,18],[20,18,21,18],[18,18,19,18],[10,4,10,8],[6,10,6,11],[18,0,19,1],[22,0,23,1],[22,18,23,18],[3,10,3,12],[38,0,38,18],[1,0,1,18],[33,0,33,2],[33,10,33,14],[6,0,6,3],[6,4,6,8],[8,0,8,3],[8,4,8,8],[10,0,10,3],[9,0,9,3],[9,10,9,11],[11,0,11,8],[11,10,11,11],[11,18,13,18],[12,0,13,5],[0,0,0,18],[2,0,2,5],[2,7,2,17],[39,0,39,18],[4,0,5,3],[4,4,5,8],[14,12,14,18],[14,0,14,11],[37,10,37,14],[33,15,33,18],[34,15,34,18],[35,15,35,18],[36,15,36,18],[37,15,37,18],[35,10,35,14],[36,10,36,14]]}
["Evaluación del desempeño laboral para Servidores de carrera administrativa y libre nombramiento y remoción"]
["10. Compromisos laborales "]
["CARRERA ADMINISTRATIVA",null,null,null,null,null,{"$f":"+'1.2.3. CONCERTACIÓN'!R4","v":0},"LIBRE NOMBRAMIENTO Y REMOCIÓN (LNR)\n(Seguimiento cumplimiento de funciones empleados)",null,null,null,null,null,null,null,null,null,null,{"$f":"+'1.2.3. CONCERTACIÓN'!AF4","v":0}]
["FECHA DE CONCERTACIÓN ",null,null,null,"DESDE",null,null,"HASTA",null,null,"No. DÍAS CONCERTADOS EN EL AÑO",null,null,{"$f":"IF((J4-F4+1)=1,0,J4-F4+1)","v":0},"10.1 Nivel del empleo ",null,{"$f":"+'1.2.3. CONCERTACIÓN'!AC5","v":0}]
[{"$f":"+'4. EVALUACIÓN SEMESTRAL (1)'!B7","v":"COMPROMISO LABORAL"},null,null,null,{"$f":"+'4. EVALUACIÓN SEMESTRAL (1)'!O7","v":"EVIDENCIA DEL CUMPLIMIENTO DEL COMPROMISO"},null,null,null,null,"COMENTARIOS - RUTA DE EVIDENCIA","Peso porcentual del compromiso",null,"Calificación Eventuales"]
[null,null,null,null,null,null,null,null,null,null,null,null,"Cambio de evaluador","Traslado","Situaciones administrativas superiores a 30 días","Lapso entre ultima EDL y final del periodo","Ajuste de compromisos","Nombramiento en periodo de prueba en ascenso","Total Semestre"]
[{"$f":"+'1.2.3. CONCERTACIÓN'!F9","v":0},null,null,null,{"$f":"+'1.2.3. CONCERTACIÓN'!Y9","v":0},null,null,null,null,null,{"$f":"+'1.2.3. CONCERTACIÓN'!AF9","v":0},null,null,null,null,null,null,null,{"$f":"IF($L$13=\"No Aplica\",0,SUM(((K7*M7)*$M$14),((K7*N7)*$N$14),((K7*O7)*$O$14),((K7*P7)*$P$14),((K7*Q7)*$Q$14),((K7*R7)*$R$14)))","v":0}]
[{"$f":"+'1.2.3. CONCERTACIÓN'!F13","v":0},null,null,null,{"$f":"+'1.2.3. CONCERTACIÓN'!Y13","v":0},null,null,null,null,null,{"$f":"+'1.2.3. CONCERTACIÓN'!AF13","v":0},null,null,null,null,null,null,null,{"$f":"IF($L$13=\"No Aplica\",0,SUM(((K8*M8)*$M$14),((K8*N8)*$N$14),((K8*O8)*$O$14),((K8*P8)*$P$14),((K8*Q8)*$Q$14),((K8*R8)*$R$14)))","v":0}]
[{"$f":"+'1.2.3. CONCERTACIÓN'!F17","v":0},null,null,null,{"$f":"+'1.2.3. CONCERTACIÓN'!Y17","v":0},null,null,null,null,null,{"$f":"+'1.2.3. CONCERTACIÓN'!AF17","v":0},null,null,null,null,null,null,null,{"$f":"IF($L$13=\"No Aplica\",0,SUM(((K9*M9)*$M$14),((K9*N9)*$N$14),((K9*O9)*$O$14),((K9*P9)*$P$14),((K9*Q9)*$Q$14),((K9*R9)*$R$14)))","v":0}]
[{"$f":"+'1.2.3. CONCERTACIÓN'!F21","v":0},null,null,null,{"$f":"+'1.2.3. CONCERTACIÓN'!Y21","v":0},null,null,null,null,null,{"$f":"+'1.2.3. CONCERTACIÓN'!AF21","v":0},null,null,null,null,null,null,null,{"$f":"IF($L$13=\"No Aplica\",0,SUM(((K10*M10)*$M$14),((K10*N10)*$N$14),((K10*O10)*$O$14),((K10*P10)*$P$14),((K10*Q10)*$Q$14),((K10*R10)*$R$14)))","v":0}]
[{"$f":"+'1.2.3. CONCERTACIÓN'!F25","v":0},null,null,null,{"$f":"+'1.2.3. CONCERTACIÓN'!Y25","v":0},null,null,null,null,null,{"$f":"+'1.2.3. CONCERTACIÓN'!AF25","v":0},null,null,null,null,null,null,null,{"$f":"IF($L$13=\"No Aplica\",0,SUM(((K11*M11)*$M$14),((K11*N11)*$N$14),((K11*O11)*$O$14),((K11*P11)*$P$14),((K11*Q11)*$Q$14),((K11*R11)*$R$14)))","v":0}]
["TOTALES",null,null,null,null,null,null,null,null,null,{"$f":"SUM(K7:L11)","v":0},null,{"$f":"+M7*$K$7+M8*$K$8+M9*$K$9+M10*$K$10+M11*$K$11","v":0},0,0,0,0,0]
["Días Efectivamente Laborados",null,null,null,null,null,"Total Días Laborados de cada Ev. Eventual",null,null,null,null,{"$f":"IF(SUM(M13:R13)<=30,\"No Aplica\",SUM(M13:R13))","v":"No Aplica"}]
[null,null,null,null,null,null,"% Participación Días Laborados de cada Evaluación. Eventual",null,null,null,null,{"$f":"IFERROR(+L13/$L$13,0)","v":0},0,0,{"$f":"IFERROR(+O13/$L$13,0)","v":0},0,0,0]
["CALIFICACIÓN EVALUACIÒN PRIMER SEMESTRE (Sobre 100) ",null,null,null,null,null,null,null,null,null,null,null,{"$f":"(+M12*M14+N12*N14+O12*O14+P12*P14+Q12*Q14+R12*R14)","v":0}]
["CALIFICACIÓN TOTAL COMPROMISOS LABORALES",null,null,null,null,null,null,null,null,null,null,null,{"$f":"M15*0.8","v":0}]
["10.2. Competencias comportamentales "]
["NIVEL ",null,"COMPETENCIA",null,null,null,"CONDUCTAS ASOCIADAS",null,null,null,null,null,"Cambio de evaluador","Traslado","Situaciones administrativas superiores a 30 días","Lapso entre ultima EDL y final del periodo","Ajuste de compromisos","Nombramiento en periodo de prueba en ascenso","Total Semestre"]
[{"$f":"+'1.2.3. CONCERTACIÓN'!C32","v":0},null,{"$f":"+'1.2.3. CONCERTACIÓN'!H32","v":0},null,null,null,{"$f":"+'1.2.3. CONCERTACIÓN'!R32","v":0},null,null,null,null,null,null,null,null,null,null,null,{"$f":"+M20*M$28+N20*N$28+O20*O$28+P20*P$28+Q20*Q$28+R20*R$28","v":0}]
[null,null,null,null,null,null,null,null,null,null,null,null,{"$f":"IF(M19='lista de selecciones'!$I$188,'lista de selecciones'!$K$188,IF(M19='lista de selecciones'!$I$189,'lista de selecciones'!$K$189,IF(M19='lista de selecciones'!$I$190,'lista de selecciones'!$K$190,IF(M19='lista de selecciones'!$I$191,'lista de selecciones'!$K$191,0))))","v":0},{"$f":"IF(N19='lista de selecciones'!$I$188,'lista de selecciones'!$K$188,IF(N19='lista de selecciones'!$I$189,'lista de selecciones'!$K$189,IF(N19='lista de selecciones'!$I$190,'lista de selecciones'!$K$190,IF(N19='lista de selecciones'!$I$191,'lista de selecciones'!$K$191,0))))","v":0},{"$f":"IF(O19='lista de selecciones'!$I$188,'lista de selecciones'!$K$188,IF(O19='lista de selecciones'!$I$189,'lista de selecciones'!$K$189,IF(O19='lista de selecciones'!$I$190,'lista de selecciones'!$K$190,IF(O19='lista de selecciones'!$I$191,'lista de selecciones'!$K$191,0))))","v":0},{"$f":"IF(P19='lista de selecciones'!$I$188,'lista de selecciones'!$K$188,IF(P19='lista de selecciones'!$I$189,'lista de selecciones'!$K$189,IF(P19='lista de selecciones'!$I$190,'lista de selecciones'!$K$190,IF(P19='lista de selecciones'!$I$191,'lista de selecciones'!$K$191,0))))","v":0},{"$f":"IF(Q19='lista de selecciones'!$I$188,'lista de selecciones'!$K$188,IF(Q19='lista de selecciones'!$I$189,'lista de selecciones'!$K$189,IF(Q19='lista de selecciones'!$I$190,'lista de selecciones'!$K$190,IF(Q19='lista de selecciones'!$I$191,'lista de selecciones'!$K$191,0))))","v":0},{"$f":"IF(R19='lista de selecciones'!$I$188,'lista de selecciones'!$K$188,IF(R19='lista de selecciones'!$I$189,'lista de selecciones'!$K$189,IF(R19='lista de selecciones'!$I$190,'lista de selecciones'!$K$190,IF(R19='lista de selecciones'!$I$191,'lista de selecciones'!$K$191,0))))","v":0}]
[{"$f":"+'1.2.3. CONCERTACIÓN'!C33","v":0},null,{"$f":"+'1.2.3. CONCERTACIÓN'!H33","v":0},null,null,null,{"$f":"+'1.2.3. CONCERTACIÓN'!R33","v":0},null,null,null,null,null,null,null,null,null,null,null,{"$f":"+M22*M$28+N22*N$28+O22*O$28+P22*P$28+Q22*Q$28+R22*R$28","v":0}]
[null,null,null,null,null,null,null,null,null,null,null,null,{"$f":"IF(M21='lista de selecciones'!$I$188,'lista de selecciones'!$K$188,IF(M21='lista de selecciones'!$I$189,'lista de selecciones'!$K$189,IF(M21='lista de selecciones'!$I$190,'lista de selecciones'!$K$190,IF(M21='lista de selecciones'!$I$191,'lista de selecciones'!$K$191,0))))","v":0},{"$f":"IF(N21='lista de selecciones'!$I$188,'lista de selecciones'!$K$188,IF(N21='lista de selecciones'!$I$189,'lista de selecciones'!$K$189,IF(N21='lista de selecciones'!$I$190,'lista de selecciones'!$K$190,IF(N21='lista de selecciones'!$I$191,'lista de selecciones'!$K$191,0))))","v":0},{"$f":"IF(O21='lista de selecciones'!$I$188,'lista de selecciones'!$K$188,IF(O21='lista de selecciones'!$I$189,'lista de selecciones'!$K$189,IF(O21='lista de selecciones'!$I$190,'lista de selecciones'!$K$190,IF(O21='lista de selecciones'!$I$191,'lista de selecciones'!$K$191,0))))","v":0},{"$f":"IF(P21='lista de selecciones'!$I$188,'lista de selecciones'!$K$188,IF(P21='lista de selecciones'!$I$189,'lista de selecciones'!$K$189,IF(P21='lista de selecciones'!$I$190,'lista de selecciones'!$K$190,IF(P21='lista de selecciones'!$I$191,'lista de selecciones'!$K$191,0))))","v":0},{"$f":"IF(Q21='lista de selecciones'!$I$188,'lista de selecciones'!$K$188,IF(Q21='lista de selecciones'!$I$189,'lista de selecciones'!$K$189,IF(Q21='lista de selecciones'!$I$190,'lista de selecciones'!$K$190,IF(Q21='lista de selecciones'!$I$191,'lista de selecciones'!$K$191,0))))","v":0},{"$f":"IF(R21='lista de selecciones'!$I$188,'lista de selecciones'!$K$188,IF(R21='lista de selecciones'!$I$189,'lista de selecciones'!$K$189,IF(R21='lista de selecciones'!$I$190,'lista de selecciones'!$K$190,IF(R21='lista de selecciones'!$I$191,'lista de selecciones'!$K$191,0))))","v":0}]
[{"$f":"+'1.2.3. CONCERTACIÓN'!C34","v":0},null,{"$f":"+'1.2.3. CONCERTACIÓN'!H34","v":0},null,null,null,{"$f":"+'4. EVALUACIÓN SEMESTRAL (1)'!S32","v":0},null,null,null,null,null,null,null,null,null,null,null,{"$f":"+M24*M$28+N24*N$28+O24*O$28+P24*P$28+Q24*Q$28+R24*R$28","v":0}]
[null,null,null,null,null,null,null,null,null,null,null,null,{"$f":"IF(M23='lista de selecciones'!$I$188,'lista de selecciones'!$K$188,IF(M23='lista de selecciones'!$I$189,'lista de selecciones'!$K$189,IF(M23='lista de selecciones'!$I$190,'lista de selecciones'!$K$190,IF(M23='lista de selecciones'!$I$191,'lista de selecciones'!$K$191,0))))","v":0},{"$f":"IF(N23='lista de selecciones'!$I$188,'lista de selecciones'!$K$188,IF(N23='lista de selecciones'!$I$189,'lista de selecciones'!$K$189,IF(N23='lista de selecciones'!$I$190,'lista de selecciones'!$K$190,IF(N23='lista de selecciones'!$I$191,'lista de selecciones'!$K$191,0))))","v":0},{"$f":"IF(O23='lista de selecciones'!$I$188,'lista de selecciones'!$K$188,IF(O23='lista de selecciones'!$I$189,'lista de selecciones'!$K$189,IF(O23='lista de selecciones'!$I$190,'lista de selecciones'!$K$190,IF(O23='lista de selecciones'!$I$191,'lista de selecciones'!$K$191,0))))","v":0},{"$f":"IF(P23='lista de selecciones'!$I$188,'lista de selecciones'!$K$188,IF(P23='lista de selecciones'!$I$189,'lista de selecciones'!$K$189,IF(P23='lista de selecciones'!$I$190,'lista de selecciones'!$K$190,IF(P23='lista de selecciones'!$I$191,'lista de selecciones'!$K$191,0))))","v":0},{"$f":"IF(Q23='lista de selecciones'!$I$188,'lista de selecciones'!$K$188,IF(Q23='lista de selecciones'!$I$189,'lista de selecciones'!$K$189,IF(Q23='lista de selecciones'!$I$190,'lista de selecciones'!$K$190,IF(Q23='lista de selecciones'!$I$191,'lista de selecciones'!$K$191,0))))","v":0},{"$f":"IF(R23='lista de selecciones'!$I$188,'lista de selecciones'!$K$188,IF(R23='lista de selecciones'!$I$189,'lista de selecciones'!$K$189,IF(R23='lista de selecciones'!$I$190,'lista de selecciones'!$K$190,IF(R23='lista de selecciones'!$I$191,'lista de selecciones'!$K$191,0))))","v":0}]
[{"$f":"+'1.2.3. CONCERTACIÓN'!C35","v":0},null,{"$f":"+'1.2.3. CONCERTACIÓN'!H35","v":0},null,null,null,{"$f":"+'4. EVALUACIÓN SEMESTRAL (1)'!S33","v":0},null,null,null,null,null,null,null,null,null,null,null,{"$f":"+M26*M$28+N26*N$28+O26*O$28+P26*P$28+Q26*Q$28+R26*R$28","v":0}]
[null,null,null,null,null,null,null,null,null,null,null,null,{"$f":"IF(M25='lista de selecciones'!$I$188,'lista de selecciones'!$K$188,IF(M25='lista de selecciones'!$I$189,'lista de selecciones'!$K$189,IF(M25='lista de selecciones'!$I$190,'lista de selecciones'!$K$190,IF(M25='lista de selecciones'!$I$191,'lista de selecciones'!$K$191,0))))","v":0},{"$f":"IF(N25='lista de selecciones'!$I$188,'lista de selecciones'!$K$188,IF(N25='lista de selecciones'!$I$189,'lista de selecciones'!$K$189,IF(N25='lista de selecciones'!$I$190,'lista de selecciones'!$K$190,IF(N25='lista de selecciones'!$I$191,'lista de selecciones'!$K$191,0))))","v":0},{"$f":"IF(O25='lista de selecciones'!$I$188,'lista de selecciones'!$K$188,IF(O25='lista de selecciones'!$I$189,'lista de selecciones'!$K$189,IF(O25='lista de selecciones'!$I$190,'lista de selecciones'!$K$190,IF(O25='lista de selecciones'!$I$191,'lista de selecciones'!$K$191,0))))","v":0},{"$f":"IF(P25='lista de selecciones'!$I$188,'lista de selecciones'!$K$188,IF(P25='lista de selecciones'!$I$189,'lista de selecciones'!$K$189,IF(P25='lista de selecciones'!$I$190,'lista de selecciones'!$K$190,IF(P25='lista de selecciones'!$I$191,'lista de selecciones'!$K$191,0))))","v":0},{"$f":"IF(Q25='lista de selecciones'!$I$188,'lista de selecciones'!$K$188,IF(Q25='lista de selecciones'!$I$189,'lista de selecciones'!$K$189,IF(Q25='lista de selecciones'!$I$190,'lista de selecciones'!$K$190,IF(Q25='lista de selecciones'!$I$191,'lista de selecciones'!$K$191,0))))","v":0},{"$f":"IF(R25='lista de selecciones'!$I$188,'lista de selecciones'!$K$188,IF(R25='lista de selecciones'!$I$189,'lista de selecciones'!$K$189,IF(R25='lista de selecciones'!$I$190,'lista de selecciones'!$K$190,IF(R25='lista de selecciones'!$I$191,'lista de selecciones'!$K$191,0))))","v":0}]
["PONDERACIÓN POR EVALUACIÓN EVENTUAL",null,null,null,null,null,null,null,null,null,null,null,{"$f":"+(M20+M22+M24+M26)/4","v":0},0,0,0,0,0]
["% Participación Días Laborados de cada Evaluación Eventual",null,null,null,null,null,null,null,null,null,null,null,{"$f":"+M14","v":0},{"$f":"+N14","v":0},{"$f":"+O14","v":0},{"$f":"+P14","v":0},0,0]
["CALIFICACIÓN TOTAL COMPETENCIAS COMPORTAMENTALES",null,null,null,null,null,null,null,null,null,null,null,{"$f":"+SUMPRODUCT(M27:R27,M28:R28)","v":0}]
["CALIFICACIÓN TOTAL COMPROMISOS LABORALES",null,null,null,null,null,null,null,null,null,null,null,{"$f":"(M29*0.2)*10","v":0}]
["10.3 Notificación "]
["LUGAR Y FECHA DE DILIGENCIAMIENTO"]
[null,null,null,"EMPLEADO A EVALUAR",null,null,null,null,null,null,"JEFE INMEDIATO (PRIMER EVALUADOR)",null,null,null,null,"SEGUNDO EVALUADOR \n"]
["NOMBRE COMPLETO",null,null,{"$f":"+'1.2.3. CONCERTACIÓN'!J39","v":0},null,null,null,null,null,null,{"$f":"+'1.2.3. CONCERTACIÓN'!P39","v":0},null,null,null,null,{"$f":"+'1.2.3. CONCERTACIÓN'!Z39","v":0}]
["NUMERO DE DOCUMENTO IDENTIDAD",null,null,{"$f":"+'1.2.3. CONCERTACIÓN'!J40","v":0},null,null,null,null,null,null,{"$f":"+'1.2.3. CONCERTACIÓN'!P40","v":0},null,null,null,null,{"$f":"+'1.2.3. CONCERTACIÓN'!Z40","v":0}]
["CARGO (DENOMINACIÓN-CÓDIGO-GRADO)",null,null,{"$f":"+'1.2.3. CONCERTACIÓN'!J41","v":0},null,null,null,null,null,null,{"$f":"+'1.2.3. CONCERTACIÓN'!P41","v":0},null,null,null,null,{"$f":"+'1.2.3. CONCERTACIÓN'!Z41","v":0}]
["DEPENDENCIA",null,null,{"$f":"+'1.2.3. CONCERTACIÓN'!J42","v":0},null,null,null,null,null,null,{"$f":"+'1.2.3. CONCERTACIÓN'!P42","v":0},null,null,null,null,{"$f":"+'1.2.3. CONCERTACIÓN'!Z42","v":0}]
["FIRMAS"]
["10.4 Observaciones "]

{"sheet":"11. EVALUACION EVENTUAL (sem2)","index":16,"n_rows":61,"n_cols":25,"rows_kept":61,"cut":false,"hidden":false,"merged":[[59,0,59,24],[60,0,60,24],[61,0,61,24],[54,0,58,0],[54,1,55,7],[54,8,58,12],[54,13,55,21],[54,22,58,24],[56,1,56,7],[56,13,56,21],[57,1,57,7],[57,13,57,21],[58,1,58,7],[58,13,58,21],[50,0,50,2],[50,3,50,8],[50,9,50,16],[50,17,50,24],[51,0,51,24],[52,0,52,24],[53,0,53,5],[53,7,53,8],[53,9,53,10],[53,11,53,20],[53,22,53,23],[47,0,47,2],[47,3,47,8],[47,9,47,16],[47,17,47,24],[48,0,48,2],[48,3,48,8],[48,9,48,16],[48,17,48,24],[49,0,49,2],[49,3,49,8],[49,9,49,16],[49,17,49,24],[41,11,42,16],[41,17,42,24],[43,0,43,24],[44,3,44,24],[45,3,45,8],[45,9,45,16],[45,17,45,24],[46,3,46,8],[46,9,46,16],[46,17,46,24],[38,0,38,7],[38,8,38,14],[38,15,38,16],[38,17,38,22],[38,23,38,24],[39,0,40,2],[39,3,39,5],[39,6,39,8],[39,9,40,9],[39,10,40,12],[39,13,40,22],[39,23,40,24],[40,3,40,5],[40,6,40,8],[37,0,37,1],[37,2,37,4],[37,5,37,7],[37,8,37,10],[37,11,37,14],[37,15,37,16],[37,17,37,20],[37,21,37,22],[37,23,37,24],[36,0,36,1],[36,2,36,4],[36,5,36,7],[36,8,36,10],[36,11,36,14],[36,15,36,16],[36,17,36,20],[36,21,36,22],[36,23,36,24],[35,0,35,1],[35,2,35,4],[35,5,35,7],[35,8,35,10],[35,11,35,14],[35,15,35,16],[35,17,35,20],[35,21,35,22],[35,23,35,24],[34,0,34,1],[34,2,34,4],[34,5,34,7],[34,8,34,10],[34,11,34,14],[34,15,34,16],[34,17,34,20],[34,21,34,22],[34,23,34,24],[31,0,31,7],[31,8,31,24],[32,2,33,4],[32,5,33,7],[32,8,32,16],[32,17,32,24],[33,8,33,10],[33,11,33,14],[33,15,33,16],[33,17,33,20],[33,21,33,22],[33,23,33,24],[29,0,30,2],[29,3,29,5],[29,6,29,8],[29,9,30,9],[29,10,30,12],[29,13,30,22],[29,23,30,24],[30,3,30,5],[30,6,30,8],[23,20,26,20],[23,21,26,21],[23,22,26,22],[23,23,26,23],[23,24,26,24],[24,10,24,12],[25,10,25,12],[26,10,26,12],[27,0,28,19],[27,20,28,20],[27,21,28,21],[27,22,28,22],[27,23,28,23],[27,24,28,24],[19,0,22,3],[19,4,22,9],[19,10,19,12],[19,13,22,19],[19,20,22,20],[19,21,22,21],[19,22,22,22],[19,23,22,23],[19,24,22,24],[20,10,20,12],[21,10,21,12],[22,10,22,12],[15,0,18,3],[15,4,18,9],[15,10,15,12],[15,13,18,19],[15,20,18,20],[15,21,18,21],[15,22,18,22],[15,23,18,23],[15,24,18,24],[16,10,16,12],[17,10,17,12],[18,10,18,12],[11,0,14,3],[11,4,14,9],[11,10,11,12],[11,13,14,19],[11,20,14,20],[11,21,14,21],[11,22,14,22],[11,23,14,23],[11,24,14,24],[12,10,12,12],[13,10,13,12],[14,10,14,12],[5,20,5,22],[5,23,5,24],[6,0,6,3],[6,4,6,9],[6,10,6,12],[6,13,6,19],[7,0,10,3],[7,4,10,9],[7,10,7,12],[7,13,10,19],[7,20,10,20],[7,21,10,21],[7,22,10,22],[7,23,10,23],[7,24,10,24],[8,10,8,12],[9,10,9,12],[10,10,10,12],[0,0,0,24],[1,0,1,24],[2,0,2,2],[2,3,2,24],[3,0,4,0],[3,1,3,2],[3,3,3,4],[3,11,3,13],[3,14,3,16],[3,17,4,22],[3,23,4,24],[4,1,4,2],[4,3,4,4],[4,5,4,6],[4,7,4,8],[4,9,4,10],[4,11,4,13],[4,14,4,16],[44,0,44,2],[45,0,45,2],[46,0,46,2],[41,0,42,4],[41,5,42,5],[41,6,42,10],[32,0,33,1],[23,0,26,3],[23,4,26,9],[23,10,23,12],[23,13,26,19],[3,9,3,10],[3,7,3,8],[5,0,5,19],[3,5,3,6]]}
["Evaluación del Desempeño para Servidores Vinculados en Carrera Administrativa y Libre Nombramiento y Remoción"]
["11. Evaluacion Inferior a Un año "]
["11.1 Tipo de Empleo",null,null,"Nombramiento Carrera Administrativa. Seguimiento Cumplimiento de Funciones Empleados Vinculados Mediante  Carrera Administrativa"]
["11.2 Fecha de Evaluación ","Previa a la Evaluación \n(Si Hubo)",null,"Desde",null,null,null,"Hasta",null,null,null,"No. Días Evaluados ",null,null,{"$f":"IF((J4-F4+1)=1,0,J4-F4+1)","v":0},null,null,"11.3 Nivel del Empleo",null,null,null,null,null,{"$f":"'[3]1.2.3 Concertación'!AC5","v":0}]
[null,"Evaluación Último Período",null,"Desde",null,null,null,"Hasta",null,null,null,"No. Días Evaluados ",null,null,{"$f":"IF((J5-F5+1)=1,0,J5-F5+1)","v":0}]
["11.4 Evaluacion de Compromisos Laborales",null,null,null,null,null,null,null,null,null,null,null,null,null,null,null,null,null,null,null,"11.5  Evaluación Previa \n(Si Hubo)",null,null,"11.6 Evaluación Último Período"]
["Compromiso Laboral",null,null,null,"Evidencia del Cumplimiento del Compromiso",null,null,null,null,null,"Requisitos de Calidad",null,null,"Comentarios - Ruta de Evidencia",null,null,null,null,null,null,"Peso","Logro %","Puntaje","Logro %","Puntaje"]
[{"$f":"'[3]1.2.3 Concertación'!F9","v":0},null,null,null,{"$f":"'[3]1.2.3 Concertación'!Y9","v":0},null,null,null,null,null,{"$f":"'[3]1.2.3 Concertación'!N9","v":0},null,null,null,null,null,null,null,null,null,{"$f":"'[3]1.2.3 Concertación'!AF9","v":0},null,{"$f":"(U8*V8)","v":0},null,{"$f":"(U8*X8)","v":0}]
[null,null,null,null,null,null,null,null,null,null,{"$f":"'[3]1.2.3 Concertación'!N10","v":0}]
[null,null,null,null,null,null,null,null,null,null,{"$f":"'[3]1.2.3 Concertación'!N11","v":0}]
[null,null,null,null,null,null,null,null,null,null,{"$f":"'[3]1.2.3 Concertación'!N12","v":0}]
[{"$f":"'[3]1.2.3 Concertación'!F13","v":0},null,null,null,{"$f":"'[3]1.2.3 Concertación'!Y13","v":0},null,null,null,null,null,{"$f":"'[3]1.2.3 Concertación'!N13","v":0},null,null,null,null,null,null,null,null,null,{"$f":"'[3]1.2.3 Concertación'!AF13","v":0},null,{"$f":"(U12*V12)","v":0},null,{"$f":"(U12*X12)","v":0}]
[null,null,null,null,null,null,null,null,null,null,{"$f":"'[3]1.2.3 Concertación'!N14","v":0}]
[null,null,null,null,null,null,null,null,null,null,{"$f":"'[3]1.2.3 Concertación'!N15","v":0}]
[null,null,null,null,null,null,null,null,null,null,{"$f":"'[3]1.2.3 Concertación'!N16","v":0}]
[{"$f":"'[3]1.2.3 Concertación'!F17","v":0},null,null,null,{"$f":"'[3]1.2.3 Concertación'!Y17","v":0},null,null,null,null,null,{"$f":"'[3]1.2.3 Concertación'!N17","v":0},null,null,null,null,null,null,null,null,null,{"$f":"'[3]1.2.3 Concertación'!AF17","v":0},null,{"$f":"(U16*V16)","v":0},null,{"$f":"(U16*X16)","v":0}]
[null,null,null,null,null,null,null,null,null,null,{"$f":"'[3]1.2.3 Concertación'!N18","v":0}]
[null,null,null,null,null,null,null,null,null,null,{"$f":"'[3]1.2.3 Concertación'!N19","v":0}]
[null,null,null,null,null,null,null,null,null,null,{"$f":"'[3]1.2.3 Concertación'!N20","v":0}]
[{"$f":"'[3]1.2.3 Concertación'!F21","v":0},null,null,null,{"$f":"'[3]1.2.3 Concertación'!Y21","v":0},null,null,null,null,null,{"$f":"'[3]1.2.3 Concertación'!N21","v":0},null,null,null,null,null,null,null,null,null,{"$f":"'[3]1.2.3 Concertación'!AF21","v":0},null,{"$f":"(U20*V20)","v":0},null,{"$f":"(U20*X20)","v":0}]
[null,null,null,null,null,null,null,null,null,null,{"$f":"'[3]1.2.3 Concertación'!N22","v":0}]
[null,null,null,null,null,null,null,null,null,null,{"$f":"'[3]1.2.3 Concertación'!N23","v":0}]
[null,null,null,null,null,null,null,null,null,null,{"$f":"'[3]1.2.3 Concertación'!N24","v":0}]
[{"$f":"'[3]1.2.3 Concertación'!F25","v":0},null,null,null,{"$f":"'[3]1.2.3 Concertación'!Y25","v":0},null,null,null,null,null,{"$f":"'[3]1.2.3 Concertación'!N25","v":0},null,null,null,null,null,null,null,null,null,{"$f":"'[3]1.2.3 Concertación'!AF25","v":0},null,{"$f":"(U24*V24)","v":0},null,{"$f":"(U24*X24)","v":0}]
[null,null,null,null,null,null,null,null,null,null,{"$f":"'[3]1.2.3 Concertación'!N26","v":0}]
[null,null,null,null,null,null,null,null,null,null,{"$f":"'[3]1.2.3 Concertación'!N27","v":0}]
[null,null,null,null,null,null,null,null,null,null,{"$f":"'[3]1.2.3 Concertación'!N28","v":0}]
[" Total Compromisos Laborales",null,null,null,null,null,null,null,null,null,null,null,null,null,null,null,null,null,null,null,{"$f":"IF(SUM(U8:U27)>100,\"Numero no puede ser mayor que 100\",SUM(U8:U27))","v":0},null,{"$f":"SUM(W8:W27)","v":0},null,{"$f":"SUM(Y8:Y27)","v":0}]
[]
["% Participación Días Laborados para la Evaluación Inferior a 1 año (Mayor a 30 Días)",null,null,"Previa a la Evaluación(Si Hubo)",null,null,{"$f":"IFERROR(+O4/($O$4+$O$5),0)","v":0},null,null,"Sobre 100%",{"$f":"(W28*G30+Y28*G31)","v":0},null,null,"11.7 Calificación Evaluaciòn Primer Semestre (Sobre 80%) ",null,null,null,null,null,null,null,null,null,{"$f":"K30*80%","v":0}]
[null,null,null,"Evaluación Último Período",null,null,{"$f":"IFERROR(+O5/($O$4+$O$5),0)","v":0}]
["11.8 Compromisos Comportamentales Fijados",null,null,null,null,null,null,null,"11.9 Evaluación de Compromisos Comportamentales"]
["Nivel Jerarquico",null,"Competencias Comportamentales",null,null,"Conducta Asociada",null,null,"Eva. Previa\n(Si Hubo)",null,null,null,null,null,null,null,null,"Eva. Último Período."]
[null,null,null,null,null,null,null,null,"Niveles de Frecuencia",null,null,"Descripción ",null,null,null,"Resultados Cuantitativos",null,"Niveles de Frecuencia",null,null,null,"Descripción Cualitativa",null,"Resultado Cuantitativo"]
[{"$f":"+'[3]1.2.3 Concertación'!C32","v":0},null,{"$f":"+'[3]1.2.3 Concertación'!H32","v":0},null,null,{"$f":"+'[3]1.2.3 Concertación'!R32","v":""},null,null,null,null,null,{"$f":"IF(I35='[3]lista de selecciones'!$I$188,'[3]lista de selecciones'!$J$188,IF(I35='[3]lista de selecciones'!$I$189,'[3]lista de selecciones'!$J$189,IF(I35='[3]lista de selecciones'!$I$190,'[3]lista de selecciones'!$J$190,IF(I35='[3]lista de selecciones'!$I$191,'[3]lista de selecciones'!$J$191,0))))","v":0},null,null,null,{"$f":"IF(I35='[3]lista de selecciones'!I188,'[3]lista de selecciones'!K188,IF(I35='[3]lista de selecciones'!I189,'[3]lista de selecciones'!K189,IF(I35='[3]lista de selecciones'!I190,'[3]lista de selecciones'!K190,IF(I35='[3]lista de selecciones'!I191,'[3]lista de selecciones'!K191,0))))","v":0},null,null,null,null,null,{"$f":"IF(R35='[3]lista de selecciones'!$I$188,'[3]lista de selecciones'!$J$188,IF(R35='[3]lista de selecciones'!$I$189,'[3]lista de selecciones'!$J$189,IF(R35='[3]lista de selecciones'!$I$190,'[3]lista de selecciones'!$J$190,IF(R35='[3]lista de selecciones'!$I$191,'[3]lista de selecciones'!$J$191,0))))","v":0},null,{"$f":"IF(R35='[3]lista de selecciones'!I188,'[3]lista de selecciones'!K188,IF(R35='[3]lista de selecciones'!I189,'[3]lista de selecciones'!K189,IF(R35='[3]lista de selecciones'!I190,'[3]lista de selecciones'!K190,IF(R35='[3]lista de selecciones'!I191,'[3]lista de selecciones'!K191,0))))","v":0}]
[{"$f":"A35","v":0},null,{"$f":"+'[3]1.2.3 Concertación'!H33","v":0},null,null,{"$f":"+'[3]1.2.3 Concertación'!R33","v":""},null,null,null,null,null,{"$f":"IF(I36='[3]lista de selecciones'!$I$188,'[3]lista de selecciones'!$J$188,IF(I36='[3]lista de selecciones'!$I$189,'[3]lista de selecciones'!$J$189,IF(I36='[3]lista de selecciones'!$I$190,'[3]lista de selecciones'!$J$190,IF(I36='[3]lista de selecciones'!$I$191,'[3]lista de selecciones'!$J$191,0))))","v":0},null,{"$f":"IF(J36='[3]lista de selecciones'!$I$188,'[3]lista de selecciones'!$J$188,IF(J36='[3]lista de selecciones'!$I$189,'[3]lista de selecciones'!$J$189,IF(J36='[3]lista de selecciones'!$I$190,'[3]lista de selecciones'!$J$190,IF(J36='[3]lista de selecciones'!$I$191,'[3]lista de selecciones'!$J$191,0))))","v":0},null,{"$f":"IF(I36='[3]lista de selecciones'!I188,'[3]lista de selecciones'!K188,IF(I36='[3]lista de selecciones'!I189,'[3]lista de selecciones'!K189,IF(I36='[3]lista de selecciones'!I190,'[3]lista de selecciones'!K190,IF(I36='[3]lista de selecciones'!I191,'[3]lista de selecciones'!K191,0))))","v":0},null,null,null,null,null,{"$f":"IF(R36='[3]lista de selecciones'!$I$188,'[3]lista de selecciones'!$J$188,IF(R36='[3]lista de selecciones'!$I$189,'[3]lista de selecciones'!$J$189,IF(R36='[3]lista de selecciones'!$I$190,'[3]lista de selecciones'!$J$190,IF(R36='[3]lista de selecciones'!$I$191,'[3]lista de selecciones'!$J$191,0))))","v":0},null,{"$f":"IF(R36='[3]lista de selecciones'!I188,'[3]lista de selecciones'!K188,IF(R36='[3]lista de selecciones'!I189,'[3]lista de selecciones'!K189,IF(R36='[3]lista de selecciones'!I190,'[3]lista de selecciones'!K190,IF(R36='[3]lista de selecciones'!I191,'[3]lista de selecciones'!K191,0))))","v":0}]
[{"$f":"A35","v":0},null,{"$f":"+'[3]1.2.3 Concertación'!H34","v":0},null,null,{"$f":"+'[3]1.2.3 Concertación'!R34","v":""},null,null,null,null,null,{"$f":"IF(I37='[3]lista de selecciones'!$I$188,'[3]lista de selecciones'!$J$188,IF(I37='[3]lista de selecciones'!$I$189,'[3]lista de selecciones'!$J$189,IF(I37='[3]lista de selecciones'!$I$190,'[3]lista de selecciones'!$J$190,IF(I37='[3]lista de selecciones'!$I$191,'[3]lista de selecciones'!$J$191,0))))","v":0},null,{"$f":"IF(J37='[3]lista de selecciones'!$I$188,'[3]lista de selecciones'!$J$188,IF(J37='[3]lista de selecciones'!$I$189,'[3]lista de selecciones'!$J$189,IF(J37='[3]lista de selecciones'!$I$190,'[3]lista de selecciones'!$J$190,IF(J37='[3]lista de selecciones'!$I$191,'[3]lista de selecciones'!$J$191,0))))","v":0},null,{"$f":"IF(I37='[3]lista de selecciones'!I188,'[3]lista de selecciones'!K188,IF(I37='[3]lista de selecciones'!I189,'[3]lista de selecciones'!K189,IF(I37='[3]lista de selecciones'!I190,'[3]lista de selecciones'!K190,IF(I37='[3]lista de selecciones'!I191,'[3]lista de selecciones'!K191,0))))","v":0},null,null,null,null,null,{"$f":"IF(R37='[3]lista de selecciones'!$I$188,'[3]lista de selecciones'!$J$188,IF(R37='[3]lista de selecciones'!$I$189,'[3]lista de selecciones'!$J$189,IF(R37='[3]lista de selecciones'!$I$190,'[3]lista de selecciones'!$J$190,IF(R37='[3]lista de selecciones'!$I$191,'[3]lista de selecciones'!$J$191,0))))","v":0},null,{"$f":"IF(R37='[3]lista de selecciones'!I188,'[3]lista de selecciones'!K188,IF(R37='[3]lista de selecciones'!I189,'[3]lista de selecciones'!K189,IF(R37='[3]lista de selecciones'!I190,'[3]lista de selecciones'!K190,IF(R37='[3]lista de selecciones'!I191,'[3]lista de selecciones'!K191,0))))","v":0}]
[{"$f":"A36","v":0},null,{"$f":"+'[3]1.2.3 Concertación'!H35","v":0},null,null,{"$f":"+'[3]1.2.3 Concertación'!R35","v":""},null,null,null,null,null,{"$f":"IF(I38='[3]lista de selecciones'!$I$188,'[3]lista de selecciones'!$J$188,IF(I38='[3]lista de selecciones'!$I$189,'[3]lista de selecciones'!$J$189,IF(I38='[3]lista de selecciones'!$I$190,'[3]lista de selecciones'!$J$190,IF(I38='[3]lista de selecciones'!$I$191,'[3]lista de selecciones'!$J$191,0))))","v":0},null,{"$f":"IF(J38='[3]lista de selecciones'!$I$188,'[3]lista de selecciones'!$J$188,IF(J38='[3]lista de selecciones'!$I$189,'[3]lista de selecciones'!$J$189,IF(J38='[3]lista de selecciones'!$I$190,'[3]lista de selecciones'!$J$190,IF(J38='[3]lista de selecciones'!$I$191,'[3]lista de selecciones'!$J$191,0))))","v":0},null,{"$f":"IF(I38='[3]lista de selecciones'!I188,'[3]lista de selecciones'!K188,IF(I38='[3]lista de selecciones'!I189,'[3]lista de selecciones'!K189,IF(I38='[3]lista de selecciones'!I190,'[3]lista de selecciones'!K190,IF(I38='[3]lista de selecciones'!I191,'[3]lista de selecciones'!K191,0))))","v":0},null,null,null,null,null,{"$f":"IF(R38='[3]lista de selecciones'!$I$188,'[3]lista de selecciones'!$J$188,IF(R38='[3]lista de selecciones'!$I$189,'[3]lista de selecciones'!$J$189,IF(R38='[3]lista de selecciones'!$I$190,'[3]lista de selecciones'!$J$190,IF(R38='[3]lista de selecciones'!$I$191,'[3]lista de selecciones'!$J$191,0))))","v":0},null,{"$f":"IF(R38='[3]lista de selecciones'!I188,'[3]lista de selecciones'!K188,IF(R38='[3]lista de selecciones'!I189,'[3]lista de selecciones'!K189,IF(R38='[3]lista de selecciones'!I190,'[3]lista de selecciones'!K190,IF(R38='[3]lista de selecciones'!I191,'[3]lista de selecciones'!K191,0))))","v":0}]
[null,null,null,null,null,null,null,null,"Total Compromisos Comportamentales Previa a la Evaluación (Si Hubo) ",null,null,null,null,null,null,{"$f":"SUM(P35:Q38)/4","v":0},null,"Total Compromisos Comportamentales Ultimo Periodo ",null,null,null,null,null,{"$f":"SUM(X35:Y38)/4","v":0}]
["% Participación Días Laborados para la Evaluación Inferior a 1 año (Mayor a 30 Días)",null,null,"Previa a la Evaluación\n(Si Hubo)",null,null,{"$f":"IFERROR(+O4/($O$4+$O$5),0)","v":0},null,null,"Sobre 100%",{"$f":"(P39*G40+X39*G41)","v":0},null,null,"11.10 Calificación Total Competencias Comportamentales (Sobre 20%)",null,null,null,null,null,null,null,null,null,{"$f":"(K40*20%)*10","v":0}]
[null,null,null,"Evaluación Último Período",null,null,{"$f":"IFERROR(+O5/($O$4+$O$5),0)","v":0}]
["Resultados Consolidados Evaluación Extraordinaria",null,null,null,null,"Resultados ",{"$f":"X30+X40","v":0},null,null,null,null,"Nivel de Calificación",null,null,null,null,null,{"$f":"IF(G42<=69,'[3]lista de selecciones'!A162,IF(G42<90,'[3]lista de selecciones'!A161,IF(G42>=90,'[3]lista de selecciones'!A160)))","v":"No satisfactorio"}]
[]
["11.11 Notificación"]
["Lugar y Fecha de Diligenciamiento"]
[null,null,null,"Empleado a Evaluar",null,null,null,null,null,"Jefe Inmediato (Primer Evaluador)",null,null,null,null,null,null,null,"Segundo Evaluador \n"]
["Nombre Completo",null,null,{"$f":"'[3]1.2.3 Concertación'!J39","v":0},null,null,null,null,null,{"$f":"'[3]1.2.3 Concertación'!P39","v":0},null,null,null,null,null,null,null,{"$f":"'[3]1.2.3 Concertación'!Z39","v":0}]
["Numero de Documento Identidad",null,null,{"$f":"'[3]1.2.3 Concertación'!J40","v":0},null,null,null,null,null,{"$f":"'[3]1.2.3 Concertación'!P40","v":0},null,null,null,null,null,null,null,{"$f":"'[3]1.2.3 Concertación'!Z40","v":0}]
["Cargo (Denominación-Código-Grado)",null,null,{"$f":"'[3]1.2.3 Concertación'!J41","v":0},null,null,null,null,null,{"$f":"'[3]1.2.3 Concertación'!P41","v":0},null,null,null,null,null,null,null,{"$f":"'[3]1.2.3 Concertación'!Z41","v":0}]
["Dependencia",null,null,{"$f":"'[3]1.2.3 Concertación'!J42","v":0},null,null,null,null,null,{"$f":"'[3]1.2.3 Concertación'!P42","v":0},null,null,null,null,null,null,null,{"$f":"'[3]1.2.3 Concertación'!Z42","v":0}]
["Firmas"]
["11.12 Notificación"]
["Contra Esta Calificación Procede El Recurso de Reposición Y en Subsidio El de apelación Interpuestos ante El Evaluador dentro de Los Cinco (5) Días Hábiles Siguientes a La Fecha de Notificación. Los Recursos deben Presentarse Por Escrito, Personalmente O Mediante apoderado Y Exponiendo Los Motivos de Inconformidad."]
["Interpuso Recurso de Reposición",null,null,null,null,null,null,"Fecha",null,null,null,"Interpuso Recurso de apelación",null,null,null,null,null,null,null,null,null,null,"Fecha"]
[]
[]
[null,"Nombre del Evaluado",null,null,null,null,null,null,null,null,null,null,null,"Firma del Evaluado"]
[]
[null,"Nombre del Notificador",null,null,null,null,null,null,null,null,null,null,null,"Firma del Notificador"]
[]
["11.13 Observaciones"]

{"sheet":"12.EVALUACION MENOR A UN AÑO","index":17,"n_rows":60,"n_cols":25,"rows_kept":60,"cut":false,"hidden":false,"merged":[[1,0,1,24],[2,0,2,2],[2,3,2,8],[2,9,2,10],[2,11,2,22],[2,23,2,24],[4,14,4,16],[0,0,0,24],[5,0,5,19],[5,20,5,22],[5,23,5,24],[6,0,6,3],[6,4,6,9],[6,10,6,12],[6,13,6,19],[3,11,3,13],[3,14,3,16],[3,17,4,22],[3,23,4,24],[4,1,4,2],[4,3,4,4],[4,5,4,6],[4,7,4,8],[4,9,4,10],[4,11,4,13],[3,0,4,0],[3,1,3,2],[3,3,3,4],[3,5,3,6],[3,7,3,8],[3,9,3,10],[7,22,10,22],[7,23,10,23],[7,24,10,24],[8,10,8,12],[9,10,9,12],[10,10,10,12],[7,0,10,3],[7,4,10,9],[7,10,7,12],[7,13,10,19],[7,20,10,20],[7,21,10,21],[11,22,14,22],[11,23,14,23],[11,24,14,24],[12,10,12,12],[13,10,13,12],[14,10,14,12],[11,0,14,3],[11,4,14,9],[11,10,11,12],[11,13,14,19],[11,20,14,20],[11,21,14,21],[15,22,18,22],[15,23,18,23],[15,24,18,24],[16,10,16,12],[17,10,17,12],[18,10,18,12],[15,0,18,3],[15,4,18,9],[15,10,15,12],[15,13,18,19],[15,20,18,20],[15,21,18,21],[19,22,22,22],[19,23,22,23],[19,24,22,24],[20,10,20,12],[21,10,21,12],[22,10,22,12],[19,0,22,3],[19,4,22,9],[19,10,19,12],[19,13,22,19],[19,20,22,20],[19,21,22,21],[27,0,28,19],[27,20,28,20],[27,21,28,21],[27,22,28,22],[27,23,28,23],[27,24,28,24],[23,22,26,22],[23,23,26,23],[23,24,26,24],[24,10,24,12],[25,10,25,12],[26,10,26,12],[23,0,26,3],[23,4,26,9],[23,10,23,12],[23,13,26,19],[23,20,26,20],[23,21,26,21],[33,8,33,10],[33,11,33,14],[33,15,33,16],[33,17,33,20],[33,21,33,22],[33,23,33,24],[29,23,30,24],[30,3,30,5],[30,6,30,8],[31,0,31,7],[31,8,31,24],[32,0,33,1],[32,2,33,4],[32,5,33,7],[32,8,32,16],[32,17,32,24],[29,0,30,2],[29,3,29,5],[29,6,29,8],[29,9,30,9],[29,10,30,12],[29,13,30,22],[34,17,34,20],[34,21,34,22],[34,23,34,24],[35,0,35,1],[35,2,35,4],[35,5,35,7],[35,8,35,10],[35,11,35,14],[35,15,35,16],[35,17,35,20],[34,0,34,1],[34,2,34,4],[34,5,34,7],[34,8,34,10],[34,11,34,14],[34,15,34,16],[35,21,35,22],[35,23,35,24],[36,0,36,1],[36,2,36,4],[36,5,36,7],[36,8,36,10],[36,11,36,14],[36,15,36,16],[36,17,36,20],[36,21,36,22],[36,23,36,24],[37,0,37,1],[37,2,37,4],[37,5,37,7],[37,8,37,10],[37,11,37,14],[37,15,37,16],[37,17,37,20],[37,21,37,22],[37,23,37,24],[38,0,38,7],[38,8,38,14],[38,15,38,16],[38,17,38,22],[38,23,38,24],[39,0,40,2],[39,3,39,5],[39,6,39,8],[39,9,40,9],[39,10,40,12],[39,13,40,22],[39,23,40,24],[40,3,40,5],[40,6,40,8],[41,0,42,4],[41,5,42,5],[41,6,42,10],[41,11,42,16],[41,17,42,24],[46,0,46,2],[46,3,46,8],[46,9,46,16],[46,17,46,24],[47,0,47,2],[47,3,47,8],[47,9,47,16],[47,17,47,24],[43,0,43,24],[44,0,44,2],[44,3,44,24],[45,0,45,2],[45,3,45,8],[45,9,45,16],[45,17,45,24],[50,0,50,2],[50,3,50,8],[50,9,50,16],[50,17,50,24],[51,0,51,24],[52,0,52,24],[48,0,48,2],[48,3,48,8],[48,9,48,16],[48,17,48,24],[49,0,49,2],[49,3,49,8],[49,9,49,16],[49,17,49,24],[59,0,59,24],[60,0,60,24],[56,1,56,7],[56,13,56,21],[57,1,57,7],[57,13,57,21],[58,1,58,7],[58,13,58,21],[53,0,53,5],[53,7,53,8],[53,9,53,10],[53,11,53,20],[53,22,53,23],[55,13,55,21],[54,0,54,24],[55,0,58,0],[55,8,58,12],[55,22,58,24],[55,1,55,7]]}
["Evaluación del Desempeño Laboral para Servidores de Carrera Administrativa y Libre Nombramiento y Remoción"]
["12. Evaluación inferior a un año"]
["12.1. Tipo de empleo ",null,null,"CARRERA ADMINISTRATIVA",null,null,null,null,null,{"$f":"'1.2.3. CONCERTACIÓN'!R4","v":0},null,"LIBRE NOMBRAMIENTO Y REMOCIÓN (LNR)\n(Seguimiento cumplimiento de funciones empleados)",null,null,null,null,null,null,null,null,null,null,null,{"$f":"+'1.2.3. CONCERTACIÓN'!AF4","v":0}]
["12.2. Fecha de evaluación ","Previa a la Evaluación \n(Si hubo)",null,"DESDE",null,null,null,"HASTA",null,null,null,"No. DÍAS EVALUADOS ",null,null,{"$f":"IF((J4-F4+1)=1,0,J4-F4+1)","v":0},null,null,"12.3. Nivel del empleo ",null,null,null,null,null,{"$f":"+'1.2.3. CONCERTACIÓN'!AC5","v":0}]
[null,"Evaluación último Período",null,"DESDE",null,null,null,"HASTA",null,null,null,"No. DÍAS EVALUADOS ",null,null,{"$f":"IF((J5-F5+1)=1,0,J5-F5+1)","v":0}]
["12.4.  EVALUACION DE COMPROMISOS LABORALES",null,null,null,null,null,null,null,null,null,null,null,null,null,null,null,null,null,null,null,"12.5.  EVALUACIÓN PREVIA \n(Si hubo)",null,null,"12.6 EVALUACIÓN ÚLTIMO PERÍODO"]
["COMPROMISO LABORAL",null,null,null,"EVIDENCIA DEL CUMPLIMIENTO DEL COMPROMISO",null,null,null,null,null,"REQUISITOS DE CALIDAD",null,null,"COMENTARIOS - RUTA DE EVIDENCIA",null,null,null,null,null,null,"PESO","LOGRO %","PUNTAJE","LOGRO %","PUNTAJE"]
[{"$f":"'1.2.3. CONCERTACIÓN'!F9","v":0},null,null,null,{"$f":"+'1.2.3. CONCERTACIÓN'!Y9","v":0},null,null,null,null,null,{"$f":"+'1.2.3. CONCERTACIÓN'!N9","v":0},null,null,null,null,null,null,null,null,null,{"$f":"'1.2.3. CONCERTACIÓN'!AF9","v":0},null,{"$f":"(U8*V8)","v":0},null,{"$f":"(U8*X8)","v":0}]
[null,null,null,null,null,null,null,null,null,null,{"$f":"+'1.2.3. CONCERTACIÓN'!N10","v":0}]
[null,null,null,null,null,null,null,null,null,null,{"$f":"+'1.2.3. CONCERTACIÓN'!N11","v":0}]
[null,null,null,null,null,null,null,null,null,null,{"$f":"+'1.2.3. CONCERTACIÓN'!N12","v":0}]
[{"$f":"'1.2.3. CONCERTACIÓN'!F13","v":0},null,null,null,{"$f":"+'1.2.3. CONCERTACIÓN'!Y13","v":0},null,null,null,null,null,{"$f":"+'1.2.3. CONCERTACIÓN'!N13","v":0},null,null,null,null,null,null,null,null,null,{"$f":"'1.2.3. CONCERTACIÓN'!AF13","v":0},null,{"$f":"(U12*V12)","v":0},null,{"$f":"(U12*X12)","v":0}]
[null,null,null,null,null,null,null,null,null,null,{"$f":"+'1.2.3. CONCERTACIÓN'!N14","v":0}]
[null,null,null,null,null,null,null,null,null,null,{"$f":"+'1.2.3. CONCERTACIÓN'!N15","v":0}]
[null,null,null,null,null,null,null,null,null,null,{"$f":"+'1.2.3. CONCERTACIÓN'!N16","v":0}]
[{"$f":"'1.2.3. CONCERTACIÓN'!F17","v":0},null,null,null,{"$f":"+'1.2.3. CONCERTACIÓN'!Y17","v":0},null,null,null,null,null,{"$f":"+'1.2.3. CONCERTACIÓN'!N17","v":0},null,null,null,null,null,null,null,null,null,{"$f":"'1.2.3. CONCERTACIÓN'!AF17","v":0},null,{"$f":"(U16*V16)","v":0},null,{"$f":"(U16*X16)","v":0}]
[null,null,null,null,null,null,null,null,null,null,{"$f":"+'1.2.3. CONCERTACIÓN'!N18","v":0}]
[null,null,null,null,null,null,null,null,null,null,{"$f":"+'1.2.3. CONCERTACIÓN'!N19","v":0}]
[null,null,null,null,null,null,null,null,null,null,{"$f":"+'1.2.3. CONCERTACIÓN'!N20","v":0}]
[{"$f":"'1.2.3. CONCERTACIÓN'!F21","v":0},null,null,null,{"$f":"+'1.2.3. CONCERTACIÓN'!Y21","v":0},null,null,null,null,null,{"$f":"+'1.2.3. CONCERTACIÓN'!N21","v":0},null,null,null,null,null,null,null,null,null,{"$f":"'1.2.3. CONCERTACIÓN'!AF21","v":0},null,{"$f":"(U20*V20)","v":0},null,{"$f":"(U20*X20)","v":0}]
[null,null,null,null,null,null,null,null,null,null,{"$f":"+'1.2.3. CONCERTACIÓN'!N22","v":0}]
[null,null,null,null,null,null,null,null,null,null,{"$f":"+'1.2.3. CONCERTACIÓN'!N23","v":0}]
[null,null,null,null,null,null,null,null,null,null,{"$f":"+'1.2.3. CONCERTACIÓN'!N24","v":0}]
[{"$f":"'1.2.3. CONCERTACIÓN'!F25","v":0},null,null,null,{"$f":"+'1.2.3. CONCERTACIÓN'!Y25","v":0},null,null,null,null,null,{"$f":"+'1.2.3. CONCERTACIÓN'!N25","v":0},null,null,null,null,null,null,null,null,null,{"$f":"'1.2.3. CONCERTACIÓN'!AF25","v":0},null,{"$f":"(U24*V24)","v":0},null,{"$f":"(U24*X24)","v":0}]
[null,null,null,null,null,null,null,null,null,null,{"$f":"+'1.2.3. CONCERTACIÓN'!N26","v":0}]
[null,null,null,null,null,null,null,null,null,null,{"$f":"+'1.2.3. CONCERTACIÓN'!N27","v":0}]
[null,null,null,null,null,null,null,null,null,null,{"$f":"+'1.2.3. CONCERTACIÓN'!N28","v":0}]
[" TOTAL COMPROMISOS LABORALES",null,null,null,null,null,null,null,null,null,null,null,null,null,null,null,null,null,null,null,{"$f":"IF(SUM(U7:U27)>100,\"Numero no puede ser mayor que 100\",SUM(U7:U27))","v":0},null,{"$f":"SUM(W8:W27)","v":0},null,{"$f":"SUM(Y8:Y27)","v":0}]
[]
["% Participación Días Laborados para la Evaluación inferior a 1 año (mayor a 30 días)",null,null,"Previa a la evaluación(Si hubo)",null,null,{"$f":"IFERROR(+O4/($O$4+$O$5),0)","v":0},null,null,"Sobre 100%",{"$f":"(W28*G30+Y28*G31)","v":0},null,null,"12.7 CALIFICACIÓN EVALUACIÒN PRIMER SEMESTRE (Sobre 80%) ",null,null,null,null,null,null,null,null,null,{"$f":"+K30*80%","v":0}]
[null,null,null,"Evaluación último Período",null,null,{"$f":"IFERROR(+O5/($O$4+$O$5),0)","v":0}]
["12.8 COMPROMISOS COMPORTAMENTALES FIJADOS",null,null,null,null,null,null,null,"12.9.  EVALUACIÓN DE COMPROMISOS COMPORTAMENTALES"]
["NIVEL JERARQUICO",null,"COMPETENCIAS COMPORTAMENTALES",null,null,"CONDUCTA ASOCIADA ",null,null,"EVA. PREVIA\n(Si hubo)",null,null,null,null,null,null,null,null,"EVA. ÚLTIMO PERÍODO."]
[null,null,null,null,null,null,null,null,"NIVELES DE FRECUENCIA",null,null,"DESCRIPCIÓN ",null,null,null,"RESULTADOS CUANTITATIVOS",null,"NIVELES DE FRECUENCIA",null,null,null,"Descripción Cualitativa",null,"Resultado Cuantitativo"]
[{"$f":"+'1.2.3. CONCERTACIÓN'!C32","v":0},null,{"$f":"+'1.2.3. CONCERTACIÓN'!H32","v":0},null,null,{"$f":"+'1.2.3. CONCERTACIÓN'!R32","v":0},null,null,null,null,null,{"$f":"IF(I35='lista de selecciones'!$I$188,'lista de selecciones'!$J$188,IF(I35='lista de selecciones'!$I$189,'lista de selecciones'!$J$189,IF(I35='lista de selecciones'!$I$190,'lista de selecciones'!$J$190,IF(I35='lista de selecciones'!$I$191,'lista de selecciones'!$J$191,0))))","v":0},null,null,null,{"$f":"IF(I35='lista de selecciones'!I188,'lista de selecciones'!K188,IF(I35='lista de selecciones'!I189,'lista de selecciones'!K189,IF(I35='lista de selecciones'!I190,'lista de selecciones'!K190,IF(I35='lista de selecciones'!I191,'lista de selecciones'!K191,0))))","v":0},null,null,null,null,null,{"$f":"IF(R35='lista de selecciones'!$I$188,'lista de selecciones'!$J$188,IF(R35='lista de selecciones'!$I$189,'lista de selecciones'!$J$189,IF(R35='lista de selecciones'!$I$190,'lista de selecciones'!$J$190,IF(R35='lista de selecciones'!$I$191,'lista de selecciones'!$J$191,0))))","v":0},null,{"$f":"IF(R35='lista de selecciones'!I188,'lista de selecciones'!K188,IF(R35='lista de selecciones'!I189,'lista de selecciones'!K189,IF(R35='lista de selecciones'!I190,'lista de selecciones'!K190,IF(R35='lista de selecciones'!I191,'lista de selecciones'!K191,0))))","v":0}]
[{"$f":"A35","v":0},null,{"$f":"+'1.2.3. CONCERTACIÓN'!H33","v":0},null,null,{"$f":"+'1.2.3. CONCERTACIÓN'!R33","v":0},null,null,null,null,null,{"$f":"IF(I36='lista de selecciones'!$I$188,'lista de selecciones'!$J$188,IF(I36='lista de selecciones'!$I$189,'lista de selecciones'!$J$189,IF(I36='lista de selecciones'!$I$190,'lista de selecciones'!$J$190,IF(I36='lista de selecciones'!$I$191,'lista de selecciones'!$J$191,0))))","v":0},null,{"$f":"IF(J36='lista de selecciones'!$I$188,'lista de selecciones'!$J$188,IF(J36='lista de selecciones'!$I$189,'lista de selecciones'!$J$189,IF(J36='lista de selecciones'!$I$190,'lista de selecciones'!$J$190,IF(J36='lista de selecciones'!$I$191,'lista de selecciones'!$J$191,0))))","v":0},null,{"$f":"IF(I36='lista de selecciones'!I188,'lista de selecciones'!K188,IF(I36='lista de selecciones'!I189,'lista de selecciones'!K189,IF(I36='lista de selecciones'!I190,'lista de selecciones'!K190,IF(I36='lista de selecciones'!I191,'lista de selecciones'!K191,0))))","v":0},null,null,null,null,null,{"$f":"IF(R36='lista de selecciones'!$I$188,'lista de selecciones'!$J$188,IF(R36='lista de selecciones'!$I$189,'lista de selecciones'!$J$189,IF(R36='lista de selecciones'!$I$190,'lista de selecciones'!$J$190,IF(R36='lista de selecciones'!$I$191,'lista de selecciones'!$J$191,0))))","v":0},null,{"$f":"IF(R36='lista de selecciones'!I188,'lista de selecciones'!K188,IF(R36='lista de selecciones'!I189,'lista de selecciones'!K189,IF(R36='lista de selecciones'!I190,'lista de selecciones'!K190,IF(R36='lista de selecciones'!I191,'lista de selecciones'!K191,0))))","v":0}]
[{"$f":"A35","v":0},null,{"$f":"+'1.2.3. CONCERTACIÓN'!H34","v":0},null,null,{"$f":"+'1.2.3. CONCERTACIÓN'!R34","v":0},null,null,null,null,null,{"$f":"IF(I37='lista de selecciones'!$I$188,'lista de selecciones'!$J$188,IF(I37='lista de selecciones'!$I$189,'lista de selecciones'!$J$189,IF(I37='lista de selecciones'!$I$190,'lista de selecciones'!$J$190,IF(I37='lista de selecciones'!$I$191,'lista de selecciones'!$J$191,0))))","v":0},null,{"$f":"IF(J37='lista de selecciones'!$I$188,'lista de selecciones'!$J$188,IF(J37='lista de selecciones'!$I$189,'lista de selecciones'!$J$189,IF(J37='lista de selecciones'!$I$190,'lista de selecciones'!$J$190,IF(J37='lista de selecciones'!$I$191,'lista de selecciones'!$J$191,0))))","v":0},null,{"$f":"IF(I37='lista de selecciones'!I188,'lista de selecciones'!K188,IF(I37='lista de selecciones'!I189,'lista de selecciones'!K189,IF(I37='lista de selecciones'!I190,'lista de selecciones'!K190,IF(I37='lista de selecciones'!I191,'lista de selecciones'!K191,0))))","v":0},null,null,null,null,null,{"$f":"IF(R37='lista de selecciones'!$I$188,'lista de selecciones'!$J$188,IF(R37='lista de selecciones'!$I$189,'lista de selecciones'!$J$189,IF(R37='lista de selecciones'!$I$190,'lista de selecciones'!$J$190,IF(R37='lista de selecciones'!$I$191,'lista de selecciones'!$J$191,0))))","v":0},null,{"$f":"IF(R37='lista de selecciones'!I188,'lista de selecciones'!K188,IF(R37='lista de selecciones'!I189,'lista de selecciones'!K189,IF(R37='lista de selecciones'!I190,'lista de selecciones'!K190,IF(R37='lista de selecciones'!I191,'lista de selecciones'!K191,0))))","v":0}]
[{"$f":"A36","v":0},null,{"$f":"+'1.2.3. CONCERTACIÓN'!H35","v":0},null,null,{"$f":"+'1.2.3. CONCERTACIÓN'!R35","v":0},null,null,null,null,null,{"$f":"IF(I38='lista de selecciones'!$I$188,'lista de selecciones'!$J$188,IF(I38='lista de selecciones'!$I$189,'lista de selecciones'!$J$189,IF(I38='lista de selecciones'!$I$190,'lista de selecciones'!$J$190,IF(I38='lista de selecciones'!$I$191,'lista de selecciones'!$J$191,0))))","v":0},null,{"$f":"IF(J38='lista de selecciones'!$I$188,'lista de selecciones'!$J$188,IF(J38='lista de selecciones'!$I$189,'lista de selecciones'!$J$189,IF(J38='lista de selecciones'!$I$190,'lista de selecciones'!$J$190,IF(J38='lista de selecciones'!$I$191,'lista de selecciones'!$J$191,0))))","v":0},null,{"$f":"IF(I38='lista de selecciones'!I188,'lista de selecciones'!K188,IF(I38='lista de selecciones'!I189,'lista de selecciones'!K189,IF(I38='lista de selecciones'!I190,'lista de selecciones'!K190,IF(I38='lista de selecciones'!I191,'lista de selecciones'!K191,0))))","v":0},null,null,null,null,null,{"$f":"IF(R38='lista de selecciones'!$I$188,'lista de selecciones'!$J$188,IF(R38='lista de selecciones'!$I$189,'lista de selecciones'!$J$189,IF(R38='lista de selecciones'!$I$190,'lista de selecciones'!$J$190,IF(R38='lista de selecciones'!$I$191,'lista de selecciones'!$J$191,0))))","v":0},null,{"$f":"IF(R38='lista de selecciones'!I188,'lista de selecciones'!K188,IF(R38='lista de selecciones'!I189,'lista de selecciones'!K189,IF(R38='lista de selecciones'!I190,'lista de selecciones'!K190,IF(R38='lista de selecciones'!I191,'lista de selecciones'!K191,0))))","v":0}]
[null,null,null,null,null,null,null,null,"TOTAL COMPROMISOS COMPORTAMENTALES PREVIA A LA EVALUACIÓN (Si hubo) ",null,null,null,null,null,null,{"$f":"SUM(P35:Q38)/4","v":0},null,"TOTAL COMPROMISOS COMPORTAMENTALES ULTIMO PERIODO ",null,null,null,null,null,{"$f":"SUM(X35:Y38)/4","v":0}]
["% Participación Días Laborados para la Evaluación inferior a 1 año (mayor a 30 días)",null,null,"Previa a la evaluación\n(Si hubo)",null,null,{"$f":"IFERROR(+O4/($O$4+$O$5),0)","v":0},null,null,"Sobre 100%",{"$f":"(P39*G40+X39*G41)","v":0},null,null,"12.10 CALIFICACIÓN TOTAL COMPETENCIAS COMPORTAMENTALES (Sobre 20%)",null,null,null,null,null,null,null,null,null,{"$f":"+(K40*20%)*10","v":0}]
[null,null,null,"Evaluación último Período",null,null,{"$f":"IFERROR(+O5/($O$4+$O$5),0)","v":0}]
["RESULTADOS CONSOLIDADOS EVALUACIÓN EXTRAORDINARIA",null,null,null,null,"Resultados ",{"$f":"X30+X40","v":0},null,null,null,null,"NIVEL DE CALIFICACIÓN",null,null,null,null,null,{"$f":"IF(G42<=69,'lista de selecciones'!A162,IF(G42<90,'lista de selecciones'!A161,IF(G42>=90,'lista de selecciones'!A160)))","v":"No satisfactorio"}]
[]
["12.11 NOTIFICACIÓN"]
["LUGAR Y FECHA DE DILIGENCIAMIENTO"]
[null,null,null,"EMPLEADO A EVALUAR",null,null,null,null,null,"JEFE INMEDIATO (PRIMER EVALUADOR)",null,null,null,null,null,null,null,"SEGUNDO EVALUADOR \n"]
["NOMBRE COMPLETO",null,null,{"$f":"'1.2.3. CONCERTACIÓN'!J39","v":0},null,null,null,null,null,{"$f":"+'1.2.3. CONCERTACIÓN'!P39","v":0},null,null,null,null,null,null,null,{"$f":"'1.2.3. CONCERTACIÓN'!Z39","v":0}]
["NUMERO DE DOCUMENTO IDENTIDAD",null,null,{"$f":"'1.2.3. CONCERTACIÓN'!J40","v":0},null,null,null,null,null,{"$f":"+'1.2.3. CONCERTACIÓN'!P40","v":0},null,null,null,null,null,null,null,{"$f":"'1.2.3. CONCERTACIÓN'!Z40","v":0}]
["CARGO (DENOMINACIÓN-CÓDIGO-GRADO)",null,null,{"$f":"'1.2.3. CONCERTACIÓN'!J41","v":0},null,null,null,null,null,{"$f":"+'1.2.3. CONCERTACIÓN'!P41","v":0},null,null,null,null,null,null,null,{"$f":"'1.2.3. CONCERTACIÓN'!Z41","v":0}]
["DEPENDENCIA",null,null,{"$f":"'1.2.3. CONCERTACIÓN'!J42","v":0},null,null,null,null,null,{"$f":"+'1.2.3. CONCERTACIÓN'!P42","v":0},null,null,null,null,null,null,null,{"$f":"'1.2.3. CONCERTACIÓN'!Z42","v":0}]
["FIRMAS"]
["12.12 NOTIFICACIÓN"]
["Contra esta calificación procede el recurso de reposición y en subsidio el de apelación interpuestos ante el evaluador dentro de los cinco (5) días hábiles siguientes a la fecha de notificación. Los recursos deben presentarse por escrito, personalmente o mediante apoderado y exponiendo los motivos de inconformidad."]
["Interpuso recurso de Reposición",null,null,null,null,null,null,"FECHA",null,null,null,"Interpuso recurso de Apelación",null,null,null,null,null,null,null,null,null,null,"FECHA"]
[]
[]
[null,"NOMBRE DEL EVALUADO",null,null,null,null,null,null,null,null,null,null,null,"FIRMA DEL EVALUADO"]
[]
[null,"NOMBRE DEL NOTIFICADOR",null,null,null,null,null,null,null,null,null,null,null,"FIRMA DEL NOTIFICADOR"]
["12.13 OBSERVACIONES"]